{"text_format":"2","workbook":"xlsx","n_sheets":6,"sheets":["Explanation uniform dataset","Validatie","Data for Attributes per Brick","Bricks","Bricks added in version","Foutmeldingen"],"not_rendered":{"charts":0,"images":1,"macros":0,"external_links":0,"defined_names":3,"comments":1,"pivot_tables":0},"unopened":[],"bounds":{"document_bytes":16777216,"sheet_cells":100000,"run_cost":"one","rows_first":2000,"rows_last":500,"rows_between":2000,"halvings":0,"cell_chars":16384,"cell_head_chars":4096},"cells_cut":0,"cells_raw":0,"read":"whole","date_system":"1900"}

{"sheet":"Explanation uniform dataset","index":0,"n_rows":8,"n_cols":44,"rows_kept":8,"cut":false,"hidden":false,"merged":[[7,13,7,18],[0,0,0,10]]}
["Uniforme Dataset - Toelichting    /    Uniform Dataset - Explanation"]
["#",1,2,3,4,5,6,7,8,9,10,11,12,13,14,15,16,17,18,19,20,21,22,23,"23a",24,25,26,27,28,29,"29a",null,30,null,31,32,"32a",33,34,35,36,"36a",37]
["Questions \n(Dutch/Nederlands)","Leveranciers artikelnummer","Naam leverancier","GLN leverancier\nGlobal Location Number","Artikel omschrijving","Referentienummer fabrikant","Naam fabrikant","Beoogd gebruik product: geef GMDN code ","CE markering\nja/ nee","Conform welke wetgeving\ndrop down menu","Expiratiedatum CE certificaat \nyyyy-mm-dd/ NA","Risico klasse\ndrop down menu","Aangewezen instantie nummer\n0000","Hoeveelheid kleinste eenheid\nBijvoorbeeld stuks ","Stuks identificatie \nGTIN","Aantal per binnenverpakking","Binnenverpakking identificatie \nGTIN","Aantal per bestelverpakking ","Bestelverpakking identificatie \nGTIN","Is het product steriel?\nja/ nee","Welke opslag condities zijn noodzakelijk? \nzie drop down menu","Bevat het artikel latex?\nja/ nee","Artikel bevat weekmakers? \nja/ nee","Zijn er specifieke eisen voor afvalverwerking van het product? / \nja/ nee\nIndien ja: gelieve te specificeren in de volgende vraag.","Specifieke eisen voor afvalverwerking van het product ","Voeg het CE certificaat toe, bij voorkeur als PDF / \nGeef de naam van het bijgevoegde CE certificaat (xxx.pdf) of geef de URL van het CE certificaat","Voeg de conformiteitsverklaring toe, bij voorkeur als PDF/ \nGeef de naam van het bijgevoegde DoC (xxx.pdf) of geef de URL van het DoC ","Voeg een afbeelding van het product toe\nNaam afbeelding of URL naar de afbeelding van het product ","Voeg de handleiding toe \nGeef de naam van de bijgevoegde handleiding (xxx.pdf) of geef de URL van de handleiding ","Is het product bestemd voor eenmalig gebruik of herbruikbaar?\ndrop down menu","Is scholing voor veilig gebruik van het product noodzakelijk? \nja/ nee\nIndien ja, graag specificeren met bijlage bij vraag 29a","Geef de naam van het bijgevoegde scholingsdocument (xxx.pdf) of geef de URL van het scholingsdocument","Voor eenmalig gebruik én welke niet gesteriliseerd hoeven te worden? De volgende vragen hoeven niet ingevuld te worden.","Is sterilisatie of machinale desinfectie van het product mogelijk?\nja/ nee","Sterilisatie of machinale desinfectie niet mogelijk? De volgende vragen hoeven niet ingevuld te worden. ","Is scholing voor het reinigen, desinfecteren en/of steriliseren van het product noodzakelijk? \nja/ nee\nIndien ja, graag specificeren met bijlage","Welke vorm van handmatige voorreiniging op de CSA is noodzakelijk? \nzie drop down menu","Indien anders, specificeer","Welke vorm van machinale reiniging (ISO 15883) is mogelijk met gebruikmaking van een detergent met een pH ≥ 10? \nzie drop down menu","Welke vorm van machinale desinfectie (ISO 15883) is mogelijk? \nzie drop down menu","Is het product bestand tegen een oppervlakte-spanningsverlagend middel?\nja/ nee","Welke vorm van sterilisatie is mogelijk? \nzie drop down menu","Indien waterstof peroxide: specificeer merk en type apparaat en programma, indien anders, specificeer methode. ","Reinigings-, desinfectie- en sterilisatievoorschrift conform EN-ISO 17664 en setbeschrijving moeten meegestuurd worden. Zijn deze toegevoegd?\nja/ nee"]
["Questions \n(English/Engels)"," Supplier article number","Supplier name","GLN supplier\nGlobal Location Number","Article description","Reference number (REF)","Name manufacturer","Intended Use Article: give GMDN code\n","CE-mark\nyes/ no","Conform regulations\ndrop down list","Expiry date CE certificate \nyyyy-mm-dd/ NA","Risk class\ndrop down list","Notified Body number\n0000","Unit of Measure smallest unit\nFor example piece","Piece identifier \nGTIN","Amount inner carton","Inner carton identifier \nGTIN","Amount outer carton","Outer carton identifier \nGTIN","Is the item sterile?\nyes/ no","Wich storage conditions are required? \nsee drop down list","Article contains latex?\nyes/ no","Article contains softeners like phthalates?\nyes/ no","Are there specific requirements regarding waste processing of the product? \nyes/ no \nIf yes: please specify in next question.","Specific requirements regarding waste processing of the product","Please supply the CE certificate, preferrably in PDF format.\nGive name of the attached CE certificate (xxx.pdf) or give the link of the CE certificate","Please supply the Declaration of conformity (DoC), preferrably in PDF format.\nGive name of the attached DoC (xxx.pdf) or give the link of the DoC","Please supply a picture of the product \nPicture name or URL to the picture of the product","Please supply the instruction manual\nGive name of the attached instruction manual (xxx.pdf) or give the link of the instruction manual","Is the product single use or reusable?\ndrop down list","Is education for safe use of the product necessary? \nyes/ no\nIn case yes, please specify with attachment in question 29a","Give name of the attached training document (xxx.pdf) or give the link of the training document","Single use and not to be sterilized? The next questions do not have to be filled.","Is sterilisation or automated disinfection of the product possible?\nyes/ no","Sterilisation or automated disinfection not possible? The next questions do not have to be filled.","Is education for reprocessing of the product necessary? \nyes/ no\nIn case yes, please specify with attachment","Which form of manual pre-cleaning in the CSSD is necesary?\nsee drop down list","In case other, please specify","What form of automated cleaning (ISO 15883) is possible using a detergent with a pH ≥ 10?\nsee drop down list","\nWhat form of automated disinfection (ISO 15883) is possible?\nSee drop down list","Is the product resistant to a surface tension reducing agent?\nyes/ no","Which form of sterilization is possible?\nsee drop down list","In case of hydrogen peroxide: specify make and type of device and program. In case different, specify method.","Cleaning, disinfection and sterilization instructions in accordance with EN-ISO 17664 and set description must be enclosed. Have these been added?\nyes/ no"]
[]
["Required","Mandatory","Mandatory","Mandatory","Mandatory","Mandatory","Mandatory","Mandatory","Mandatory","Mandatory","Conditionally mandatory","Mandatory","Conditionally mandatory","Mandatory","Mandatory","Mandatory","Mandatory","Mandatory","Mandatory","Conditionally mandatory","Mandatory","Mandatory","Mandatory","Mandatory","Conditionally mandatory","Conditionally mandatory","Mandatory","Mandatory","Conditionally mandatory","Mandatory","Conditionally mandatory","Conditionally mandatory",null,"Conditionally mandatory",null,"Conditionally mandatory","Conditionally mandatory","Conditionally mandatory","Conditionally mandatory","Conditionally mandatory","Conditionally mandatory","Conditionally mandatory","Conditionally mandatory","Conditionally mandatory"]
[]
["The following GDSN attributes should be used","GDSN\nCombination of the following attributes: 'Additional Trade Item Identification' and 'Additional Trade Item Identification Type Code' with code SUPPLIER_ASSIGNED or alternatively MODEL_NUMBER.\n\nSUPPLIER_ASSIGNED\nThe additional Trade Item Identification value populated has been developed and assigned by the party which provides service(s) and/or manufactures or otherwise has possession of the goods and consigns or makes them available in trade. This number is a base model or style number assigned to the product and may be the same for several GTINs where they are variations of each other. \n\nMODEL_NUMBER\nThe additional Trade Item Identification value populated is an identification number which defines the configuration of the product in addition to the Item number. This is typically printed or otherwise attached to an item.","GDSN\nInformation Provider Name","GDSN\nInformation Provider GLN","GDSN\nTrade Item Description","GDSN\nCombination of the following attributes: 'Additional Trade Item Identification' and 'Additional Trade Item Identification Type Code' with code MANUFACTURER_PART_NUMBER or alternatively MODEL_NUMBER.\n\nMANUFACTURER_PART_NUMBER\nThe additional Trade Item Identification value populated is an identifier of a part used for an item. While the name implies that the number is assigned by the manufacturer, the part may be built by one manufacturer to apply to another manufacturer’s item. In this case this number is the applicable part number from the item’s manufacturer.\n\nMODEL_NUMBER\nThe additional Trade Item Identification value populated is an identification number which defines the configuration of the product in addition to the Item number. This is typically printed or otherwise attached to an item.","GDSN\nManufacturer name (partyName)","GDSN\nCombination of the following attributes: 'Additional Trade Item Classification System Code'  with code 35 (Global Medical Devices Nomenclature) and 'Additional Trade Item Classification Code Value' with the applicable GMDN code.","GDSN\nRegulation Type Code\n\nIf the item does have a CE-mark, the code CE should be used.","GDSN\nEntered via the Risk class (column L)","GDSN\nCertification Effective End Date Time","GDSN\nCombination of the following attributes: 'Additional Trade Item Classification System Code'  with code '76 (EU DeviceRiskClass MDR/IVDR)' or '85 (EU Directive MDD/AIMDD/IVDD Risk Class)' and 'Additional Trade Item Classification Code Value' with the applicable risk class, one of the following values for code 76:\n'EU_CLASS_I', 'EU_CLASS_IIA', 'EU_CLASS_IIB', 'EU_CLASS_III', 'EU_CLASS_A', 'EU_CLASS_B', 'EU_CLASS_C', or 'EU_CLASS_D'.\n\nAnd one of the following values for code 85:\n'EU_CLASS_I', 'EU_CLASS_IIA', 'EU_CLASS_IIB', 'EU_CLASS_III', 'IVDD_ANNEX_II_LIST_A', 'IVDD_ANNEX_II_LIST_B', 'IVDD_DEVICES_SELF_TESTING'\n'IVDD_GENERAL', 'AIMDD'.","GDSN\nAdditional Certification Organisation Identifier","GDSN\nCreating a hierarchy within GDSN that includes the smallest unit, inner carton and outer carton. \n\n- The hierarchy will include the GTINs of each above mentioned units.\n\n- The outer carton and inner carton will also provide the following 3 attributes:\nQuantity of Children: Number that indicates the number of unique products (GTIN's) in the hierarchy.\nTotal Quantity of Next Lover Level Trade Item: Number that indicates the total number of products in the hierarchy.\nQuantity Of Next Lower Level Trade Item: Number that indicates the amount of GTIN's on the next lower level.\n\nEach GTIN (of the smallest unit, the inner carton and the outer carton) will also provide the following required GDSN attributes:\nIs Trade Item A Base Unit: An indicator identifying the trade item as the base unit level (lowest level) of the trade item hierarchy.\nIs Trade Item A Consumer Unit: This refers to the end user, could be but is not limited to, a consumer as in items sold at retail, or a patient/clinician/technician in a healthcare setting.\nIs Trade Item An Orderable Unit: An indicator identifying that the information provider considers this trade item to be at a hierarchy level where they will accept orders from customers.\nIs Trade Item A Despatch Unit: An indicator identifying that the information provider considers the trade item as a despatch (shipping) unit.\nIs Trade Item An Invoice Unit: An indicator identifying that the information provider will include this trade item on their billing or invoice.\n\n",{"$nulls":5},"GDSN\nTrade Item Feature Code Reference\n\nIf the item is sterile, the code STERILE should be used.","GDSN\nCombination of the following attributes: 'Handling Instructions Code Reference' with code FPC (Store in freezer),  11 (Refrigeration Required) or SRT (Store at Room Temperature), 'Temperature Qualifier Code' with code STORAGE_HANDLING, 'Minimum Temperature' and 'Maximum temperature' containing the temperature range in Celsius degrees.","GDSN\nDoes Trade Item Contain Latex","GDSN\nCombination of the following attributes: 'Nutritional Claim Nutrient Elemt Code'  with code PHTHALATE and 'Nutritional Claim Type Code' with code FREE_FROM or CONTAINS","GDSN\nType Of Waste Code","GDSN\nType Of Waste Code","GDSN\nCombination of the following attributes: 'File Name', 'Uniform Resource Identifier' and 'File Reference Type Code' with code CERTIFICATION","GDSN\nCombination of the following attributes: 'File Name', 'Uniform Resource Identifier' and 'File Reference Type Code' with code DECLARATION_OF_CONFORMITY","GDSN \nCombination of the following attributes: 'File Name', 'Uniform Resource Identifier' and 'File Reference Type Code' with code PRODUCT_IMAGE. ","GDSN\nCombination of the following attributes: 'File Name', 'Uniform Resource Identifier' and 'File Reference Type Code' with code IFU or IFU_INCLUDING_CLEANING_DISINFECTION_STERILISATION_INSTRUCTIONS","GDSN\nManufacturer Declared Reusability Type Code\n","GDSN\nRequired Education Training Type Code","The attribute 'Required Education Training Type Code' alerts the buyer to get in contact with the supplier to ask for the specific educational requirements, if needed.",null,"With help of the attributes 'Initial Sterilisation Prior To Use Code' or the combination of the attributes 'Type Of Cleaning Disinfection Process Code' and 'Type Of Desinfection Code' this information can be retrieved.",null,"GDSN\nRequired Education Training Type Code","GDSN\n'Is Pre Cleaning Necessary' in combination with 'Type of Cleaning Disinfection Process Code' and 'Type of Cleaning Code'","See column 32.","GDSN\n'Type of Cleaning Disinfection Process Code' in combination with 'Type of Cleaning Code'","GDSN\n'Type of Cleaning Disinfection Process Code' in combination with 'Type of Disinfection Code'","GDSN\nIs Product Resistant To Surface Tension Reducing Agent","GDSN\nInitial Sterilisation Prior to Use Code","The attribute 'Initial Sterilisation Prior To Use Code' alerts the buyer to get in contact with the supplier to ask for the specifications of the hydrogen peroxide.","GDSN\nCombination of the following attributes: 'File Name', 'Uniform Resource Identifier' and 'File Reference Type Code' with code CLEANING_DISINFECTION_STERILISATION_INSTRUCTIONS or IFU_INCLUDING_CLEANING_DISINFECTION_STERILISATION_INSTRUCTIONS"]

{"sheet":"Validatie","index":1,"n_rows":54,"n_cols":2,"rows_kept":54,"cut":false,"hidden":true,"merged":[]}
[]
[9,"MDD 93/42"]
[null,"MDR 2017/745"]
[null,"AIMD 90/385"]
[null,"IVD 98/79"]
[null,"IVDR 2017/746 "]
[null,"other"]
[]
[]
[]
[11,"I"]
[null,"Is"]
[null,"Im"]
[null,"Ir"]
[null,"IIa"]
[null,"IIb"]
[null,"III"]
[null,"A"]
[null,"B"]
[null,"C"]
[null,"D"]
[null,"II"]
[null,"other"]
[]
[19,"single use "]
[null,"reusable"]
[]
[20,"Koelkast/ Refridgerator (2-8°C)"]
[null,"Kamertemperatuur/ Room temperature (15-25°C)"]
[null,"Vriezer/ Freezer (< 0°C)"]
[]
[21,"yes"]
[null,"no"]
[]
["meerdere","yes"]
[null,"no"]
[]
[32,"Ultrasoon/ Ultrasone"]
[null,"Geen/ None"]
[null,"Anders/ Other"]
[]
[33,"Geen machinale reiniging mogelijk / No machine cleaning possible"]
[null,"Machinale reiniging met een pH-neutraal / enzymatisch detergent / Machine cleaning with a pH neutal / enzymatic detergent"]
[null,"Machinale reiniging met een (mild) alkalisch detergent / Machine cleaning with a (mild) alkaline detergent"]
[]
[34,"Geen machinale desinfectie mogelijk / No machine disinfection possible"]
[null,"Thermische desinfectie / Thermic disinfection "]
[null,"Chemische desinfectie met Glutaaraldehyde / Chemical disinfection with glutaraldehyde"]
[null,"Chemische desinfectie met Perazijnzuur / Chemical disinfection with peracetic Acid"]
[]
[36,"Stoom 134°C – 3 minuten (EN 285) / Steam 134°C – 3 minutes (EN 285)"]
[null,"Stoom 121°C – 15 minuten (EN 285) / Steam 121°C – 15 minutes (EN 285)"]
[null,"Waterstof peroxide, specificeer in 36a / Hydrogen peroxide, specify in 36a"]
[null,"Anders, specificeer in 36a / Other, specify in 36a"]

{"sheet":"Data for Attributes per Brick","index":2,"n_rows":163,"n_cols":6,"rows_kept":163,"cut":false,"hidden":true,"merged":[]}
["Brick","FieldID","Cross","Brick name",null,"Sort"]
[10005844,"1.001",1,{"$f":"+IF(A2<>A1,VLOOKUP(A2,Bricks!A:D,4,FALSE),\"\"\"\")","v":"Medische Hulpmiddelen"},null,{"$f":"+A2&B2","v":"100058441.001"}]
[10005844,"1.002",1,{"$f":"+IF(A3<>A2,VLOOKUP(A3,Bricks!A:D,4,FALSE),\"\"\"\")","v":"\""},null,"100058441.002"]
[10005844,"1.003",1,{"$f":"+IF(A4<>A3,VLOOKUP(A4,Bricks!A:D,4,FALSE),\"\"\"\")","v":"\""},null,"100058441.003"]
[10005844,"1.004",1,{"$f":"+IF(A5<>A4,VLOOKUP(A5,Bricks!A:D,4,FALSE),\"\"\"\")","v":"\""},null,"100058441.004"]
[10005844,"1.005",1,{"$f":"+IF(A6<>A5,VLOOKUP(A6,Bricks!A:D,4,FALSE),\"\"\"\")","v":"\""},null,"100058441.005"]
[10005844,"1.006",1,{"$f":"+IF(A7<>A6,VLOOKUP(A7,Bricks!A:D,4,FALSE),\"\"\"\")","v":"\""},null,"100058441.006"]
[10005844,"1.007",1,{"$f":"+IF(A8<>A7,VLOOKUP(A8,Bricks!A:D,4,FALSE),\"\"\"\")","v":"\""},null,"100058441.007"]
[10005844,"1.008",1,{"$f":"+IF(A9<>A8,VLOOKUP(A9,Bricks!A:D,4,FALSE),\"\"\"\")","v":"\""},null,"100058441.008"]
[10005844,"1.009",1,{"$f":"+IF(A10<>A9,VLOOKUP(A10,Bricks!A:D,4,FALSE),\"\"\"\")","v":"\""},null,"100058441.009"]
[10005844,"1.010",1,{"$f":"+IF(A11<>A10,VLOOKUP(A11,Bricks!A:D,4,FALSE),\"\"\"\")","v":"\""},null,"100058441.010"]
[10005844,"1.011",1,{"$f":"+IF(A12<>A11,VLOOKUP(A12,Bricks!A:D,4,FALSE),\"\"\"\")","v":"\""},null,"100058441.011"]
[10005844,"1.012",1,{"$f":"+IF(A13<>A12,VLOOKUP(A13,Bricks!A:D,4,FALSE),\"\"\"\")","v":"\""},null,"100058441.012"]
[10005844,"1.013",1,{"$f":"+IF(A14<>A13,VLOOKUP(A14,Bricks!A:D,4,FALSE),\"\"\"\")","v":"\""},null,"100058441.013"]
[10005844,"1.014",1,{"$f":"+IF(A15<>A14,VLOOKUP(A15,Bricks!A:D,4,FALSE),\"\"\"\")","v":"\""},null,"100058441.014"]
[10005844,"1.015",1,{"$f":"+IF(A16<>A15,VLOOKUP(A16,Bricks!A:D,4,FALSE),\"\"\"\")","v":"\""},null,"100058441.015"]
[10005844,"1.016",1,{"$f":"+IF(A17<>A16,VLOOKUP(A17,Bricks!A:D,4,FALSE),\"\"\"\")","v":"\""},null,"100058441.016"]
[10005844,"1.017",1,{"$f":"+IF(A18<>A17,VLOOKUP(A18,Bricks!A:D,4,FALSE),\"\"\"\")","v":"\""},null,"100058441.017"]
[10005844,"1.018",1,{"$f":"+IF(A19<>A18,VLOOKUP(A19,Bricks!A:D,4,FALSE),\"\"\"\")","v":"\""},null,"100058441.018"]
[10005844,"1.019",1,{"$f":"+IF(A20<>A19,VLOOKUP(A20,Bricks!A:D,4,FALSE),\"\"\"\")","v":"\""},null,"100058441.019"]
[10005844,"1.021",1,{"$f":"+IF(A21<>A20,VLOOKUP(A21,Bricks!A:D,4,FALSE),\"\"\"\")","v":"\""},null,"100058441.021"]
[10005844,"1.022",1,{"$f":"+IF(A22<>A21,VLOOKUP(A22,Bricks!A:D,4,FALSE),\"\"\"\")","v":"\""},null,"100058441.022"]
[10005844,"1.023",1,{"$f":"+IF(A23<>A22,VLOOKUP(A23,Bricks!A:D,4,FALSE),\"\"\"\")","v":"\""},null,"100058441.023"]
[10005844,"1.024",1,{"$f":"+IF(A24<>A23,VLOOKUP(A24,Bricks!A:D,4,FALSE),\"\"\"\")","v":"\""},null,"100058441.024"]
[10005844,"1.025",1,{"$f":"+IF(A25<>A24,VLOOKUP(A25,Bricks!A:D,4,FALSE),\"\"\"\")","v":"\""},null,"100058441.025"]
[10005844,"1.031",1,{"$f":"+IF(A26<>A25,VLOOKUP(A26,Bricks!A:D,4,FALSE),\"\"\"\")","v":"\""},null,"100058441.031"]
[10005844,"1.032",1,{"$f":"+IF(A27<>A26,VLOOKUP(A27,Bricks!A:D,4,FALSE),\"\"\"\")","v":"\""},null,"100058441.032"]
[10005844,"1.033",1,{"$f":"+IF(A28<>A27,VLOOKUP(A28,Bricks!A:D,4,FALSE),\"\"\"\")","v":"\""},null,"100058441.033"]
[10005844,"1.034",1,{"$f":"+IF(A29<>A28,VLOOKUP(A29,Bricks!A:D,4,FALSE),\"\"\"\")","v":"\""},null,"100058441.034"]
[10005844,"1.035",1,{"$f":"+IF(A30<>A29,VLOOKUP(A30,Bricks!A:D,4,FALSE),\"\"\"\")","v":"\""},null,"100058441.035"]
[10005844,"1.036",1,{"$f":"+IF(A31<>A30,VLOOKUP(A31,Bricks!A:D,4,FALSE),\"\"\"\")","v":"\""},null,"100058441.036"]
[10005844,"1.037",1,{"$f":"+IF(A32<>A31,VLOOKUP(A32,Bricks!A:D,4,FALSE),\"\"\"\")","v":"\""},null,"100058441.037"]
[10005844,"1.038",1,{"$f":"+IF(A33<>A32,VLOOKUP(A33,Bricks!A:D,4,FALSE),\"\"\"\")","v":"\""},null,"100058441.038"]
[10005844,"1.039",1,{"$f":"+IF(A34<>A33,VLOOKUP(A34,Bricks!A:D,4,FALSE),\"\"\"\")","v":"\""},null,{"$f":"+A34&B34","v":"100058441.039"}]
[10005844,"1.041",1,{"$f":"+IF(A35<>A34,VLOOKUP(A35,Bricks!A:D,4,FALSE),\"\"\"\")","v":"\""},null,"100058441.041"]
[10005844,"1.042",1,{"$f":"+IF(A36<>A35,VLOOKUP(A36,Bricks!A:D,4,FALSE),\"\"\"\")","v":"\""},null,"100058441.042"]
[10005844,"1.043",1,{"$f":"+IF(A37<>A36,VLOOKUP(A37,Bricks!A:D,4,FALSE),\"\"\"\")","v":"\""},null,"100058441.043"]
[10005844,"1.044",1,{"$f":"+IF(A38<>A37,VLOOKUP(A38,Bricks!A:D,4,FALSE),\"\"\"\")","v":"\""},null,"100058441.044"]
[10005844,"1.045",1,{"$f":"+IF(A39<>A38,VLOOKUP(A39,Bricks!A:D,4,FALSE),\"\"\"\")","v":"\""},null,"100058441.045"]
[10005844,"1.046",1,{"$f":"+IF(A40<>A39,VLOOKUP(A40,Bricks!A:D,4,FALSE),\"\"\"\")","v":"\""},null,"100058441.046"]
[10005844,"1.047",1,{"$f":"+IF(A41<>A40,VLOOKUP(A41,Bricks!A:D,4,FALSE),\"\"\"\")","v":"\""},null,"100058441.047"]
[10005844,"1.051",1,{"$f":"+IF(A42<>A41,VLOOKUP(A42,Bricks!A:D,4,FALSE),\"\"\"\")","v":"\""},null,"100058441.051"]
[10005844,"1.052",1,{"$f":"+IF(A43<>A42,VLOOKUP(A43,Bricks!A:D,4,FALSE),\"\"\"\")","v":"\""},null,"100058441.052"]
[10005844,"1.053",1,{"$f":"+IF(A44<>A43,VLOOKUP(A44,Bricks!A:D,4,FALSE),\"\"\"\")","v":"\""},null,"100058441.053"]
[10005844,"1.054",1,{"$f":"+IF(A45<>A44,VLOOKUP(A45,Bricks!A:D,4,FALSE),\"\"\"\")","v":"\""},null,"100058441.054"]
[10005844,"1.055",1,{"$f":"+IF(A46<>A45,VLOOKUP(A46,Bricks!A:D,4,FALSE),\"\"\"\")","v":"\""},null,"100058441.055"]
[10005844,"1.056",1,{"$f":"+IF(A47<>A46,VLOOKUP(A47,Bricks!A:D,4,FALSE),\"\"\"\")","v":"\""},null,"100058441.056"]
[10005844,"1.057",1,{"$f":"+IF(A48<>A47,VLOOKUP(A48,Bricks!A:D,4,FALSE),\"\"\"\")","v":"\""},null,"100058441.057"]
[10005844,"1.058",1,{"$f":"+IF(A49<>A48,VLOOKUP(A49,Bricks!A:D,4,FALSE),\"\"\"\")","v":"\""},null,"100058441.058"]
[10005844,"1.059",1,{"$f":"+IF(A50<>A49,VLOOKUP(A50,Bricks!A:D,4,FALSE),\"\"\"\")","v":"\""},null,"100058441.059"]
[10005844,"1.060",1,{"$f":"+IF(A51<>A50,VLOOKUP(A51,Bricks!A:D,4,FALSE),\"\"\"\")","v":"\""},null,"100058441.060"]
[10005844,"1.061",1,{"$f":"+IF(A52<>A51,VLOOKUP(A52,Bricks!A:D,4,FALSE),\"\"\"\")","v":"\""},null,"100058441.061"]
[10005844,"1.062",1,{"$f":"+IF(A53<>A52,VLOOKUP(A53,Bricks!A:D,4,FALSE),\"\"\"\")","v":"\""},null,"100058441.062"]
[10005844,"1.063",1,{"$f":"+IF(A54<>A53,VLOOKUP(A54,Bricks!A:D,4,FALSE),\"\"\"\")","v":"\""},null,"100058441.063"]
[10005844,"1.064",1,{"$f":"+IF(A55<>A54,VLOOKUP(A55,Bricks!A:D,4,FALSE),\"\"\"\")","v":"\""},null,"100058441.064"]
[10005844,"1.065",1,{"$f":"+IF(A56<>A55,VLOOKUP(A56,Bricks!A:D,4,FALSE),\"\"\"\")","v":"\""},null,"100058441.065"]
[10005844,"1.066",1,{"$f":"+IF(A57<>A56,VLOOKUP(A57,Bricks!A:D,4,FALSE),\"\"\"\")","v":"\""},null,"100058441.066"]
[10005844,"1.067",1,{"$f":"+IF(A58<>A57,VLOOKUP(A58,Bricks!A:D,4,FALSE),\"\"\"\")","v":"\""},null,"100058441.067"]
[10005844,"2.001",1,{"$f":"+IF(A59<>A58,VLOOKUP(A59,Bricks!A:D,4,FALSE),\"\"\"\")","v":"\""},null,"100058442.001"]
[10005844,"2.002",1,{"$f":"+IF(A60<>A59,VLOOKUP(A60,Bricks!A:D,4,FALSE),\"\"\"\")","v":"\""},null,"100058442.002"]
[10005844,"2.003",1,{"$f":"+IF(A61<>A60,VLOOKUP(A61,Bricks!A:D,4,FALSE),\"\"\"\")","v":"\""},null,"100058442.003"]
[10005844,"2.004",1,{"$f":"+IF(A62<>A61,VLOOKUP(A62,Bricks!A:D,4,FALSE),\"\"\"\")","v":"\""},null,"100058442.004"]
[10005844,"2.005",1,{"$f":"+IF(A63<>A62,VLOOKUP(A63,Bricks!A:D,4,FALSE),\"\"\"\")","v":"\""},null,"100058442.005"]
[10005844,"2.006",1,{"$f":"+IF(A64<>A63,VLOOKUP(A64,Bricks!A:D,4,FALSE),\"\"\"\")","v":"\""},null,"100058442.006"]
[10005844,"2.007",1,{"$f":"+IF(A65<>A64,VLOOKUP(A65,Bricks!A:D,4,FALSE),\"\"\"\")","v":"\""},null,"100058442.007"]
[10005844,"2.008",1,{"$f":"+IF(A66<>A65,VLOOKUP(A66,Bricks!A:D,4,FALSE),\"\"\"\")","v":"\""},null,{"$f":"+A66&B66","v":"100058442.008"}]
[10005844,"2.009",1,{"$f":"+IF(A67<>A66,VLOOKUP(A67,Bricks!A:D,4,FALSE),\"\"\"\")","v":"\""},null,"100058442.009"]
[10005844,"2.010",1,{"$f":"+IF(A68<>A67,VLOOKUP(A68,Bricks!A:D,4,FALSE),\"\"\"\")","v":"\""},null,"100058442.010"]
[10005844,"2.011",1,{"$f":"+IF(A69<>A68,VLOOKUP(A69,Bricks!A:D,4,FALSE),\"\"\"\")","v":"\""},null,"100058442.011"]
[10005844,"2.012",1,{"$f":"+IF(A70<>A69,VLOOKUP(A70,Bricks!A:D,4,FALSE),\"\"\"\")","v":"\""},null,"100058442.012"]
[10005844,"2.013",1,{"$f":"+IF(A71<>A70,VLOOKUP(A71,Bricks!A:D,4,FALSE),\"\"\"\")","v":"\""},null,"100058442.013"]
[10005844,"2.014",1,{"$f":"+IF(A72<>A71,VLOOKUP(A72,Bricks!A:D,4,FALSE),\"\"\"\")","v":"\""},null,"100058442.014"]
[10005844,"2.021",1,{"$f":"+IF(A73<>A72,VLOOKUP(A73,Bricks!A:D,4,FALSE),\"\"\"\")","v":"\""},null,"100058442.021"]
[10005844,"2.022",1,{"$f":"+IF(A74<>A73,VLOOKUP(A74,Bricks!A:D,4,FALSE),\"\"\"\")","v":"\""},null,"100058442.022"]
[10005844,"2.023",1,{"$f":"+IF(A75<>A74,VLOOKUP(A75,Bricks!A:D,4,FALSE),\"\"\"\")","v":"\""},null,"100058442.023"]
[10005844,"2.024",1,{"$f":"+IF(A76<>A75,VLOOKUP(A76,Bricks!A:D,4,FALSE),\"\"\"\")","v":"\""},null,"100058442.024"]
[10005844,"2.025",1,{"$f":"+IF(A77<>A76,VLOOKUP(A77,Bricks!A:D,4,FALSE),\"\"\"\")","v":"\""},null,"100058442.025"]
[10005844,"2.026",1,{"$f":"+IF(A78<>A77,VLOOKUP(A78,Bricks!A:D,4,FALSE),\"\"\"\")","v":"\""},null,"100058442.026"]
[10005844,"2.027",1,{"$f":"+IF(A79<>A78,VLOOKUP(A79,Bricks!A:D,4,FALSE),\"\"\"\")","v":"\""},null,"100058442.027"]
[10005844,"2.028",1,{"$f":"+IF(A80<>A79,VLOOKUP(A80,Bricks!A:D,4,FALSE),\"\"\"\")","v":"\""},null,"100058442.028"]
[10005844,"2.029",1,{"$f":"+IF(A81<>A80,VLOOKUP(A81,Bricks!A:D,4,FALSE),\"\"\"\")","v":"\""},null,"100058442.029"]
[10005844,"2.030",1,{"$f":"+IF(A82<>A81,VLOOKUP(A82,Bricks!A:D,4,FALSE),\"\"\"\")","v":"\""},null,{"$f":"+A82&B82","v":"100058442.030"}]
[10005845,"1.001",1,{"$f":"+IF(A83<>A81,VLOOKUP(A83,Bricks!A:D,4,FALSE),\"\"\"\")","v":"Geneesmiddelen"},null,"100058451.001"]
[10005845,"1.002",1,{"$f":"+IF(A84<>A83,VLOOKUP(A84,Bricks!A:D,4,FALSE),\"\"\"\")","v":"\""},null,"100058451.002"]
[10005845,"1.003",1,{"$f":"+IF(A85<>A84,VLOOKUP(A85,Bricks!A:D,4,FALSE),\"\"\"\")","v":"\""},null,"100058451.003"]
[10005845,"1.004",1,{"$f":"+IF(A86<>A85,VLOOKUP(A86,Bricks!A:D,4,FALSE),\"\"\"\")","v":"\""},null,"100058451.004"]
[10005845,"1.005",1,{"$f":"+IF(A87<>A86,VLOOKUP(A87,Bricks!A:D,4,FALSE),\"\"\"\")","v":"\""},null,"100058451.005"]
[10005845,"1.006",1,{"$f":"+IF(A88<>A87,VLOOKUP(A88,Bricks!A:D,4,FALSE),\"\"\"\")","v":"\""},null,"100058451.006"]
[10005845,"1.007",1,{"$f":"+IF(A89<>A88,VLOOKUP(A89,Bricks!A:D,4,FALSE),\"\"\"\")","v":"\""},null,"100058451.007"]
[10005845,"1.008",1,{"$f":"+IF(A90<>A89,VLOOKUP(A90,Bricks!A:D,4,FALSE),\"\"\"\")","v":"\""},null,"100058451.008"]
[10005845,"1.009",1,{"$f":"+IF(A91<>A90,VLOOKUP(A91,Bricks!A:D,4,FALSE),\"\"\"\")","v":"\""},null,"100058451.009"]
[10005845,"1.010",1,{"$f":"+IF(A92<>A91,VLOOKUP(A92,Bricks!A:D,4,FALSE),\"\"\"\")","v":"\""},null,"100058451.010"]
[10005845,"1.011",1,{"$f":"+IF(A93<>A92,VLOOKUP(A93,Bricks!A:D,4,FALSE),\"\"\"\")","v":"\""},null,"100058451.011"]
[10005845,"1.012",1,{"$f":"+IF(A94<>A93,VLOOKUP(A94,Bricks!A:D,4,FALSE),\"\"\"\")","v":"\""},null,"100058451.012"]
[10005845,"1.013",1,{"$f":"+IF(A95<>A94,VLOOKUP(A95,Bricks!A:D,4,FALSE),\"\"\"\")","v":"\""},null,"100058451.013"]
[10005845,"1.014",1,{"$f":"+IF(A96<>A95,VLOOKUP(A96,Bricks!A:D,4,FALSE),\"\"\"\")","v":"\""},null,"100058451.014"]
[10005845,"1.015",1,{"$f":"+IF(A97<>A96,VLOOKUP(A97,Bricks!A:D,4,FALSE),\"\"\"\")","v":"\""},null,"100058451.015"]
[10005845,"1.016",1,{"$f":"+IF(A98<>A97,VLOOKUP(A98,Bricks!A:D,4,FALSE),\"\"\"\")","v":"\""},null,"100058451.016"]
[10005845,"1.017",1,{"$f":"+IF(A99<>A98,VLOOKUP(A99,Bricks!A:D,4,FALSE),\"\"\"\")","v":"\""},null,{"$f":"+A99&B99","v":"100058451.017"}]
[10005845,"1.018",1,{"$f":"+IF(A100<>A99,VLOOKUP(A100,Bricks!A:D,4,FALSE),\"\"\"\")","v":"\""},null,"100058451.018"]
[10005845,"1.019",1,{"$f":"+IF(A101<>A100,VLOOKUP(A101,Bricks!A:D,4,FALSE),\"\"\"\")","v":"\""},null,"100058451.019"]
[10005845,"1.021",1,{"$f":"+IF(A102<>A101,VLOOKUP(A102,Bricks!A:D,4,FALSE),\"\"\"\")","v":"\""},null,"100058451.021"]
[10005845,"1.022",1,{"$f":"+IF(A103<>A102,VLOOKUP(A103,Bricks!A:D,4,FALSE),\"\"\"\")","v":"\""},null,"100058451.022"]
[10005845,"1.023",1,{"$f":"+IF(A104<>A103,VLOOKUP(A104,Bricks!A:D,4,FALSE),\"\"\"\")","v":"\""},null,"100058451.023"]
[10005845,"1.024",1,{"$f":"+IF(A105<>A104,VLOOKUP(A105,Bricks!A:D,4,FALSE),\"\"\"\")","v":"\""},null,"100058451.024"]
[10005845,"1.025",1,{"$f":"+IF(A106<>A105,VLOOKUP(A106,Bricks!A:D,4,FALSE),\"\"\"\")","v":"\""},null,"100058451.025"]
[10005845,"1.031",1,{"$f":"+IF(A107<>A106,VLOOKUP(A107,Bricks!A:D,4,FALSE),\"\"\"\")","v":"\""},null,"100058451.031"]
[10005845,"1.032",1,{"$f":"+IF(A108<>A107,VLOOKUP(A108,Bricks!A:D,4,FALSE),\"\"\"\")","v":"\""},null,"100058451.032"]
[10005845,"1.033",1,{"$f":"+IF(A109<>A108,VLOOKUP(A109,Bricks!A:D,4,FALSE),\"\"\"\")","v":"\""},null,"100058451.033"]
[10005845,"1.034",1,{"$f":"+IF(A110<>A109,VLOOKUP(A110,Bricks!A:D,4,FALSE),\"\"\"\")","v":"\""},null,"100058451.034"]
[10005845,"1.035",1,{"$f":"+IF(A111<>A110,VLOOKUP(A111,Bricks!A:D,4,FALSE),\"\"\"\")","v":"\""},null,"100058451.035"]
[10005845,"1.036",1,{"$f":"+IF(A112<>A111,VLOOKUP(A112,Bricks!A:D,4,FALSE),\"\"\"\")","v":"\""},null,"100058451.036"]
[10005845,"1.037",1,{"$f":"+IF(A113<>A112,VLOOKUP(A113,Bricks!A:D,4,FALSE),\"\"\"\")","v":"\""},null,"100058451.037"]
[10005845,"1.038",1,{"$f":"+IF(A114<>A113,VLOOKUP(A114,Bricks!A:D,4,FALSE),\"\"\"\")","v":"\""},null,"100058451.038"]
[10005845,"1.039",1,{"$f":"+IF(A115<>A114,VLOOKUP(A115,Bricks!A:D,4,FALSE),\"\"\"\")","v":"\""},null,"100058451.039"]
[10005845,"1.041",1,{"$f":"+IF(A116<>A115,VLOOKUP(A116,Bricks!A:D,4,FALSE),\"\"\"\")","v":"\""},null,"100058451.041"]
[10005845,"1.042",1,{"$f":"+IF(A117<>A116,VLOOKUP(A117,Bricks!A:D,4,FALSE),\"\"\"\")","v":"\""},null,"100058451.042"]
[10005845,"1.043",1,{"$f":"+IF(A118<>A117,VLOOKUP(A118,Bricks!A:D,4,FALSE),\"\"\"\")","v":"\""},null,"100058451.043"]
[10005845,"1.044",1,{"$f":"+IF(A119<>A118,VLOOKUP(A119,Bricks!A:D,4,FALSE),\"\"\"\")","v":"\""},null,"100058451.044"]
[10005845,"1.045",1,{"$f":"+IF(A120<>A119,VLOOKUP(A120,Bricks!A:D,4,FALSE),\"\"\"\")","v":"\""},null,"100058451.045"]
[10005845,"1.046",1,{"$f":"+IF(A121<>A120,VLOOKUP(A121,Bricks!A:D,4,FALSE),\"\"\"\")","v":"\""},null,"100058451.046"]
[10005845,"1.047",1,{"$f":"+IF(A122<>A121,VLOOKUP(A122,Bricks!A:D,4,FALSE),\"\"\"\")","v":"\""},null,"100058451.047"]
[10005845,"1.051",1,{"$f":"+IF(A123<>A122,VLOOKUP(A123,Bricks!A:D,4,FALSE),\"\"\"\")","v":"\""},null,"100058451.051"]
[10005845,"1.052",1,{"$f":"+IF(A124<>A123,VLOOKUP(A124,Bricks!A:D,4,FALSE),\"\"\"\")","v":"\""},null,"100058451.052"]
[10005845,"1.053",1,{"$f":"+IF(A125<>A124,VLOOKUP(A125,Bricks!A:D,4,FALSE),\"\"\"\")","v":"\""},null,"100058451.053"]
[10005845,"1.054",1,{"$f":"+IF(A126<>A125,VLOOKUP(A126,Bricks!A:D,4,FALSE),\"\"\"\")","v":"\""},null,"100058451.054"]
[10005845,"1.055",1,{"$f":"+IF(A127<>A126,VLOOKUP(A127,Bricks!A:D,4,FALSE),\"\"\"\")","v":"\""},null,"100058451.055"]
[10005845,"1.056",1,{"$f":"+IF(A128<>A127,VLOOKUP(A128,Bricks!A:D,4,FALSE),\"\"\"\")","v":"\""},null,"100058451.056"]
[10005845,"1.057",1,{"$f":"+IF(A129<>A128,VLOOKUP(A129,Bricks!A:D,4,FALSE),\"\"\"\")","v":"\""},null,"100058451.057"]
[10005845,"1.058",1,{"$f":"+IF(A130<>A129,VLOOKUP(A130,Bricks!A:D,4,FALSE),\"\"\"\")","v":"\""},null,"100058451.058"]
[10005845,"1.059",1,{"$f":"+IF(A131<>A130,VLOOKUP(A131,Bricks!A:D,4,FALSE),\"\"\"\")","v":"\""},null,{"$f":"+A131&B131","v":"100058451.059"}]
[10005845,"1.060",1,{"$f":"+IF(A132<>A131,VLOOKUP(A132,Bricks!A:D,4,FALSE),\"\"\"\")","v":"\""},null,"100058451.060"]
[10005845,"1.061",1,{"$f":"+IF(A133<>A132,VLOOKUP(A133,Bricks!A:D,4,FALSE),\"\"\"\")","v":"\""},null,"100058451.061"]
[10005845,"1.062",1,{"$f":"+IF(A134<>A133,VLOOKUP(A134,Bricks!A:D,4,FALSE),\"\"\"\")","v":"\""},null,"100058451.062"]
[10005845,"1.063",1,{"$f":"+IF(A135<>A134,VLOOKUP(A135,Bricks!A:D,4,FALSE),\"\"\"\")","v":"\""},null,"100058451.063"]
[10005845,"1.064",1,{"$f":"+IF(A136<>A135,VLOOKUP(A136,Bricks!A:D,4,FALSE),\"\"\"\")","v":"\""},null,"100058451.064"]
[10005845,"1.065",1,{"$f":"+IF(A137<>A136,VLOOKUP(A137,Bricks!A:D,4,FALSE),\"\"\"\")","v":"\""},null,"100058451.065"]
[10005845,"1.066",1,{"$f":"+IF(A138<>A137,VLOOKUP(A138,Bricks!A:D,4,FALSE),\"\"\"\")","v":"\""},null,"100058451.066"]
[10005845,"1.067",1,{"$f":"+IF(A139<>A138,VLOOKUP(A139,Bricks!A:D,4,FALSE),\"\"\"\")","v":"\""},null,"100058451.067"]
[10005845,"2.001",1,{"$f":"+IF(A140<>A139,VLOOKUP(A140,Bricks!A:D,4,FALSE),\"\"\"\")","v":"\""},null,"100058452.001"]
[10005845,"2.002",1,{"$f":"+IF(A141<>A140,VLOOKUP(A141,Bricks!A:D,4,FALSE),\"\"\"\")","v":"\""},null,"100058452.002"]
[10005845,"2.003",1,{"$f":"+IF(A142<>A141,VLOOKUP(A142,Bricks!A:D,4,FALSE),\"\"\"\")","v":"\""},null,"100058452.003"]
[10005845,"2.004",1,{"$f":"+IF(A143<>A142,VLOOKUP(A143,Bricks!A:D,4,FALSE),\"\"\"\")","v":"\""},null,"100058452.004"]
[10005845,"2.005",1,{"$f":"+IF(A144<>A143,VLOOKUP(A144,Bricks!A:D,4,FALSE),\"\"\"\")","v":"\""},null,"100058452.005"]
[10005845,"2.006",1,{"$f":"+IF(A145<>A144,VLOOKUP(A145,Bricks!A:D,4,FALSE),\"\"\"\")","v":"\""},null,"100058452.006"]
[10005845,"2.007",1,{"$f":"+IF(A146<>A145,VLOOKUP(A146,Bricks!A:D,4,FALSE),\"\"\"\")","v":"\""},null,"100058452.007"]
[10005845,"2.008",1,{"$f":"+IF(A147<>A146,VLOOKUP(A147,Bricks!A:D,4,FALSE),\"\"\"\")","v":"\""},null,"100058452.008"]
[10005845,"2.009",1,{"$f":"+IF(A148<>A147,VLOOKUP(A148,Bricks!A:D,4,FALSE),\"\"\"\")","v":"\""},null,"100058452.009"]
[10005845,"2.010",1,{"$f":"+IF(A149<>A148,VLOOKUP(A149,Bricks!A:D,4,FALSE),\"\"\"\")","v":"\""},null,"100058452.010"]
[10005845,"2.011",1,{"$f":"+IF(A150<>A149,VLOOKUP(A150,Bricks!A:D,4,FALSE),\"\"\"\")","v":"\""},null,"100058452.011"]
[10005845,"2.012",1,{"$f":"+IF(A151<>A150,VLOOKUP(A151,Bricks!A:D,4,FALSE),\"\"\"\")","v":"\""},null,"100058452.012"]
[10005845,"2.013",1,{"$f":"+IF(A152<>A151,VLOOKUP(A152,Bricks!A:D,4,FALSE),\"\"\"\")","v":"\""},null,"100058452.013"]
[10005845,"2.014",1,{"$f":"+IF(A153<>A152,VLOOKUP(A153,Bricks!A:D,4,FALSE),\"\"\"\")","v":"\""},null,"100058452.014"]
[10005845,"2.021",1,{"$f":"+IF(A154<>A153,VLOOKUP(A154,Bricks!A:D,4,FALSE),\"\"\"\")","v":"\""},null,"100058452.021"]
[10005845,"2.022",1,{"$f":"+IF(A155<>A154,VLOOKUP(A155,Bricks!A:D,4,FALSE),\"\"\"\")","v":"\""},null,"100058452.022"]
[10005845,"2.023",1,{"$f":"+IF(A156<>A155,VLOOKUP(A156,Bricks!A:D,4,FALSE),\"\"\"\")","v":"\""},null,"100058452.023"]
[10005845,"2.024",1,{"$f":"+IF(A157<>A156,VLOOKUP(A157,Bricks!A:D,4,FALSE),\"\"\"\")","v":"\""},null,"100058452.024"]
[10005845,"2.025",1,{"$f":"+IF(A158<>A157,VLOOKUP(A158,Bricks!A:D,4,FALSE),\"\"\"\")","v":"\""},null,"100058452.025"]
[10005845,"2.026",1,{"$f":"+IF(A159<>A158,VLOOKUP(A159,Bricks!A:D,4,FALSE),\"\"\"\")","v":"\""},null,"100058452.026"]
[10005845,"2.027",1,{"$f":"+IF(A160<>A159,VLOOKUP(A160,Bricks!A:D,4,FALSE),\"\"\"\")","v":"\""},null,"100058452.027"]
[10005845,"2.028",1,{"$f":"+IF(A161<>A160,VLOOKUP(A161,Bricks!A:D,4,FALSE),\"\"\"\")","v":"\""},null,"100058452.028"]
[10005845,"2.029",1,{"$f":"+IF(A162<>A161,VLOOKUP(A162,Bricks!A:D,4,FALSE),\"\"\"\")","v":"\""},null,"100058452.029"]
[10005845,"2.030",1,{"$f":"+IF(A163<>A162,VLOOKUP(A163,Bricks!A:D,4,FALSE),\"\"\"\")","v":"\""},null,{"$f":"+A163&B163","v":"100058452.030"}]

{"sheet":"Bricks","index":3,"n_rows":144,"n_cols":17,"rows_kept":144,"cut":false,"hidden":true,"merged":[]}
[null,null,null,"GS1 Data Source - Data attributes healthcare"]
[null,null,null,"Bricks"]
[]
["Brick Code","GZHZ","Brick Title","NL Brick Title","Brick Definition\n(Include)","NL Brick Definition\n(Include)","Brick Definition\n(Exclude)","NL Brick Definition\n(Exclude)","Segment Code","Segment Title","NL Segment Title","Family Code","Family Title","NL Family Title","Class Code","Class Title","NL Class Title"]
[10000458,"Yes","Disability Aids","Hulpmiddelen Invaliditeit","Includes any products that can be described/observed as a device or implement designed to assist people who have difficulty in standing or walking because of a foot or leg injury or general poor health.Products include Crutches, Walking Sticks and Frames, Wheel Chairs and Wheeled Walkers.","Omvat alle producten die kunnen worden beschreven/waargenomen als een apparaat of werktuig bedoeld om mensen te ondersteunen die moeite hebben met staan of lopen als gevolg van voet- of beenletsel of een algemene slechte gezondheid. De producten omvatten krukken, wandelstokken, looprekken, rolstoelen en rollators.","Excludes products such as Disability Aids obtained only by prescription or from a healthcare professional, Hearing Aids and Orthopaedic Footwear.","Exclusief producten zoals hulpmiddelen bij invaliditeit die alleen op doktersvoorschrift worden verkregen of afkomstig zijn van een zorgverlener, gehoorapparaten en orthopedisch schoeisel.",51000000,"Healthcare","Gezondheidszorg",51100000,"Health Treatments/Aids","Gezondheidsbehandelingen/-hulpmiddelen",51101500,"Personal Aids","Persoonlijke Hulpmiddelen"]
[10000570,"Yes","Personal Repellents","Persoonlijke Insectenwerende middelen","Includes any products that may be observed/described as a preparation specifically designed to repel insects and typically intended to control both flying and crawling to prevent insects from biting or having physical contact with the person using the repellent. These types of repellents are used on the body.Includes products such as Liquid, Creams, Patches.","Omvat alle producten die kunnen worden waargenomen/omschreven als een preparaat speciaal ontworpen om insecten, zowel vliegende als kruipende, af te weren om te voorkomen dat deze insecten bijten of fysiek contact hebben met de persoon die het middel gebruikt. Deze types van insectenwerende middelen worden gebruikt op het lichaam. Inclusief producten als vloeistoffen, crèmes, pleisters.","Excludes products such as Insect Bite Treatments, Non–Personal Repellents, Electrical Repellents, Insecticides, Rodenticides, Baits, Nets, Screens and Traps.","Exclusief producten zoals insektenbeetbehandelingen, niet-persoonlijke afweermiddelen, elektrische afweermiddelen, insecticiden, rattengif, aas, netten, schermen en vallen.",51000000,"Healthcare","Gezondheidszorg",51100000,"Health Treatments/Aids","Gezondheidsbehandelingen/-hulpmiddelen",51101500,"Personal Aids","Persoonlijke Hulpmiddelen"]
[10000686,"Yes","Personal Aids Variety Packs","Persoonlijke Hulpmiddelen – Assortimenten","Includes any products that can be described/observed as two or more distinct Personal Aid products sold together, which exist within the schema belonging to different bricks but to the same class, that is two or more products contained within the same pack which cross bricks within the Personal Aids class. Includes products such as Crutches and Insect Repellents sold together.Items that are received free with purchases should be removed from the classification decision–making process.","Omvat alle producten die kunnen worden waargenomen/omschreven als twee of meer verschillende persoonlijke hulpmiddelen die tezamen worden verkocht, die binnen het schema bestaan, maar bij verschillende bricks in dezelfde klasse behoren. Een voorbeeld is de gezamenlijke verkoop van krukken en insectenafweerproducten. Producten die gratis zijn, moeten buiten het beslissingsproces voor classificatie worden gelaten.","Excludes products such as Crutches and Vitamins variety packs and Personal Aids variety packs obtained only by prescription or from a healthcare professional.","Exclusief producten zoals assortimenten voor krukken en vitaminen, en assortimenten voor persoonlijke hulpmiddelen die alleen op doktersvoorschrift worden verkregen of afkomstig zijn van een zorgverlener.",51000000,"Healthcare","Gezondheidszorg",51100000,"Health Treatments/Aids","Gezondheidsbehandelingen/-hulpmiddelen",51101500,"Personal Aids","Persoonlijke Hulpmiddelen"]
[10000915,"Yes","Personal Aids Other","Persoonlijke Hulpmiddelen – Overig","Includes any products that can be described/observed as Personal Aids, where the user of the schema is not able to classify the product in existing bricks within the schema.","Omvat alle producten die kunnen worden waargenomen/omschreven als persoonlijke hulpmiddelen waarvan de gebruiker van het schema niet in staat is om het product in een van de bestaande bricks binnen het schema te classificeren.","Excludes all products currently classified within Personal Aids, Drug Administration Treatments, First Aid, Foot/Leg Care and Treatments, Habit Treatments, Sensory Organs Care and Treatments, Home Diagnostics and Personal Aids obtained only by prescription or from a healthcare professional'.","Exclusief alle producten die op dit moment zijn geclassificeerd in het schema, en persoonlijke hulpmiddelen assortimenten die alleen op doktersvoorschrift worden verkregen of afkomstig zijn van een zorgverlener.",51000000,"Healthcare","Gezondheidszorg",51100000,"Health Treatments/Aids","Gezondheidsbehandelingen/-hulpmiddelen",51101500,"Personal Aids","Persoonlijke Hulpmiddelen"]
[10000456,"Yes","Drug Administration","Geneesmiddelentoediening","Includes any products that can be described/observed as a medical device designed to inject fluids or powders into the body or used for the inhalation or irrigation of various body organs. Includes products such as Syringes and Needles.","Omvat alle producten die kunnen worden beschreven/waargenomen als een medisch apparaat bedoeld om vloeistoffen of poeders in het lichaam te brengen of gebruikt voor het inhaleren of doorspoelen van diverse organen. Inclusief producten als spuiten en naalden.","Excludes products such as drug administration items obtained only by prescription or from a healthcare professional, Prefilled Syringes and Needle Covers, Enemas and Enema Tips, and Stop Corks.","Exclusief producten zoals geneesmiddelentoediening die alleen op doktersvoorschrift wordt verkregen of afkomstig zijn van een zorgverlener, voorgevulde spuiten en naaldbeschermers, klysma's en stopkurken.",51000000,"Healthcare","Gezondheidszorg",51100000,"Health Treatments/Aids","Gezondheidsbehandelingen/-hulpmiddelen",51101600,"Drug Administration","Geneesmiddelentoediening"]
[10000457,"Yes","Drug Administration – Accessories","Geneesmiddelentoediening – Accessoires","Includes any products that can be described/observed as a medical device, specifically designed to assist in drug administration. Products include Enema Tips, Needle Covers, Enema Stop Corks, Irrigation Cans and Tubes, Syringe Boxes.","Omvat alle producten die kunnen worden beschreven/waargenomen als een medisch apparaat speciaal ontworpen om te helpen bij de toediening van geneesmiddelen. Inclusief producten als klysmaslangen, naaldbeschermers, stopkurken, doorspoelslangen en spuitdozen.","Excludes products such as drug administration accessories obtained only by prescription or from a healthcare professional, Enemas, Irrigators, Syringes and Needles.","Exclusief producten zoals accessoires voor geneesmiddelentoediening die alleen op doktersvoorschrift worden verkregen of afkomstig zijn van een zorgverlener, klysma's, injectiespuiten en naalden.",51000000,"Healthcare","Gezondheidszorg",51100000,"Health Treatments/Aids","Gezondheidsbehandelingen/-hulpmiddelen",51101600,"Drug Administration","Geneesmiddelentoediening"]
[10000681,"Yes","Drug Administration Variety Packs","Geneesmiddelentoediening – Assortimenten","Includes any products that can be described/observed as two or more distinct Drug Administration products sold together, which exist within the schema belonging to different bricks but to the same class, that is two or more products contained within the same pack which cross bricks within the Drug Administration class. Includes products such as Needles and Needle Cases sold together.Items that are received free with purchases should be removed from the classification decision–making process.","Omvat alle producten die kunnen worden waargenomen/omschreven als twee of meer verschillende producten voor geneesmiddelentoediening die tezamen worden verkocht, die binnen het schema bestaan, maar bij verschillende bricks in dezelfde klasse behoren. Een voorbeeld is de gezamenlijke verkoop van naalden en naaldbeschermers. Producten die gratis zijn, moeten buiten het beslissingsproces voor classificatie worden gelaten.","Excludes products such as Enemas and Appetite Suppressant variety packs and Drug Administration variety packs obtained only by prescription or from a healthcare professional.","Exclusief producten zoals assortimenten voor klysma's en hongeronderdrukking, en assortimenten voor geneesmiddelentoediening die alleen op doktersvoorschrift worden verkregen of afkomstig zijn van een zorgverlener.",51000000,"Healthcare","Gezondheidszorg",51100000,"Health Treatments/Aids","Gezondheidsbehandelingen/-hulpmiddelen",51101600,"Drug Administration","Geneesmiddelentoediening"]
[10000912,"Yes","Drug Administration – Replacement Parts","Geneesmiddelentoediening – Onderdelen","Includes any products that can be described/observed as replacement parts for Drug Administration products.Includes products such as Nebuliser Hoses and Masks.","Omvat alle producten die kunnen worden waargenomen/omschreven als onderdelen voor producten voor geneesmiddelentoediening. Inclusief producten als slangen en maskers voor vernevelaars.","Excludes products such as Batteries and Plugs, all other Drug Administration products currently catered for within the Drug Administration class, as well as all First Aid products.","Exclusief producten zoals batterijen en pluggen, alle andere producten voor geneesmiddelentoediening die op dit moment verzorgd worden binnen de geneesmiddelentoediening klasse, evenals eerste hulp producten.",51000000,"Healthcare","Gezondheidszorg",51100000,"Health Treatments/Aids","Gezondheidsbehandelingen/-hulpmiddelen",51101600,"Drug Administration","Geneesmiddelentoediening"]
[10000922,"Yes","Drug Administration Other","Geneesmiddelentoediening – Overig","Includes any products that can be described/observed as Drug Administration products, where the user of the schema is not able to classify the product in existing bricks within the schema.","Omvat alle producten die kunnen worden waargenomen/omschreven als producten voor geneesmiddelentoediening, waarvan de gebruiker van het schema niet in staat is om het product in een van de bestaande bricks binnen het schema te classificeren.","Excludes all products currently classified as Drug Administration, First Aid Treatments, Habit Treatments, Sensory Organs Care and Treatments, Personal Aids, Home Diagnostics and Drug Administration products obtained only by prescription or from a healthcare professional.","Exclusief alle producten die op dit moment zijn geclassificeerd in het schema, en producten voor geneesmiddelentoediening die alleen op doktersvoorschrift worden verkregen of afkomstig zijn van een zorgverlener.",51000000,"Healthcare","Gezondheidszorg",51100000,"Health Treatments/Aids","Gezondheidsbehandelingen/-hulpmiddelen",51101600,"Drug Administration","Geneesmiddelentoediening"]
[10000448,"Yes","First Aid – Dressings/Bandages/Plaster","Eerste Hulp – Verbandmateriaal/Verbanden/Gips","Includes any products that can be described/observed as a strip or square of cloth or similar material, which can be self adhesive, that is used as a protective dressing for a wound or sore.Available in various sizes and shapes and can be medicated.","Omvat alle producten die kunnen worden omschreven/waargenomen als een strip of vierkante doek of soortgelijk materiaal die zelfklevend kan zijn, die wordt gebruikt als een beschermend verband voor een wond of pijnlijke plek. Beschikbaar in verschillende maten en vormen, en kan op medisch voorschrift zijn.","Excludes products such as Dressings, Bandages and Plasters obtained only by prescription or from a healthcare professional, Slings, Supports and First Aid Accessories.","Exclusief producten zoals verbandmateriaal, verbanden en gips die alleen op doktersvoorschrift worden verkregen of afkomstig zijn van een zorgverlener, mitella's, hulpstukken en eerste hulp accessoires.",51000000,"Healthcare","Gezondheidszorg",51100000,"Health Treatments/Aids","Gezondheidsbehandelingen/-hulpmiddelen",51101700,"First Aid","Eerste Hulp"]
[10000449,"Yes","First Aid – Accessories","Eerste Hulp – Accessoires","Includes any products that can be described/observed as a first aid accessory, specifically designed to be used in conjunction with first aid products to enhance or supplement the safety, comfort and convenience of the patient.","Omvat alle producten die kunnen worden omschreven/waargenomen als een eerste hulp accessoire, speciaal ontworpen om te worden gebruikt in combinatie met eerste hulp producten om de veiligheid, het comfort en het gemak van de patiënt te verbeteren of aan te vullen.","Excludes products such as First Aid Accessories obtained only by prescription or from a healthcare professional, Dressings, Bandages and Plasters.","Exclusief producten zoals eerste hulp accessoires die alleen op doktersvoorschrift worden verkregen of afkomstig zijn van een zorgverlener, verbandmateriaal, verbanden en gips.",51000000,"Healthcare","Gezondheidszorg",51100000,"Health Treatments/Aids","Gezondheidsbehandelingen/-hulpmiddelen",51101700,"First Aid","Eerste Hulp"]
[10000450,"Yes","First Aid – Sling/Support","Eerste Hulp – Mitella/Hulpmiddel","Includes any products that can be described/observed as a support that is used to totally or partially to immobilise an injury or to prevent the recurrence of an injury.Includes products made from a very high–density foam, nylon, spandex or polyester stretch fabric. Also includes products that are available in various shapes and sizes and splints.","Omvat alle producten die kunnen worden omschreven/waargenomen als een hulpmiddel dat wordt gebruikt om geheel of gedeeltelijk een verwonding te immobiliseren of om de herhaling van een verwonding te voorkomen. Bevat producten van een zeer high-density schuimrubber, nylon, elasthaan of polyester stretchstof. Bevat ook producten die beschikbaar zijn in verscheidene vormen en maten, en spalken.","Excludes products such as Slings and Supports obtained only by prescription or from a healthcare professional, Bandages and Plasters.","Exclusief producten zoals mitella's en hulpmiddelen die alleen op doktersvoorschrift worden verkregen of afkomstig zijn van een zorgverlener, verbanden en gips.",51000000,"Healthcare","Gezondheidszorg",51100000,"Health Treatments/Aids","Gezondheidsbehandelingen/-hulpmiddelen",51101700,"First Aid","Eerste Hulp"]
[10000451,"Yes","Ice/Heated Pack","IJs-/Verwarmingszak","Includes any products that can be described/observed as a fluid or gel–filled pack which can be cooled or heated for use in the assistance of pain relief and administering first aid, for example, for acute pain and swelling following injury.Products are available in various shapes and sizes which can be moulded to cover the affected area. Products include those with a self heating mechanism.","Omvat alle producten die kunnen worden omschreven/waargenomen als een pak, gevuld met een vloeistof of gel, dat kan worden gekoeld of verwarmd voor gebruik bij pijnbestrijding en bij eerste hulp, bijvoorbeeld bij acute pijn en zwelling na een blessure. Het product is beschikbaar is verschillende vormen en grootten en kan gevouwen worden om het bewuste gebied af te dekken. Bevat ook producten met een automatisch verwarmend mechanisme.","Excludes products such as Ice/Heated Packs obtained only by prescription or from a healthcare professional,Hot Water Bottles, Plasters, Bandages, Slings and Supports, Personal Warmers not intended for first aid purposes.","Exclusief producten zoals ijs- of verwarmingszakken die alleen op doktersvoorschrift worden verkregen of afkomstig zijn van een zorgverlener, kruiken, pleisters, verbanden, mitella's en hulpmiddelen, en persoonlijke verwarming die niet bedoeld is voor eerste hulp doeleinden.",51000000,"Healthcare","Gezondheidszorg",51100000,"Health Treatments/Aids","Gezondheidsbehandelingen/-hulpmiddelen",51101700,"First Aid","Eerste Hulp"]
[10000684,"Yes","First Aid Variety Packs","Eerste Hulp – Assortimenten","Includes any products that can be described/observed as two or more distinct First Aid products sold together, which exist within the schema belonging to different bricks but to the same class, that is two or more products contained within the same pack which cross bricks within the First Aid class. Includes products such as Slings and Textile Bandages sold together.Items that are received free with purchases should be removed from the classification decision–making process.","Omvat alle producten die kunnen worden waargenomen/omschreven als twee of meer verschillende producten voor eerste hulp die tezamen worden verkocht, die binnen het schema bestaan, maar bij verschillende bricks in dezelfde klasse behoren. Een voorbeeld is de gezamenlijke verkoop van een mitella en bandages. Producten die gratis zijn, moeten buiten het beslissingsproces voor classificatie worden gelaten.","Excludes products such as Plasters and Vitamins variety packs and First Aid variety packs obtained only by prescription or from a healthcare professional.","Exclusief producten zoals assortimenten voor pleisters en vitaminen, en assortimenten voor eerste hulp die alleen op doktersvoorschrift worden verkregen of afkomstig zijn van een zorgverlener.",51000000,"Healthcare","Gezondheidszorg",51100000,"Health Treatments/Aids","Gezondheidsbehandelingen/-hulpmiddelen",51101700,"First Aid","Eerste Hulp"]
[10000908,"Yes","First Aid Other","Eerste Hulp – Overig","Includes any products that can be described/observed as First Aid products, where the user of the schema is not able to classify the product in existing bricks within the schema.","Omvat alle producten die kunnen worden waargenomen/omschreven als eerste hulp middel, waarvan de gebruiker van het schema niet in staat is om het product in een van de bestaande bricks binnen het schema te classificeren.","Excludes all products currently classified as First Aid such as Bandages, Slings, First Aid products obtained only by prescription or from a healthcare professional, Drug Administration Treatments, Habit Treatments, Sensory Organs Care and Treatments, Personal Aids and Home Diagnostics.","Exclusief alle producten die op dit moment zijn geclassificeerd in het schema, en producten voor eerste hulp die alleen op doktersvoorschrift worden verkregen of afkomstig zijn van een zorgverlener.",51000000,"Healthcare","Gezondheidszorg",51100000,"Health Treatments/Aids","Gezondheidsbehandelingen/-hulpmiddelen",51101700,"First Aid","Eerste Hulp"]
[10000909,"Yes","Poison Removal/Treatment Products","Producten voor het Verwijderen/Behandelen van Gif","Includes any products that can be described/observed as those which neutralise poison that has been injected into the body by poisonous animals such as bees, scorpions, jellyfish, mosquitoes, snakes, spiders and/or plants such as stinging plants.Includes products such as Syringes, Tablet Remedies, Powder Remedies, Liquid Remedies, Lotion Remedies and Cream Remedies.","Omvat alle producten die kunnen worden omschreven/waargenomen als producten om het gif te neutraliseren dat in het lichaam geïnjecteerd is door giftige dieren als bijen, schorpioenen, kwallen, muggen, slangen, spinnen en/of planten zoals stekende planten. Bevat producten als spuiten, pillen, poeders, vloeistoffen, lotions en crèmes.","Excludes products such as all Poison Removal products obtained only by prescription or from a healthcare professional and all Insect Bite Relief/Repellent used to repel insects.","Exclusief producten zoals producten voor het verwijderen van gif die alleen op doktersvoorschrift worden verkregen of afkomstig zijn van een zorgverlener, en alle anti-insectenbeet producten die bedoeld zijn om insecten af te weren.",51000000,"Healthcare","Gezondheidszorg",51100000,"Health Treatments/Aids","Gezondheidsbehandelingen/-hulpmiddelen",51101700,"First Aid","Eerste Hulp"]
[10000910,"Yes","Sterilisers/Surgical Spirits","Sterilisatoren/Heelkundige Alcohol","Includes any products that can be described/observed as sterilisers that clean and kill bacteria and germs. Products included are specifically intended for use on the skin or body, but may have additional uses such as preparing instruments like hypodermic needles and earrings prior to insertion in the skin. Sterilisers and surgical spirits are used prior to any additional treatment such as antiseptic.Includes products such as Powder Sterilisers, Tablet Sterilisers, Liquid Sterilisers.","Omvat alle producten die kunnen worden omschreven/waargenomen als sterilisatoren die schoonmaken en bacteriën en ziektekiemen doden. Opgenomen producten zijn specifiek bedoeld voor gebruik op de huid of het lichaam, maar kunnen ook gebruikt worden voor het voorbereiden van instrumenten zoals injectienaalden en oorbellen vóór het inbrengen in de huid hebben. Sterilisatoren en heelkundige alcohol worden gebruikt voorafgaand aan eventuele aanvullende behandeling, zoals antiseptica. Bevat producten als poeders, tabletten en vloeistoffen.","Specifically excludes hand sanitizers and antiseptics as well as products not intended for use on the skin or body such as General Household Bleach, which is used around the home to clean floors/bathrooms/kitchen worktops and Baby Bottle Sterilising Systems that are used to sterilise baby feeding equipment/bottles.Excludes products such as topical Surgical Spirits obtained only by prescription or from a healthcare professional and any Antiseptics used to treat wounds and/or kill germs and bacteria.","Sluit specifiek hand desinfecterende middelen en antiseptica uit, alsook producten die niet bedoeld zijn voor gebruik op de huid of lichaam, zoals huishoud bleekmiddel, dat wordt gebruikt om in huis de vloeren / badkamer / keuken schoon te maken en zuigfles sterilisatiesystemen die gebruikt worden om de babyvoedingsapparatuur/-flessen te steriliseren. Exclusief producten zoals medicinale alcohol die alleen op doktersvoorschrift worden verkregen of afkomstig zijn van een zorgverlener, en alle antiseptica die bedoeld zijn om wonden te behandelen en/of bacteriën en ziektekiemen te doden.",51000000,"Healthcare","Gezondheidszorg",51100000,"Health Treatments/Aids","Gezondheidsbehandelingen/-hulpmiddelen",51101700,"First Aid","Eerste Hulp"]
[10000474,"Yes","Therapeutic Hosiery","Therapeutische Kousen","Includes any products that can be described/observed as stockings, tights or socks, specifically designed for therapeutic purposes. Products include medicated hosiery, such as verucca or anti–fungal socks and those designed to promote blood circulation through the compression of the legs, in order to treat and/or prevent the symptoms of varicose veins and those that can be used as a therapy for tired legs.Includes products designed for male and female use. Products are specifically marketed as being therapeutic.","Omvat alle producten die kunnen worden omschreven/waargenomen als kousen, panty's of sokken, speciaal voor therapeutische doeleinden. Deze producten omvatten ook medicinale kousen, zoals wratten- of schimmelwerende sokken, kousen die de bloedsomloop bevorderen door de compressie van de benen voor het behandelen en/of voorkomen van de symptomen van spataderen, en kousen die kunnen worden gebruikt als een therapie voor vermoeide benen. Deze producten kunnen gebruikt worden door mannen en vrouwen. Producten zijn speciaal op de markt gebracht als zijnde therapeutisch.","Excludes products such as Therapeutic Hosiery obtained only by prescription or from a healthcare professional, also Non–Therapeutic Hosiery.","Exclusief producten zoals therapeutische kousen die alleen op doktersvoorschrift worden verkregen of afkomstig zijn van een zorgverlener, en alle niet-therapeutische kousen.",51000000,"Healthcare","Gezondheidszorg",51100000,"Health Treatments/Aids","Gezondheidsbehandelingen/-hulpmiddelen",51101800,"Foot/Leg Care/Treatments","Voet/Been Verzorging/Behandeling"]
[10000488,"Yes","Medicated/Orthopaedic Footwear","Geneeskundig/Orthopedisch Schoeisel","Includes any products that can be described/observed as specialised footwear specifically designed to treat orthopaedic ailments, and typically intended to relieve pain and discomfort in the skeletal system and associated muscles, joints, and ligaments by offering greater torsional rigidity and extra depth within the shoe. Products include Orthopaedic or Shock Absorbent Insoles, designed to be inserted into normal footwear and removed according to individual need. Products also include Medicated and Antiseptic Insoles.","Omvat alle producten die kunnen worden omschreven/waargenomen als speciaal schoeisel specifiek ontworpen voor de behandeling van orthopedische kwalen, en typisch bedoeld om pijn en ongemak in de botten en bijbehorende spieren, gewrichten en bindweefsel te verlichten, door grotere torsiestijfheid en extra diepte in de schoen. Producten zijn onder andere orthopedische of schok- absorberende inlegzolen, ontworpen om te worden ingebracht in normale schoenen en te worden verwijderd op individuele behoefte. Producten omvatten ook medicinale en antiseptische inlegzolen.","Excludes products such as normal Footwear that has an orthopaedic function and are designed to just alleviate symptoms rather than to treat a particular ailment and Foot Deodorizing Insoles.","Exclusief producten zoals normaal schoeisel met een orthopedische functie die zijn ontworpen om alleen de symptomen te verlichten in plaats van een bepaalde kwaal te behandelen, en antigeur inlegzolen (geurvreters).",51000000,"Healthcare","Gezondheidszorg",51100000,"Health Treatments/Aids","Gezondheidsbehandelingen/-hulpmiddelen",51101800,"Foot/Leg Care/Treatments","Voet/Been Verzorging/Behandeling"]
[10000489,"Yes","Foot Care/Hygiene Aids","Hulpmiddelen voor Voetverzorging/Hygiëne","Includes any products that can be described/observed as a device or implement designed to assist the removal of rough, hard or dry skin from various areas of the feet or to remove corns or calluses.Specifically","Omvat alle producten die kunnen worden omschreven/waargenomen als een apparaat of werktuig ter verwijdering van ruwe, harde of droge huid van verschillende gebieden van de voeten, ter verwijdering van likdoorns of overmatige eeltvorming.","excludes treatments and preparations such as Cream Remedies, Liquid Remedies that are used to treat and remove corns and calluses.Excludes products such as Foot Care and Hygiene Aids obtained only by perscription or from a healthcare professional, Nail Care, Manicure and Pedicure Aids.","Sluit specifiek behandelingen en preparaten zoals crèmes en vloeistoffen uit die gebruikt worden voor de behandeling en verwijdering van likdoorns en overmatig eelt. Exclusief hulpmiddelen voor voetverzorging en -hygiëne die alleen op doktersvoorschrift worden verkregen of afkomstig zijn van een zorgverlener, nagelverzorgingsproducten, manicure en pedicure hulpmiddelen.",51000000,"Healthcare","Gezondheidszorg",51100000,"Health Treatments/Aids","Gezondheidsbehandelingen/-hulpmiddelen",51101800,"Foot/Leg Care/Treatments","Voet/Been Verzorging/Behandeling"]
[10000685,"Yes","Foot/Leg Care/Treatments Variety Packs","Voet/Been Verzorging/Behandeling – Assortimenten","Includes any products that can be described/observed as two or more distinct Foot/Leg Care and Treatment products sold together, which exist within the schema belonging to different bricks but to the same class, that is two or more products contained within the same pack which cross bricks within the Foot/Leg Care and Treatments class. Includes products such as Pumice Stones and Medicated Insoles sold together.Items that are received free with purchases should be removed from the classification decision–making process.","Omvat alle producten die kunnen worden waargenomen/omschreven als twee of meer verschillende producten voor voet of been behandeling of verzorging die tezamen worden verkocht, die binnen het schema bestaan, maar bij verschillende bricks in dezelfde klasse behoren. Een voorbeeld is de gezamenlijke verkoop van puimsteen en medicinale inlegzolen. Producten die gratis zijn, moeten buiten het beslissingsproces voor classificatie worden gelaten.","Excludes products such as Pumice Stones and Vitamins variety packs and Foot/Leg Care and Treatments variety packs obtained only by prescription or from a healthcare professional.","Exclusief producten zoals assortimenten voor puimsteen en vitaminen, en assortimenten voor verzorging of behandeling van voet of been die alleen op doktersvoorschrift worden verkregen of afkomstig zijn van een zorgverlener.",51000000,"Healthcare","Gezondheidszorg",51100000,"Health Treatments/Aids","Gezondheidsbehandelingen/-hulpmiddelen",51101800,"Foot/Leg Care/Treatments","Voet/Been Verzorging/Behandeling"]
[10000907,"Yes","Foot/Leg Care/Treatments Other","Voet/Been Verzorging/Behandeling – Overig","Includes any products that can be described/observed as Foot/Leg Care and Treatments, where the user of the schema is not able to classify the product in existing bricks within the schema.","Omvat alle producten die kunnen worden waargenomen/omschreven als verzorgings- of behandelingsmiddel voor voet en/of been, waarvan de gebruiker van het schema niet in staat is om het product in een van de bestaande bricks binnen het schema te classificeren.","Excludes all products classified as Drug Administration Treatments, First Aid Treatments, Personal Aids, Home Diagnostics and Foot/Leg Care and Treatments obtained only by prescription or from a healthcare professional.","Exclusief alle producten die op dit moment zijn geclassificeerd in het schema, en producten voor verzorging of behandeling van voet en/of been die alleen op doktersvoorschrift worden verkregen of afkomstig zijn van een zorgverlener.",51000000,"Healthcare","Gezondheidszorg",51100000,"Health Treatments/Aids","Gezondheidsbehandelingen/-hulpmiddelen",51101800,"Foot/Leg Care/Treatments","Voet/Been Verzorging/Behandeling"]
[10000459,"Yes","Habit Treatment","Behandeling tegen Verslavingen","Includes any products that can be described/observed as a preparation, medication or device, specifically designed to combat undesirable habits or to prevent, treat or alleviate the symptoms associated with breaking undesired habits.Includes products such as all Anti–Alcoholic Treatments and Anti–Nail Biting Liquid.","Omvat alle producten die kunnen worden waargenomen/omschreven als een preparaat, medicatie of apparaat, specifiek ontworpen om ongewenste gewoonten te bestrijden, of om symptomen te voorkomen, te behandelen of te verlichten die geassocieerd worden met ongewenste gewoonten. Bevat producten zoals alle anti-alcohol behandelingen en anti-nagelbijten vloeistoffen.","Excludes products such as Habit Treatments obtained only by prescription or from a healthcare professional and Anti–Smoking Treatments.","Exclusief producten zoals behandelingen tegen verslavingen die alleen op doktersvoorschrift worden verkregen of afkomstig zijn van een zorgverlener, en anti-rook behandelingen.",51000000,"Healthcare","Gezondheidszorg",51100000,"Health Treatments/Aids","Gezondheidsbehandelingen/-hulpmiddelen",51101900,"Habit Treatment","Behandeling tegen Verslavingen"]
[10000682,"Yes","Anti-smoking Aids","Anti-rook Hulpmiddelen","Includes any products that can be described/observed as a preparation or device used to aid the process of giving up smoking.Includes products such as Nicotine Patches intended to be placed on the surface of the body, Chewing Gums, Flavoured Confectionery and Tablets.","Omvat alle producten die kunnen worden waargenomen/omschreven als een preparaat of apparaat gebruikt om te helpen bij het proces van stoppen met roken. Bevat producten zoals nicotine pleisters bedoeld om op het lichaam te plaatsen, kauwgom, zoetwaren en pillen.","Excludes products such as Anti–Smoking Aids obtained only by prescription or from a health professional and products such as Chewing Gums and other Confectionery not specifically described as an Anti–Smoking Aid.","Exclusief producten zoals anti-rook hulpmiddelen die alleen op doktersvoorschrift worden verkregen of afkomstig zijn van een zorgverlener, en producten als kauwgom en overige zoetwaren die niet specifiek als een anti-rook hulpmiddel zijn beschreven.",51000000,"Healthcare","Gezondheidszorg",51100000,"Health Treatments/Aids","Gezondheidsbehandelingen/-hulpmiddelen",51101900,"Habit Treatment","Behandeling tegen Verslavingen"]
[10000690,"Yes","Habit Treatment Variety Packs","Behandeling tegen Verslaving – Assortimenten","Includes any products that can be described/observed as two or more distinct Habit Treatment products sold together, which exist within the schema belonging to different bricks but to the same class, that is two or more products contained within the same pack which cross bricks within the Habit Treatment class. Includes products such as Artificial Cigarettes and Nail Biting Treatments sold together.Items that are received free with purchases should be removed from the classification decision–making process.","Omvat alle producten die kunnen worden waargenomen/omschreven als twee of meer verschillende verslavingsbehandelingen of ontwenningskuren die tezamen worden verkocht, die binnen het schema bestaan, maar bij verschillende bricks in dezelfde klasse behoren. Een voorbeeld is de gezamenlijke verkoop van kunstmatige sigaretten en een anti-nagelbijtmiddel. Producten die gratis zijn, moeten buiten het beslissingsproces voor classificatie worden gelaten.","Excludes products such as Nail Biting Treatments and Nutritional Supplements variety packs and Habit Treatment variety packs obtained only by prescription or from a healthcare professional.","Exclusief producten zoals assortimenten voor anti-nagelbijtbehandelingen en voedingssupplementen, en assortimenten voor behandeling tegen verslaving die alleen op doktersvoorschrift worden verkregen of afkomstig zijn van een zorgverlener.",51000000,"Healthcare","Gezondheidszorg",51100000,"Health Treatments/Aids","Gezondheidsbehandelingen/-hulpmiddelen",51101900,"Habit Treatment","Behandeling tegen Verslavingen"]
[10000487,"Yes","Hearing Aids","Gehoorhulpmiddelen","Includes any products that can be described/observed as a small electronic apparatus that amplifies sound and is worn in or behind the ear to compensate for impaired hearing. Products include programmable, digital and conventional Hearing Aids.Products can be worn behind the ear, in the ear or completely inside the ear canal.","Omvat alle producten die kunnen worden waargenomen/omschreven als een klein elektronisch apparaat dat het geluid versterkt en gedragen wordt in of achter het oor om gehoorbeschadiging te compenseren. Bevat producten zoals programmeerbare, digitale en conventionele gehoorhulpmiddelen. Producten kunnen gedragen worden achter het oor, in het oor of geheel in de gehoorgang.","Excludes products such as Hearing Aids obtained only by prescription or from a healthcare professional and Ear Plugs.","Exclusief producten zoals gehoorhulpmiddelen die alleen op doktersvoorschrift worden verkregen of afkomstig zijn van een zorgverlener, en oordoppen.",51000000,"Healthcare","Gezondheidszorg",51100000,"Health Treatments/Aids","Gezondheidsbehandelingen/-hulpmiddelen",51102100,"Sensory Organs Care/Treatments","Verzorging/Behandeling van Zintuigen"]
[10000525,"Yes","Ear Preparations","Oorpreparaten","Includes any products that can be described/observed as a healthcare item, preparation or medication specifically designed to prevent, treat or alleviate ailments or disorders involving the ear.Includes synthetic products.Specifically","Omvat alle producten die kunnen worden waargenomen/omschreven als een gezondheidsitem, preparaat of medicatie, specifiek ontworpen om stoornissen of aandoeningen van het oor te voorkomen, behandelen of verlichten. Inclusief synthetische producten.","excludes Wax Removal Candles and Wax Removal preparations.Excludes products such as Ear Preparations obtained only by prescription or from a healthcare professional and other healthcare products aimed at other areas of the body.","Sluit specifiek wattenstaafjes en preparaten voor het verwijderen van oorsmeer uit. Exclusief producten zoals gehoorpreparaten die alleen op doktersvoorschrift worden verkregen of afkomstig zijn van een zorgverlener, en overige gezondheidsproducten die gericht zijn op andere gebieden van het lichaam.",51000000,"Healthcare","Gezondheidszorg",51100000,"Health Treatments/Aids","Gezondheidsbehandelingen/-hulpmiddelen",51102100,"Sensory Organs Care/Treatments","Verzorging/Behandeling van Zintuigen"]
[10000526,"Yes","Eye Preparations","Oogpreparaten","Includes any products that can be described/observed as a healthcare item, preparation or medication specifically designed to prevent, treat or alleviate ailments or disorders involving the eye.Includes synthetic products.","Omvat alle producten die kunnen worden waargenomen/omschreven als een gezondheidsitem, preparaat of medicatie, specifiek ontworpen om stoornissen of aandoeningen van het oog te voorkomen, behandelen of verlichten. Inclusief synthetische producten.","Excludes products such as Eye Preparations obtained only by prescription or from a healthcare professional and other Healthcare products aimed at other areas of the body.","Exclusief producten zoals oogpreparaten die alleen op doktersvoorschrift worden verkregen of afkomstig zijn van een zorgverlener, en overige gezondheidsproducten die gericht zijn op andere gebieden van het lichaam.",51000000,"Healthcare","Gezondheidszorg",51100000,"Health Treatments/Aids","Gezondheidsbehandelingen/-hulpmiddelen",51102100,"Sensory Organs Care/Treatments","Verzorging/Behandeling van Zintuigen"]
[10000527,"Yes","Optic Appliances Care – Contact Lenses","Verzorgingsproductenvoor Contactlenzen","Includes any products that can be described/observed as a cream, gel or liquid that is employed for the cleaning and care of all types of contact lenses and products which protect and care for contact lenses such as specific cases.","Omvat alle producten die kunnen worden waargenomen/omschreven als een crème, gel of vloeistof die wordt gebruikt voor het reinigen en verzorgen van alle soorten contactlenzen, en producten die contactlenzen beschermen en verzorgen zoals specifieke doosjes.","Excludes products such as Contact Lens Care Preparations/Cases obtained only by prescription or from a healthcare professional, Contact Lenses, all Eye Preparations and Spectacle Care and Accessory products.","Exclusief verzorgingsproducten voor contactlenzen die alleen op doktersvoorschrift worden verkregen of afkomstig zijn van een zorgverlener, contactlenzen, oogpreparaten en verzorgingsproducten voor brillen.",51000000,"Healthcare","Gezondheidszorg",51100000,"Health Treatments/Aids","Gezondheidsbehandelingen/-hulpmiddelen",51102100,"Sensory Organs Care/Treatments","Verzorging/Behandeling van Zintuigen"]
[10000528,"Yes","Optic Appliances – Spectacles – Ready To Wear","Brillen – Klaar voor Gebruik","Includes any products that can be described/observed as an optical instrument specifically designed to aid and correct defective eyesight, and typically composed of a pair of lenses mounted within a frame that is worn by the user so as to position the lenses immediately in front of the eyes.Includes only complete Spectacles which are ready to wear.","Omvat alle producten die kunnen worden waargenomen/omschreven als een optisch instrument specifiek bedoeld om te helpen en te corrigeren bij slecht gezichtsvermogen, en typisch samengesteld uit een tweetal lenzen gemonteerd in een montuur dat door de gebruiker wordt gedragen om aldus de lenzen direct voor de ogen te plaatsen. Bevat alleen complete brillen die klaar voor gebruik zijn.","Excludes products such as Ready to Wear Spectacles obtained only by prescription or from a healthcare professional, Sunglasses, Spectacle Lenses, Spectacle Frames, Contact Lenses and Magnifying Glasses.","Exclusief producten zoals kant-en-klare brillen die alleen op doktersvoorschrift worden verkregen of afkomstig zijn van een zorgverlener, zonnebrillen, brillenglazen, monturen, contactlenzen en vergrootglazen.",51000000,"Healthcare","Gezondheidszorg",51100000,"Health Treatments/Aids","Gezondheidsbehandelingen/-hulpmiddelen",51102100,"Sensory Organs Care/Treatments","Verzorging/Behandeling van Zintuigen"]
[10000529,"Yes","Optic Appliances – Contact Lenses","Contactlenzen","Includes any products that can be described/observed as a pair of very thin, circular optical lenses, specifically designed to aid and correct defective eyesight, and typically shaped to fit directly over the cornea of the eye.Products include Daily Wear Contact Lenses, disposable Contact Lenses, Extended Wear Contact Lenses, Soft Contact Lenses and Rigid Gas Permeable Lenses.","Omvat alle producten die kunnen worden waargenomen/omschreven als een paar zeer dunne, ronde optische lenzen specifiek bedoeld om te helpen en te corrigeren bij slecht gezichtsvermogen, en typisch gevormd om direct op het hoornvlies te plaatsen. Producten bevatten daily wear lenzen, wegwerplenzen, extended wear lenzen, zachte contactlenzen en vormstabiele (RGP) lenzen.","Excludes products such as Contact Lenses obtained only by prescription or from a healthcare professional, Spectacles, Sunglasses and Optic Appliances Care.","Exclusief producten zoals contactlenzen die alleen op doktersvoorschrift worden verkregen of afkomstig zijn van een zorgverlener, brillen, zonnebrillen en verzorgingsproducten.",51000000,"Healthcare","Gezondheidszorg",51100000,"Health Treatments/Aids","Gezondheidsbehandelingen/-hulpmiddelen",51102100,"Sensory Organs Care/Treatments","Verzorging/Behandeling van Zintuigen"]
[10000637,"Yes","Optic Appliances – Sunglasses – Ready To Wear","Zonnebrillen – Klaar voor Gebruik","Includes any products that can be described/observed as an optical instrument specifically designed to protect the eyes from sunlight, and typically composed of a pair of tinted lenses mounted within a frame that is worn by the user so as to position the lenses immediately in front of the eyes.Includes only complete Sunglasses, which are ready to wear.","Omvat alle producten die kunnen worden waargenomen/omschreven als een optisch instrument specifiek bedoeld om de ogen te beschermen tegen zonlicht, en typisch samengesteld uit een tweetal getinte glazen bevestigd in een montuur dat door de gebruiker wordt gedragen om aldus de glazen direct voor de ogen te plaatsen. Bevat alleen complete zonnebrillen die klaar voor gebruik zijn.","Excludes products such as Ready to Wear Sunglasses obtained only by prescription or from a healthcare professional, Spectacles that are ready to wear, Spectacle Lenses, Spectacle Frames, Contact Lenses and Magnifying Glasses.","Exclusief producten zoals kant-en-klare zonnebrillen die alleen op doktersvoorschrift worden verkregen of afkomstig zijn van een zorgverlener, kant-en-klare brillen, brillenglazen, monturen, contactlenzen en vergrootglazen.",51000000,"Healthcare","Gezondheidszorg",51100000,"Health Treatments/Aids","Gezondheidsbehandelingen/-hulpmiddelen",51102100,"Sensory Organs Care/Treatments","Verzorging/Behandeling van Zintuigen"]
[10000638,"Yes","Optic Appliances – Spectacle Lenses","Brillenglazen","Includes any products that can be described/observed as an optical lens specifically designed to aid and correct defective eyesight, and intended to be mounted in spectacle frames.Includes only lenses with no frame attached.Specifically","Omvat alle producten die kunnen worden waargenomen/omschreven als een brillenglas lens specifiek bedoeld om te helpen en te corrigeren bij slecht gezichtsvermogen, en bedoeld om te worden bevestigd in een montuur. Bevat alleen glazen zonder montuur.","excludes Contact Lenses.Excludes products such as Spectacle Lenses obtained only by prescription or from a healthcare professional, Spectacles ready to wear, Spectacle Frames, Sunglasses and Magnifying Glasses.","Sluit specifiek contactlenzen uit. Exclusief producten zoals brillenglazen die alleen op doktersvoorschrift worden verkregen of afkomstig zijn van een zorgverlener, kant-en-klare brillen, monturen, zonnebrillen en vergrootglazen.",51000000,"Healthcare","Gezondheidszorg",51100000,"Health Treatments/Aids","Gezondheidsbehandelingen/-hulpmiddelen",51102100,"Sensory Organs Care/Treatments","Verzorging/Behandeling van Zintuigen"]
[10000639,"Yes","Optic Appliances – Spectacle Frames","Brilmonturen","Includes any products that can be described/observed as an optical frame specifically designed to house spectacle lenses, which aid in correcting defective eyesight.Includes only frames with no lenses attached.Specifically","Omvat alle producten die kunnen worden waargenomen/omschreven als een brilmontuur specifiek bedoeld om brillenglazen te bevatten die helpen om slecht gezichtsvermogen te corrigeren. Bevat alleen monturen zonder glazen.","excludes Ready to Wear Spectacles.Excludes products such as Spectacle Frames obtained only by prescription or from a healthcare professional, Contact Lenses, Spectacle Lenses, Sunglasses, and Magnifying Glasses.","Sluit specifiek kant-en-klare brillen uit. Exclusief producten zoals monturen die alleen op doktersvoorschrift worden verkregen of afkomstig zijn van een zorgverlener, contactlenzen, brillenglazen, zonnebrillen en vergrootglazen.",51000000,"Healthcare","Gezondheidszorg",51100000,"Health Treatments/Aids","Gezondheidsbehandelingen/-hulpmiddelen",51102100,"Sensory Organs Care/Treatments","Verzorging/Behandeling van Zintuigen"]
[10000687,"Yes","Sensory Organs Care/Treatments Variety Packs","Verzorging/Behandeling van Zintuigen – Assortimenten","Includes any products that can be described/observed as two or more distinct Sensory Organs Care and Treatments sold together, which exist within the schema belonging to different bricks but to the same class, that is two or more products contained within the same pack which cross bricks within the Sensory Organs Care and Treatments class. Includes products such as Contact Lenses and Contact Lenses Cases sold together.Items that are received free with purchases should be removed from the classification decision–making process.","Omvat alle producten die kunnen worden waargenomen/omschreven als twee of meer verschillende zintuigverzorgings- of behandelingsmiddel die tezamen worden verkocht, die binnen het schema bestaan, maar bij verschillende bricks in dezelfde klasse behoren. Een voorbeeld is de gezamenlijke verkoop van contactlenzen en contactlensdoosjes. Producten die gratis zijn, moeten buiten het beslissingsproces voor classificatie worden gelaten.","Excludes products such as Ear Preparations and Thermometer variety packs and Sensory Organs Care and Treatments variety packs obtained only by prescription or from a healthcare professional.","Exclusief producten zoals assortimenten voor oorpreparaten en thermometers, en assortimenten voor zintuigverzorging of behandeling die alleen op doktersvoorschrift worden verkregen of afkomstig zijn van een zorgverlener.",51000000,"Healthcare","Gezondheidszorg",51100000,"Health Treatments/Aids","Gezondheidsbehandelingen/-hulpmiddelen",51102100,"Sensory Organs Care/Treatments","Verzorging/Behandeling van Zintuigen"]
[10000688,"Yes","Optic Appliances Care – Spectacles","Verzorgingsproducten voor Brillen","Includes any products that can be described/observed as a cream, gel or liquid that is employed for the cleaning and care of all types of spectacles.","Omvat alle producten die kunnen worden waargenomen/omschreven als een crème, gel of vloeistof bedoeld voor het reinigen en verzorgen van alle soorten brillen.","Excludes products such as Spectacle Care Preparations obtained only by prescription or from a healthcare professional, Contact Lenses, Spectacles Chains and Cases and all Eye Preparations.","Exclusief producten zoals verzorgingsproducten voor brillen die alleen op doktersvoorschrift worden verkregen of afkomstig zijn van een zorgverlener, contactlenzen, brilkettingen, brillenkokers en alle oogpreparaten.",51000000,"Healthcare","Gezondheidszorg",51100000,"Health Treatments/Aids","Gezondheidsbehandelingen/-hulpmiddelen",51102100,"Sensory Organs Care/Treatments","Verzorging/Behandeling van Zintuigen"]
[10000689,"Yes","Spectacle Care Accessories","Verzorgingsproducten voor Brillen – Accessoires","Includes any products that can be described/observed as a product which protects and cares for spectacles such as specific cases and spectacle chains.","Omvat alle producten die kunnen worden waargenomen/omschreven als een product dat brillen beschermt en verzorgt zoals speciale kokers en brilkettingen.","Excludes products such as Spectacle Cleaning and Care products, and all Eye Preparations.","Exclusief producten zoals accessoires bij verzorgingsproducten voor brillen en alle oogpreparaten.",51000000,"Healthcare","Gezondheidszorg",51100000,"Health Treatments/Aids","Gezondheidsbehandelingen/-hulpmiddelen",51102100,"Sensory Organs Care/Treatments","Verzorging/Behandeling van Zintuigen"]
[10000911,"Yes","Sensory Organs Care/Treatments Other","Verzorging/Behandeling van Zintuigen – Overig","Includes any products that can be described/observed as Sensory Organs Care and Treatments, where the user of the schema is not able to classify the product in existing bricks within the schema.","Omvat alle producten die kunnen worden waargenomen/omschreven als verzorgings- of behandelingsmiddel voor zintuigen, waarvan de gebruiker van het schema niet in staat is om het product in een van de bestaande bricks binnen het schema te classificeren.","Excludes all products classified as Drug Administration Treatments, First Aid, General Hygiene products applied to the sensory organs and Sensory Organs Care and Treatments obtained only by prescription or from a healthcare professional.","Exclusief alle producten die op dit moment zijn geclassificeerd in het schema, en producten voor verzorging of behandeling van zintuigen die alleen op doktersvoorschrift worden verkregen of afkomstig zijn van een zorgverlener.",51000000,"Healthcare","Gezondheidszorg",51100000,"Health Treatments/Aids","Gezondheidsbehandelingen/-hulpmiddelen",51102100,"Sensory Organs Care/Treatments","Verzorging/Behandeling van Zintuigen"]
[10000500,"Yes","Baby Treatments","Baby-/Kinderbehandelingen","Includes any products that can be described/observed as a remedy or application specifically designed to treat a condition that is unique to babies and infants.Includes products such as colic remedies, nappy rash creams, cradle cap wipes and creams.","Omvat alle producten die kunnen worden waargenomen/omschreven als een remedie of applicatie specifiek ontworpen om een aandoening te behandelen die uniek is voor baby's en peuters. Bevat producten zoals koliekremedies, luieruitslagcrèmes, doekjes tegen berg en crèmes.","Excludes products such as Baby Treatments obtained only by prescription or from a healthcare professional, Baby Personal Hygiene Products and Healthcare products not specifically designed for babies and infants.","Exclusief producten zoals babybehandelingen die alleen op doktersvoorschrift worden verkregen of afkomstig zijn van een zorgverlener, persoonlijke hygiëneproducten voor baby's en gezondheidsproducten die niet specifiek bedoeld zijn voor baby's.",51000000,"Healthcare","Gezondheidszorg",51100000,"Health Treatments/Aids","Gezondheidsbehandelingen/-hulpmiddelen",51102200,"Baby Treatments","Baby-/Kinderbehandelingen"]
[10000504,"Yes","Pacifiers/Teething Rings","Fopspenen/Bijtringen","Includes any products that can be described/observed as a rubber or plastic device, designed specifically for a baby to suck or bite on, with the additional benefits of calming babies and stopping them from crying or to lessen the discomfort experienced by babies gaining their first teeth.Includes products such as Teething Rings and Pacifiers.","Includes any products that can be described/observed as a rubber or plastic device, designed specifically for a baby to suck or bite on, with the additional benefits of calming babies and stopping them from crying or to lessen the discomfort experienced by babies gaining their first teeth.Includes products such as Teething Rings and Pacifiers.","Excludes products such as Feeding Bottle Teats and Baby Toys.","Excludes products such as Feeding Bottle Teats and Baby Toys.",51000000,"Healthcare","Gezondheidszorg",51100000,"Health Treatments/Aids","Gezondheidsbehandelingen/-hulpmiddelen",51102200,"Baby Treatments","Baby-/Kinderbehandelingen"]
[10000683,"Yes","Health Treatments/Aids Variety Packs","Gezondheidsbehandelingen/-hulpmiddelen – Assortimenten","Includes any products that can be described/observed as two or more distinct Health Treatments and Aids sold together which exist within the schema but belong to different classes, that is two or more products contained within the same pack which cross classes within the Health Treatments and Aids Family. Includes products such as Needles with Textile Bandages variety packs. Items that are received free with purchases should be removed from the classification decision–making process.","Omvat alle producten die kunnen worden waargenomen/omschreven als twee of meer verschillende gezondheidsbehandelingen of hulpmiddelen die tezamen worden verkocht, die binnen het schema bestaan, maar bij verschillende bricks in dezelfde klasse behoren. Een voorbeeld is de gezamenlijke verkoop van naalden en bandages. Producten die gratis zijn, moeten buiten het beslissingsproces voor classificatie worden gelaten.","Excludes products such as Needles and Needle Covers variety packs, Nail Biting Treatments and Nutritional Supplements variety packs and Health Treatments and Aids variety packs obtained only by prescription or from a healthcare professional.","Exclusief producten zoals assortimenten voor naalden en naaldbeschermers, assortimenten voor anti-nagelbijtbehandeling en voedingssupplementen, en assortimenten voor gezondheidsbehandelingen en hulpmiddelen die alleen op doktersvoorschrift worden verkregen of afkomstig zijn van een zorgverlener.",51000000,"Healthcare","Gezondheidszorg",51100000,"Health Treatments/Aids","Gezondheidsbehandelingen/-hulpmiddelen",51102300,"Health Treatments/Aids Variety Packs","Gezondheidsbehandelingen/-hulpmiddelen – Assortimenten"]
[10000846,"Yes","Genital Irritation","Producten tegen Genitale Irritatie","Includes any products that can be described/observed as those that are used to treat, alleviate irritation and pain of the genital area for such conditions as thrush or unstable ph balance.Includes products such as wipes, gels and lotions.Specifically","Omvat alle producten die kunnen worden waargenomen/omschreven als die welke worden gebruikt voor de behandeling, verlichting van pijn en irritatie van het genitale gebied voor omstandigheden als spruw of onstabiele pH-balans. Omvat producten zoals doekjes, gels en lotions.","excludes feminine hygiene wipes used to freshen and cleanse.Excludes products such as Preparations and Wipes used to treat genital irritation obtained only by prescription or from a healthcare professional, Feminine Hygiene Wipes used to freshen and cleanse, Cystitis Products used to treat bladder infections and other skin irritation products such as Eczema Cream and Acne Lotion.","Exclusief producten zoals preparaten en doekjes gebruikt om genitale irritatie te behandelen die alleen op doktersvoorschrift worden verkregen of afkomstig zijn van een zorgverlener, vrouwelijke hygiënedoekjes gebruikt voor opfrissen en reinigen, andere huidirritatie producten zoals eczeemcrème en acne lotion.",51000000,"Healthcare","Gezondheidszorg",51100000,"Health Treatments/Aids","Gezondheidsbehandelingen/-hulpmiddelen",51102400,"Bladder/Genital/Rectal Products","Blaas/Genitale/Rectale Producten"]
[10000847,"Yes","Cystitis Products","Blaasontstekingsproducten","Includes any products that can be described/observed as a preparation that is used to treat cystitis by reducing pain, inflammation and infection of the bladder.Includes products such as tablet remedies, liquid remedies, soluble powder remedies.","Omvat alle producten die kunnen worden waargenomen/omschreven als een preparaat dat wordt gebruikt voor de behandeling van een blaasontsteking door het verminderen van de pijn, ontsteking en infectie van de blaas. Omvat producten zoals pillen, drankjes en sachets.","Excludes products such as those to treat cystitis obtained only by prescription or from a healthcare professional, products that treat genital irritation conditions such as thrush, Diuretic Remedies that are used to reduce and eliminate excess water retention, Enemas/Douches which are used to relieve discomfort from vaginal discharge, urine leakage etc.","Exclusief producten zoals blaasontstekingsproducten die alleen op doktersvoorschrift worden verkregen of afkomstig zijn van een zorgverlener, producten tegen genitale irritatie zoals spruw, tegen urinelekkage, diuretica die gebruikt worden om overtollig vocht te verminderen of te verwijderen, klysma's of douches die gebruikt worden om het ongemak te verlichten van vaginale afscheiding enz.",51000000,"Healthcare","Gezondheidszorg",51100000,"Health Treatments/Aids","Gezondheidsbehandelingen/-hulpmiddelen",51102400,"Bladder/Genital/Rectal Products","Blaas/Genitale/Rectale Producten"]
[10000848,"Yes","Rectal Medication","Rectale Medicijnen","Includes any products that can be described/observed as a preparation used to treat rectal ailments such as haemorrhoids, a condition which causes swollen blood vessels in and around the rectum, or tears in the skin around the opening of the anus, commonly known as anal fissures.Includes products such as tablets, which may be taken orally or as a suppository, creams and soluble powders.","Omvat alle producten die kunnen worden waargenomen/omschreven als een preparaat voor rectale aandoeningen zoals aambeien, een aandoening die gezwollen bloedvaten veroorzaakt in en rond de anus, of voor scheuren in de huid rond de opening van de anus, algemeen bekend als anaal fissuur. Omvat producten zoals tabletten, die oraal of als een zetpil ingenomen kunnen worden, crèmes en oplosbare poeders.","Excludes products such as Haemorrhoid or Rectal Fistula Creams obtained only by prescription or from a healthcare professional, Enemas and Douches which are used to cleanse or relieve pain in the bowels or vagina by the insertion of a solution through a tube and Gastrointestinal Remedies such as Laxatives which are used to relieve constipation.","Exclusief producten zoals aambeien- of rectale fistelzalf die alleen op doktersvoorschrift worden verkregen of afkomstig zijn van een zorgverlener, klysma's en douches die worden gebruikt voor het reinigen of het verlichten van de pijn in de darmen of de vagina door het inbrengen van een oplossing door een buis, en gastro-intestinale remedies zoals laxeermiddelen die worden gebruikt om constipatie te verlichten.",51000000,"Healthcare","Gezondheidszorg",51100000,"Health Treatments/Aids","Gezondheidsbehandelingen/-hulpmiddelen",51102400,"Bladder/Genital/Rectal Products","Blaas/Genitale/Rectale Producten"]
[10000849,"Yes","Bladder/Genital/Rectal Products Other","Blaas/Genitale/Rectale Producten – Overig","Includes any products that can be described/observed as Bladder/Genital/Rectal products, where the user of the schema is not able to classify the products in existing bricks within schema.","Omvat alle producten die kunnen worden waargenomen/omschreven als een blaas, genitaal of rectaal middel waarvan de gebruiker van het schema niet in staat is om het product in een van de bestaande bricks binnen het schema te classificeren.","Excludes all currently classified Bladder/Genital/Rectal products such as diuretic remedies, cystitis products, enemas and other Bladder/Genital/Rectal products obtained only by prescription or from a healthcare professional.","Exclusief alle producten die op dit moment zijn geclassificeerd in het schema, en blaas, genitale of rectale producten die alleen op doktersvoorschrift worden verkregen of afkomstig zijn van een zorgverlener.",51000000,"Healthcare","Gezondheidszorg",51100000,"Health Treatments/Aids","Gezondheidsbehandelingen/-hulpmiddelen",51102400,"Bladder/Genital/Rectal Products","Blaas/Genitale/Rectale Producten"]
[10000850,"Yes","Diuretic Remedies","Diuretica","Includes any products that can be described/observed as treatment to relieve and eliminate excess water retention from the bladder.Includes products such as Tablet Remedies, Liquid Remedies and soluble powder remedies.","Omvat alle producten die kunnen worden waargenomen/omschreven als een behandeling om het buitensporig vasthouden van vocht in de blaas te verminderen of te elimineren. Omvat producten zoals tabletten, drankjes en oplosbare poeders.","Excludes products such as Diuretic Remedies obtained only by prescription or from a healthcare professional, Cystitis Remedies that treat inflammation of the bladder caused by bacterial infections, Genital Irritation Treatments used to treat thrush.","Exclusief producten zoals diuretica die alleen op doktersvoorschrift worden verkregen of afkomstig zijn van een zorgverlener, blaasontstekingsproducten gebruikt om blaasontstekingen veroorzaakt door bacteriële infecties te behandelen en behandelingen tegen genitale irritatie zoals crèmes en lotions.",51000000,"Healthcare","Gezondheidszorg",51100000,"Health Treatments/Aids","Gezondheidsbehandelingen/-hulpmiddelen",51102400,"Bladder/Genital/Rectal Products","Blaas/Genitale/Rectale Producten"]
[10000851,"Yes","Enemas/Douches","Klysma's/Spoelingen","Includes any products that can be described/observed as bladder/genital/rectal products that are used to clean the bowels, relieve constipation or those products that are used to cleanse, relieve discomfort from vaginal discharge, menstruation or urine leakage.Products used in this brick work by inserting water or a solution into the rectum or vagina through tubing and a nozzle.","Omvat alle producten die kunnen worden waargenomen/omschreven als een blaas, genitaal of rectaal middel dat wordt gebruikt om de darmen te reinigen of om de constipatie te verlichten, of producten die worden gebruikt voor het reinigen en het verlichten van ongemak van vaginale afscheiding, menstruatie of lekken van urine. Producten uit deze brick werken door het invoegen van water of een oplossing in het rectum of de vagina via slangen en een mondstuk.","Excludes products such as Enemas/Douches obtained only by prescription or from a healthcare professional, Laxatives that are used to relieve constipation, Rectal Medication such as Creams and Lotions.","Exclusief producten zoals klysma's en douches die alleen op doktersvoorschrift worden verkregen of afkomstig zijn van een zorgverlener, laxeermiddelen die worden gebruikt om constipatie te verlichten en rectale medicatie zoals crèmes en lotions.",51000000,"Healthcare","Gezondheidszorg",51100000,"Health Treatments/Aids","Gezondheidsbehandelingen/-hulpmiddelen",51102400,"Bladder/Genital/Rectal Products","Blaas/Genitale/Rectale Producten"]
[10000852,"Yes","Bladder/Genital/Rectal Products Variety Packs","Blaas/Genitale/Rectale Producten – Assortimenten","Includes any products that can be described/observed as two or more distinct Bladder/Genital/Rectal Products sold together, which exist within the schema belonging to different bricks but to the same class, that is two or more products contained within the same pack which cross bricks within the Bladder/Genital/Rectal Products class. Includes products such as Enemas and Rectal Medication sold together.Items that are received free with purchases should be removed from the classification decision–making process.","Omvat alle producten die kunnen worden waargenomen/omschreven als twee of meer verschillende blaas, genitale of rectale middelen die tezamen worden verkocht, die binnen het schema bestaan, maar bij verschillende bricks in dezelfde klasse behoren. Een voorbeeld is de gezamenlijke verkoop van een klysma en rectale medicijnen. Producten die gratis zijn, moeten buiten het beslissingsproces voor classificatie worden gelaten.","Excludes products such as Enemas and Nutritional Supplements variety packs and Bladder/Genital/Rectal Products variety packs obtained only by prescription or from a healthcare professional.","Exclusief producten zoals assortimenten voor klysma's en voedingssupplementen, en assortimenten voor blaas, genitale of rectale producten die alleen op doktersvoorschrift worden verkregen of afkomstig zijn van een zorgverlener.",51000000,"Healthcare","Gezondheidszorg",51100000,"Health Treatments/Aids","Gezondheidsbehandelingen/-hulpmiddelen",51102400,"Bladder/Genital/Rectal Products","Blaas/Genitale/Rectale Producten"]
[10000923,"Yes","Intimate Lubrication","Lubricatie van de intieme delen","Includes any products that can be described/observed as a preparation intended to lubricate the genital area. These products provide lubrication only and are not intended to provide any spermicidal benefits.Includes products administered as a spray and in liquid or gel form, which may be water or oil based.Specifically","Omvat alle producten die kunnen worden waargenomen/omschreven als een preparaat bedoeld om de schaamstreek te smeren. Deze producten bieden alleen smering en zijn niet bedoeld om als zaaddodend middel. Omvat producten toegediend als een spray en in vloeibare of gel vorm, die op water of olie zijn gebaseerd.","excludes Spermicides.Excludes products such as Intimate Lubricants obtained only by prescription or from a healthcare professional, also Spermicides, Genital Irritation products, Rectal Medication products and Oils intended for massage.","Exclusief producten zoals die producten voor lubricatie van de intieme delen die alleen op doktersvoorschrift worden verkregen of afkomstig zijn van een zorgverlener, spermiciden, producten tegen genitale irritatie, rectale medicaties en massageoliën.",51000000,"Healthcare","Gezondheidszorg",51100000,"Health Treatments/Aids","Gezondheidsbehandelingen/-hulpmiddelen",51102400,"Bladder/Genital/Rectal Products","Blaas/Genitale/Rectale Producten"]
[10000853,"Yes","Pain Relief (Powered)","Pijnstiller (Elektrisch)","Includes any products that can be described/observed as a powered device providing pain relief by using electrical impulses and currents, referred to as TENS Technology (Transcutaneous Electrical Nerve Stimulation)Products may be targeted at specific symptoms of muscular aches, arthritis, rheumatism.Specifically","Omvat alle producten die kunnen worden waargenomen/omschreven als een elektrisch apparaat dat de pijn verlicht door het gebruik van elektrische pulsen en stromen, ook wel TENS genoemd (Transcutaneous Electrical Nerve Stimulation). Producten kunnen worden gericht op specifieke symptomen van spierpijn, artritis, reuma.","excludes all non–powered Pain Relief Treatments.Excludes products such as non–powered Pain Relief, powered Pain Relief products obtained only by prescription or from a healthcare professional, Arthritis/Rheumatic/Muscular Pain Relief products and General/Multi–use Products.","Sluit specifiek alle niet-elektrische pijnverzachtingsbehandelingen uit. Exclusief producten zoals niet-elektrische pijnstillers, elektrische pijnstillers die alleen op doktersvoorschrift worden verkregen of afkomstig zijn van een zorgverlener, pijnstillers voor artritis/reuma/spierpijn, en algemene/veelzijdige pijnstillers.",51000000,"Healthcare","Gezondheidszorg",51100000,"Health Treatments/Aids","Gezondheidsbehandelingen/-hulpmiddelen",51102500,"Pain Relief Products","Pijnstillende Producten"]
[10000854,"Yes","Pain Relief Products Other","Pijnstiller – Overig","Includes any products that can be described/observed as preparations intended to provide Pain Relief, where the user of the schema is not able to classify the product in existing bricks within the schema.Specifically","Omvat alle producten die kunnen worden waargenomen/omschreven als pijnstiller, waarvan de gebruiker van het schema niet in staat is om het product in een van de bestaande bricks binnen het schema te classificeren.","excludes products such as Electronic Pain Relief, Headaches/Migraines Pain Relief, and General/Multi–use Pain Relief.Excludes all currently classified Pain Relief Products, First Aid products such as Ice/Heated Packs and those products obtained only by prescription or from a healthcare professional.","Exclusief alle producten die op dit moment zijn geclassificeerd in het schema, en pijnstillers die alleen op doktersvoorschrift worden verkregen of afkomstig zijn van een zorgverlener.",51000000,"Healthcare","Gezondheidszorg",51100000,"Health Treatments/Aids","Gezondheidsbehandelingen/-hulpmiddelen",51102500,"Pain Relief Products","Pijnstillende Producten"]
[10000855,"Yes","Arthritic/Rheumatic/Muscular Pain Relief","Pijnstiller voor Artritis/Reuma/Spierpijn","Includes any products that can be described/observed as a preparation intended to treat ailments that cause stiffness, swelling and pain in the joints and muscles of the body.Includes products such as Liquid Remedies, Soluble Powder Remedies, Tablet Form Remedies, Creams and Sprays.","Omvat alle producten die kunnen worden waargenomen/omschreven als een preparaat bedoeld om aandoeningen die stijfheid, zwellingen en pijn in gewrichten en spieren van het lichaam veroorzaken, te behandelen. Producten kunnen vloeibaar, van oplosbaar poeder, in pilvorm of een spray zijn.","Excludes products such as those which provide arthritic/rheumatic/muscular pain relief obtained only by prescription or from a healthcare professional, Pain Relief products that are used for headaches/migraines, General/Multi–use and powered Pain Relief products.","Exclusief producten zoals die producten die voorzien in het verlichten van pijn door artritis/reuma/spierpijn die alleen op doktersvoorschrift worden verkregen of afkomstig zijn van een zorgverlener, pijnstillers voor hoofdpijn/migraine, algemene/veelzijdige pijnstillers en elektrische pijnstillers.",51000000,"Healthcare","Gezondheidszorg",51100000,"Health Treatments/Aids","Gezondheidsbehandelingen/-hulpmiddelen",51102500,"Pain Relief Products","Pijnstillende Producten"]
[10000856,"Yes","General/Multi-use Pain Relief","Algemene/Veelzijdige Pijnstiller","Includes any products that can be described/observed as a preparation intended to relieve a variety of pains in different parts of the body and not just one particular areaIncludes products such as Liquid Remedies, Soluble Powder Remedies, Tablet Form Remedies and Sprays.Specifically","Omvat alle producten die kunnen worden waargenomen/omschreven als een preparaat bedoeld om een verscheidenheid aan pijnen in verschillende delen van het lichaam te verzachten en niet in één specifiek deel. Producten kunnen vloeibaar, van oplosbaar poeder, in pilvorm of een spray zijn.","excludes Headache and Migraine Pain Relief Preparations.Excludes products such as General/Multi–use Pain Relief obtained only by prescription or from a healthcare professional, Pain Relief products that target a specific area, part of the body such as headache/migraine, Arthritis Pain Relief products and powered Pain Relief products.","Exclusief producten zoals algemene/veelzijdige pijnstillers die alleen op doktersvoorschrift worden verkregen of afkomstig zijn van een zorgverlener, pijnstillers voor één bepaald gebied of deel van het lichaam zoals hoofdpijn/migraine, pijnstillers voor artritis en elektrische pijnstillers.",51000000,"Healthcare","Gezondheidszorg",51100000,"Health Treatments/Aids","Gezondheidsbehandelingen/-hulpmiddelen",51102500,"Pain Relief Products","Pijnstillende Producten"]
[10000857,"Yes","Headache/Migraine Pain Relief","Pijnstiller voor Hoofdpijn/Migraine","Includes any products that can be described observed as preparations intended to provide pain relief from headaches and severe recurring vascular headachesIncludes products such as Liquid Remedies, Soluble Powder Remedies and Tablet Form Remedies.","Omvat alle producten die kunnen worden waargenomen/omschreven als een preparaat bedoeld om pijn te verlichten van hoofdpijn en ernstige terugkerende vasculaire hoofdpijn. Producten kunnen vloeibaar, van oplosbaar poeder, in pilvorm of een spray zijn.","Excludes products such as preparations which provide pain relief from headaches/migraines obtained only by prescription or from a healthcare professional and General/Multi–use Pain Relief, which are used to treat pains in different parts of the body.","Exclusief producten zoals preparaten die zorgen voor het verlichten van pijn bij hoofdpijn/migraine die alleen op doktersvoorschrift worden verkregen of afkomstig zijn van een zorgverlener, en algemene/veelzijdige pijnstillers die gebruikt worden voor verscheidene delen van het lichaam.",51000000,"Healthcare","Gezondheidszorg",51100000,"Health Treatments/Aids","Gezondheidsbehandelingen/-hulpmiddelen",51102500,"Pain Relief Products","Pijnstillende Producten"]
[10000858,"Yes","Pain Relief Products Variety Packs","Pijnstiller – Assortimenten","Includes any products that can be described/observed as two or more distinct Pain Relief Products sold together, which exist within the schema belonging to different bricks but to the same class, that is two or more products contained within the same pack which cross bricks within the Pain Relief Products class. Includes products such as Headache Pain Relief and Muscular Pain Relief sold together.Items that are received free with purchases should be removed from the classification decision–making process.","Omvat alle producten die kunnen worden waargenomen/omschreven als twee of meer verschillende pijnstillers die tezamen worden verkocht, die binnen het schema bestaan, maar bij verschillende bricks in dezelfde klasse behoren. Een voorbeeld is de gezamenlijke verkoop van een anti-hoofdpijn en een anti-spierpijn middel. Producten die gratis zijn, moeten buiten het beslissingsproces voor classificatie worden gelaten.","Excludes products such as Headache Pain Relief and Blood Sugar Tests variety packs and Pain Relief Products variety packs obtained only by prescription or from a healthcare professional.","Exclusief producten zoals assortimenten voor anti-hoofdpijn en bloedsuikertesten, en assortimenten voor pijnstillers die alleen op doktersvoorschrift worden verkregen of afkomstig zijn van een zorgverlener.",51000000,"Healthcare","Gezondheidszorg",51100000,"Health Treatments/Aids","Gezondheidsbehandelingen/-hulpmiddelen",51102500,"Pain Relief Products","Pijnstillende Producten"]
[10000859,"Yes","Homoeopathic/Homeopathic Remedies – Individual Ingredients","Homeopathische Middelen – Individuele Ingrediënten","Includes any products that can be described/observed as individual natural substance ingredients, which are used to treat physical and emotional ailments. Products may be considered as an alternative to conventional medicine. Includes products such as Salt Remedies, Lotion Remedies, Cream Remedies, Tablet Remedies, Powder Remedies, Oil Remedies and Liquid Remedies.Specifically","Omvat alle producten die kunnen worden waargenomen/omschreven als afzonderlijke ingrediënten van natuurlijke stoffen die worden gebruikt om fysieke en emotionele kwalen te behandelen. Producten kunnen worden beschouwd als een alternatief voor conventionele geneeskunde. Omvat producten zoals zout, lotions, crèmes, pillen, poeders, oliën en drankjes.","excludes Homoeopathic/Homeopathic Remedies containing combination ingredients, and Homeopathic Flower Remedies.Excludes products such as Homoeopathic/Homeopathic Remedies containing individual ingredients which are obtained only by prescription or from a healthcare professional, Homoeopathic/Homeopathic Remedies containing combination ingredients such as Geranium Essential Oil, and Homeopathic Flowers.","Exclusief producten zoals homeopathische middelen van afzonderlijke ingrediënten die alleen op doktersvoorschrift worden verkregen of afkomstig zijn van een zorgverlener, homeopathische middelen die een combinatie van ingrediënten bevatten en plantaardige homeopathische middelen.",51000000,"Healthcare","Gezondheidszorg",51100000,"Health Treatments/Aids","Gezondheidsbehandelingen/-hulpmiddelen",51102600,"Flower/Homoeopathic/Homeopathic Remedies","Plantaardige/Homeopathische Middelen"]
[10000860,"Yes","Homoeopathic/Homeopathic Remedies – Combination Ingredients","Homeopathische Middelen – Combinatie Ingrediënten","Includes any products that can be described/observed as a combination of natural substance ingredients, which are used to treat physical and emotional ailments.Products may be considered as an alternative to conventional medicine.Includes products such as Salt Remedies, Lotion Remedies, Cream Remedies, Tablet Remedies, Powder Remedies, Oil Remedies and Liquid Remedies.Specifically","Omvat alle producten die kunnen worden waargenomen/omschreven als een combinatie van ingrediënten van natuurlijke stoffen die worden gebruikt om fysieke en emotionele kwalen te behandelen. Producten kunnen worden beschouwd als een alternatief voor conventionele geneeskunde. Omvat producten zoals zout, lotions, crèmes, pillen, poeders, oliën en drankjes.","excludes Homoeopathic/Homeopathic Remedies containing individual ingredients, and Homeopathic Flower Remedies.Excludes products such as Homoeopathic/Homeopathic Remedies containing combination ingredients obtained only by prescription or from a healthcare professional, Homoeopathic/Homeopathic Remedies containing individual ingredients and Homeopathic Flowers.","Exclusief producten zoals homeopathische middelen die een combinatie van ingrediënten bevatten die alleen op doktersvoorschrift worden verkregen of afkomstig zijn van een zorgverlener, homeopathische middelen van afzonderlijke ingrediënten en plantaardige homeopathische middelen.",51000000,"Healthcare","Gezondheidszorg",51100000,"Health Treatments/Aids","Gezondheidsbehandelingen/-hulpmiddelen",51102600,"Flower/Homoeopathic/Homeopathic Remedies","Plantaardige/Homeopathische Middelen"]
[10000861,"Yes","Flower Remedies","Plantaardige Middelen","Includes any products that can be described/observed as diluted homeopathic tinctures of various different flowers.Products may be considered as an alternative to conventional medicine. Includes products such as Salt Remedies, Lotion Remedies, Cream Remedies, Tablet Remedies, Powder Remedies, Oil Remedies and Liquid Remedies.Specifically","Omvat alle producten die kunnen worden waargenomen/omschreven als verdunde homeopathische tincturen van verschillende bloemen. Producten kunnen worden beschouwd als een alternatief voor conventionele geneeskunde. Omvat producten zoals zout, lotions, crèmes, pillen, poeders, oliën en drankjes.","excludes all other Homoeopathic/Homeopathic Remedies.Excludes products such as Flower Remedies obtained only by prescription or from a healthcare professional and combination or individual Homoeopathic/Homeopathic Remedy Ingredients such as Geranium Essential Oil.","Exclusief producten zoals plantaardige homeopathische middelen die alleen op doktersvoorschrift worden verkregen of afkomstig zijn van een zorgverlener, homeopathische middelen van afzonderlijke ingrediënten en homeopathische middelen die een combinatie van ingrediënten bevatten.",51000000,"Healthcare","Gezondheidszorg",51100000,"Health Treatments/Aids","Gezondheidsbehandelingen/-hulpmiddelen",51102600,"Flower/Homoeopathic/Homeopathic Remedies","Plantaardige/Homeopathische Middelen"]
[10000862,"Yes","Flower/Homoeopathic/Homeopathic Remedies Variety Packs","Plantaardige/Homeopathische Middelen – Assortimenten","Includes any products that can be described/observed as two or more distinct Flower/Homoeopathic/Homeopathic Remedies sold together, which exist within the schema belonging to different bricks but to the same class, that is two or more products contained within the same pack which cross bricks within the Flower/Homeopathic/Homeopathic Remedies class. Includes products such as Flower Tinctures and Homeopathic Remedies sold together.Items that are received free with purchases should be removed from the classification decision–making process.","Omvat alle producten die kunnen worden waargenomen/omschreven als twee of meer verschillende plantaardige of homeopathische middelen die tezamen worden verkocht, die binnen het schema bestaan, maar bij verschillende bricks in dezelfde klasse behoren. Een voorbeeld is de gezamenlijke verkoop van een bloementinctuur en een homeopathisch middel. Producten die gratis zijn, moeten buiten het beslissingsproces voor classificatie worden gelaten.","Excludes products such as Flower Tinctures and Body Fat Monitors variety packs and Flower/Homoeopathic/Homeopathic Remedies variety packs obtained only by prescription or from a healthcare professional.","Exclusief producten zoals assortimenten voor bloementinctuur en lichaamsvetmonitoren, en assortimenten voor plantaardige of homeopathische middelen die alleen op doktersvoorschrift worden verkregen of afkomstig zijn van een zorgverlener.",51000000,"Healthcare","Gezondheidszorg",51100000,"Health Treatments/Aids","Gezondheidsbehandelingen/-hulpmiddelen",51102600,"Flower/Homoeopathic/Homeopathic Remedies","Plantaardige/Homeopathische Middelen"]
[10000914,"Yes","Flower/Homoeopathic/Homeopathic Remedies Other","Plantaardige/Homeopathische Middelen – Overig","Includes any products that can be described/observed as Flower/Homoeopathic/Homeopathic Remedies, where the user of the schema is not able to classify the product in existing bricks within the schema.","Omvat alle producten die kunnen worden waargenomen/omschreven als plantaardig of homeopathisch middel, waarvan de gebruiker van het schema niet in staat is om het product in een van de bestaande bricks binnen het schema te classificeren.","Excludes all currently classified Flower/Homoeopathic/Homeopathic Remedies, Habit Treatments and Flower/Homoeopathic/Homeopathic Remedies obtained only by prescription or from a healthcare professional.","Exclusief alle producten die op dit moment zijn geclassificeerd in het schema, en plantaardige of homeopathische middelen die alleen op doktersvoorschrift worden verkregen of afkomstig zijn van een zorgverlener.",51000000,"Healthcare","Gezondheidszorg",51100000,"Health Treatments/Aids","Gezondheidsbehandelingen/-hulpmiddelen",51102600,"Flower/Homoeopathic/Homeopathic Remedies","Plantaardige/Homeopathische Middelen"]
[10000863,"Yes","Antacids/Indigestion/Flatulence Remedies","Middelen tegen Maagzuur/Indigestie/winderigheid","Includes any products that can be described/observed as a preparation intended to relieve and neutralise acid to prevent or alleviate indigestion, upset stomach, heartburn and flatulence. Includes products such as Liquid Remedies, Soluble Powder Remedies and Tablet Remedies.","Omvat alle producten die kunnen worden waargenomen/omschreven als een preparaat bedoeld om maagzuur te verlichten en te neutraliseren om indigestie, maagklachten, brandend maagzuur en winderigheid te voorkomen of te verlichten. Omvat producten zoals drankjes, oplosbare poeders en pillen.","Excludes products such as Antacids/Indigestion/Flatulence Remedies obtained only by prescription or from a healthcare professional, Nausea Remedies to relieve the symptoms of feeling sick, Diarrhoea and Laxative Remedies.","Exclusief producten zoals middelen tegen maagzuur/indigestie/winderigheid die alleen op doktersvoorschrift worden verkregen of afkomstig zijn van een zorgverlener, middelen tegen misselijkheid om de symptomen van ziek voelen te bestrijden, middelen tegen diarree en laxeermiddelen.",51000000,"Healthcare","Gezondheidszorg",51100000,"Health Treatments/Aids","Gezondheidsbehandelingen/-hulpmiddelen",51102700,"Gastrointestinal Remedy Products","Gastro-intestinale Middelen"]
[10000864,"Yes","Diarrhoea Remedies","Middelen tegen Diarree","Includes any products that can be described/observed as those that are used to relieve and alleviate frequent passing of liquid, loose stools.Includes products such as Liquid Remedies, Soluble Powder Remedies and Tablet Remedies.","Omvat alle producten die kunnen worden waargenomen/omschreven als die welke worden gebruikt voor het verlichten en verzachten van frequent passeren van vloeibare, dunne ontlasting. Omvat producten zoals drankjes, oplosbare poeders en pillen.","Excludes products such as Diarrhoea Remedies obtained only by prescription or from a healthcare professional, Nausea Remedies to relieve the symptoms of sickness, Laxative Remedies and Enemas that are used to relieve constipation.","Exclusief producten zoals middelen tegen diarree die alleen op doktersvoorschrift worden verkregen of afkomstig zijn van een zorgverlener, middelen tegen misselijkheid om de symptomen van ziek voelen te bestrijden, laxeermiddelen en klysma's die bedoeld zijn om constipatie te verhelpen.",51000000,"Healthcare","Gezondheidszorg",51100000,"Health Treatments/Aids","Gezondheidsbehandelingen/-hulpmiddelen",51102700,"Gastrointestinal Remedy Products","Gastro-intestinale Middelen"]
[10000865,"Yes","Gastrointestinal Remedy Products Other","Gastro-intestinale Middelen – Overig","Includes any products that can be described/observed as Gastrointestinal Remedy products, where the user of the schema is not able to classify the products in existing bricks within the schema.","Omvat alle producten die kunnen worden waargenomen/omschreven als gastro-intestinale producten, waarvan de gebruiker van het schema niet in staat is om het product in een van de bestaande bricks binnen het schema te classificeren.","Excludes all currently classified Gastrointestinal Remedies such as remedies for stomach acid, indigestion, flatulence, diarrhoea, nausea and general/multi–use products, as well as those Gastrointestinal Remedies obtained only by prescription or from a healthcare professional.","Exclusief alle gastro-intestinale middelen die op dit moment zijn geclassificeerd in het schema zoals middelen tegen maagzuur, indigestie, winderigheid, diarree, misselijkheid en algemene/veelzijdige producten, alsmede gastro-intestinale middelen die alleen op doktersvoorschrift worden verkregen of afkomstig zijn van een zorgverlener.",51000000,"Healthcare","Gezondheidszorg",51100000,"Health Treatments/Aids","Gezondheidsbehandelingen/-hulpmiddelen",51102700,"Gastrointestinal Remedy Products","Gastro-intestinale Middelen"]
[10000866,"Yes","Laxatives","Laxeermiddelen","Includes any products that can be described/observed as those that alleviate and treat constipation by encouraging defecation or the elimination of faeces.Includes products such as Liquid Remedies, Soluble Powder Remedies and Tablet Remedies.","Omvat alle producten die kunnen worden waargenomen/omschreven als die welke worden gebruikt voor het verlichten en behandelen van constipatie door het stimuleren van ontlasting of de eliminatie van ontlasting. Omvat producten zoals drankjes, oplosbare poeders en pillen.","Excludes products such as Laxatives obtained only by prescription or from a healthcare professional, Enemas that are used to relieve constipation and cleanse the rectum and Diarrhoea Remedies.","Exclusief producten zoals laxeermiddelen die alleen op doktersvoorschrift worden verkregen of afkomstig zijn van een zorgverlener, middelen tegen diarree en klysma's die bedoeld zijn om constipatie te verhelpen en de darmen te reinigen.",51000000,"Healthcare","Gezondheidszorg",51100000,"Health Treatments/Aids","Gezondheidsbehandelingen/-hulpmiddelen",51102700,"Gastrointestinal Remedy Products","Gastro-intestinale Middelen"]
[10000867,"Yes","Worming Preparations","Ontwormingspreparaten","Includes any products that can be described/observed as those that prevent and provide relief from parasitic worms such as round worm, thread worm and pin worm.Includes products such as Liquid Remedies, Soluble Powder Remedies or Tablet Remedies.","Omvat alle producten die kunnen worden waargenomen/omschreven als die producten die parasitaire wormen zoals ringworm, rondworm en aarsmade voorkomen en verzachting bieden. Omvat producten zoals drankjes, oplosbare poeders en pillen.","Excludes products such as Worming Preparations obtained only by prescription or from a healthcare professional and Worming Preparations that are specifically targeted for animal use only.","Exclusief producten zoals ontwormingspreparaten die alleen op doktersvoorschrift worden verkregen of afkomstig zijn van een zorgverlener, en ontwormingspreparaten die speciaal bedoeld zijn voor gebruik bij dieren.",51000000,"Healthcare","Gezondheidszorg",51100000,"Health Treatments/Aids","Gezondheidsbehandelingen/-hulpmiddelen",51102700,"Gastrointestinal Remedy Products","Gastro-intestinale Middelen"]
[10000868,"Yes","Nausea Remedies","Middelen tegen Misselijkheid","Includes any products that can be described/observed as those that alleviate and/or prevent the symptoms of nausea that could be caused by food poisoning and excessive consumption of food. Includes products such as Liquid Remedies, Soluble Powder Remedies and Tablet Remedies.","Omvat alle producten die kunnen worden waargenomen/omschreven als die producten die de symptomen van misselijkheid verzachten en/of voorkomen, die veroorzaakt zouden kunnen zijn door voedselvergiftiging of buitensporige consumptie van voedsel. Omvat producten zoals drankjes, oplosbare poeders en pillen.","Excludes products such as Nausea Remedies obtained only by prescription or from a healthcare professional, other Gastrointestinal Remedies that are used to relieve stomach pains such as Antacids, Indigestion Tablets, Flatulence Remedies, General/Multiuse Remedies which can treat a treat a variety of gastrointestinal ailments and remedies that are used for travel sickness.","Exclusief producten zoals middelen tegen misselijkheid die alleen op doktersvoorschrift worden verkregen of afkomstig zijn van een zorgverlener, andere gastro-intestinale middelen die buikpijn verminderen zoals antacida, indigestiepillen, geneesmiddelen tegen winderigheid, algemene/veelzijdige geneesmiddelen die een variëteit aan gastro-intestinale aandoeningen kunnen behandelen, en middelen die bedoeld zijn tegen reisziekte.",51000000,"Healthcare","Gezondheidszorg",51100000,"Health Treatments/Aids","Gezondheidsbehandelingen/-hulpmiddelen",51102700,"Gastrointestinal Remedy Products","Gastro-intestinale Middelen"]
[10000869,"Yes","Oral Rehydration/Electrolyte Maintenance","Orale toediening van glucose en zoutoplossingen/Elektrolytbalans","Includes any products that can be described/observed as a preparation which is intended to rehydrate and maintain electrolyte balance in the body, by replacing fluid lost through exercise or due to sickness such as diarrhoea or vomiting. Includes products such as Liquid Remedies, Soluble Powder Remedies and Tablet Remedies.","Omvat alle producten die kunnen worden waargenomen/omschreven als een preparaat dat bedoeld is om te hydrateren en de elektrolytenbalans in het lichaam te onderhouden, door het vervangen van vocht, dat verloren is gegaan door sporten of door ziekte, zoals diarree of braken. Omvat producten zoals drankjes, oplosbare poeders en pillen.","Excludes products such as Oral Rehydration/Electrolyte Maintenance obtained only by prescription or from a healthcare professional, Diarrhoea and Nausea Remedies, General/Multi–use Remedies that do not treat one specific ailment, that is they treat a variety of ailments and Sport Rehydration Drinks/Fluids.","Exclusief producten zoals middelen voor orale toediening van glucose en zoutoplossingen en onderhoud van de elektrolytbalans die alleen op doktersvoorschrift worden verkregen of afkomstig zijn van een zorgverlener, middelen tegen diarree en misselijkheid, algemene/veelzijdige middelen die een variëteit aan gastro-intestinale aandoeningen kunnen behandelen, en sportdranken.",51000000,"Healthcare","Gezondheidszorg",51100000,"Health Treatments/Aids","Gezondheidsbehandelingen/-hulpmiddelen",51102700,"Gastrointestinal Remedy Products","Gastro-intestinale Middelen"]
[10000870,"Yes","General/Multi-use Gastrointestinal Remedies","Algemene/Veelzijdige Gastro-intestinale Middelen","Includes any products that can be described/observed as a treatment intended to alleviate and treat a number of gastrointestinal ailments such as heartburn, indigestion, diarrhoea and flatulence. These products are for multi purpose use and will be effective treatments for more than one gastrointestinal ailment.Includes products such as Liquid Remedies, Soluble Powder Remedies and Tablet Remedies.Specifically","Omvat alle producten die kunnen worden waargenomen/omschreven als een behandeling bestemd voor de verlichting en de behandeling van een aantal gastro-intestinale aandoeningen zoals brandend maagzuur, indigestie, diarree en winderigheid. Deze producten zijn voor multifunctioneel gebruik en zijn effectieve behandelingen voor meer dan één gastro-intestinale aandoening.","excludes all remedies intended to treat a single, specific condition.Excludes products such as Indigestion and Nausea Remedy Tablets obtained only by prescription or from a healthcare professional and remedies that are targeted to treat a specific ailment or illness such as Laxatives and Diarrhoea Remedies.","Sluit specifiek alle middelen die bedoeld zijn om een enkele, specifieke omstandigheid te behandelen uit. Exclusief producten zoals middelen tegen indigestie en misselijkheid die alleen op doktersvoorschrift worden verkregen of afkomstig zijn van een zorgverlener, en middelen die bedoeld zijn voor de behandeling van een specifieke aandoening of ziekte, zoals laxeermiddelen en diarreeremmers.",51000000,"Healthcare","Gezondheidszorg",51100000,"Health Treatments/Aids","Gezondheidsbehandelingen/-hulpmiddelen",51102700,"Gastrointestinal Remedy Products","Gastro-intestinale Middelen"]
[10000871,"Yes","Gastrointestinal Remedy Products Variety Packs","Gastro-intestinale Middelen – Assortimenten","Includes any products that can be described/observed as two or more distinct Gastrointestinal Remedy Products sold together, which exist within the schema belonging to different bricks but to the same class, that is two or more products contained within the same pack which cross bricks within the Gastrointestinal Remedy Products class. Includes products such as Nausea Remedies and Worming Preparations sold together.Items that are received free with purchases should be removed from the classification decision–making process.","Omvat alle producten die kunnen worden waargenomen/omschreven als twee of meer verschillende gastro-intestinale middelen die tezamen worden verkocht, die binnen het schema bestaan, maar bij verschillende bricks in dezelfde klasse behoren. Een voorbeeld is de gezamenlijke verkoop van een anti-misselijkheidsmiddel en een ontwormingskuur. Producten die gratis zijn, moeten buiten het beslissingsproces voor classificatie worden gelaten.","Excludes products such as Worming Preparations and Mineral variety packs and Gastrointestinal Remedy Products variety packs obtained only by prescription or from a healthcare professional.","Exclusief producten zoals assortimenten voor ontwormingskuren en mineralen, en assortimenten voor gastro-intestinale middelen die alleen op doktersvoorschrift worden verkregen of afkomstig zijn van een zorgverlener.",51000000,"Healthcare","Gezondheidszorg",51100000,"Health Treatments/Aids","Gezondheidsbehandelingen/-hulpmiddelen",51102700,"Gastrointestinal Remedy Products","Gastro-intestinale Middelen"]
[10000872,"Yes","Sleeping Aids","Slaapmiddelen","Includes any products that can be described/observed as a preparation intended to induce sleep to prevent insomnia or relieve disrupted sleeping patterns.Includes products such as Tablet Remedies and Liquid Remedies.","Omvat alle producten die kunnen worden waargenomen/omschreven als een preparaat dat bedoeld is om slaap op te wekken om slapeloosheid te voorkomen of om verstoorde slaappatronen te verlichten. Omvat producten zoals drankjes en pillen.","Excludes products such as Sleeping Tablets obtained only by prescription or from a healthcare professional, products that may be used to help induce sleep such as Aromatherapy Oils and Homeopathic Remedies and Anti–Snoring Aids such as a Nasal Strip.","Exclusief producten zoals slaappillen die alleen op doktersvoorschrift worden verkregen of afkomstig zijn van een zorgverlener, producten die gebruikt kunnen worden om slaperigheid op te wekken zoals oliën voor aromatherapie en homeopathische middelen, en anti-snurk hulpmiddelen zoals een neusstrip.",51000000,"Healthcare","Gezondheidszorg",51100000,"Health Treatments/Aids","Gezondheidsbehandelingen/-hulpmiddelen",51102800,"Sleeping/Stress Relieving Products","Slaap-/Stressverminderende Middelen"]
[10000873,"Yes","Stress Relief/Calmatives","Stressverminderende/Kalmerende Middelen","Includes any products that can be described/observed as a preparation used to alleviate or reduce stress and stress related symptoms.Includes products such as Liquid Remedies and Tablet Remedies.","Omvat alle producten die kunnen worden waargenomen/omschreven als een preparaat dat bedoeld is om stress of stressgerelateerde symptomen te verlichten of te verminderen. Omvat producten zoals drankjes en pillen.","Excludes products such as Stress Relief Tablets obtained only by prescription or from a healthcare professional, Essential Oils and Homeopathic Remedies that may be used to reduce stress levels and Bubble Bath.","Exclusief producten zoals stressverminderende pillen die alleen op doktersvoorschrift worden verkregen of afkomstig zijn van een zorgverlener, esoterische oliën en homeopathische middelen die gebruikt worden om de hoeveelheid stress te verminderen, en bubbelbaden.",51000000,"Healthcare","Gezondheidszorg",51100000,"Health Treatments/Aids","Gezondheidsbehandelingen/-hulpmiddelen",51102800,"Sleeping/Stress Relieving Products","Slaap-/Stressverminderende Middelen"]
[10000874,"Yes","Sleeping/Stress Relieving Products Variety Packs","Slaap/Stressverminderende Middelen – Assortimenten","Includes any products that can be described/observed as two or more distinct Sleeping/Stress Relieving Products sold together, which exist within the schema belonging to different bricks but to the same class, that is two or more products contained within the same pack which cross bricks within the Sleeping/Stress Relieving Products class. Includes products such as Stress Relief and Insomnia Relief sold together.Items that are received free with purchases should be removed from the classification decision–making process.","Omvat alle producten die kunnen worden waargenomen/omschreven als twee of meer verschillende slaapmiddelen of stressverminderende middelen die tezamen worden verkocht, die binnen het schema bestaan, maar bij verschillende bricks in dezelfde klasse behoren. Een voorbeeld is de gezamenlijke verkoop van een anti-stress en een anti-slapeloosheid middel. Producten die gratis zijn, moeten buiten het beslissingsproces voor classificatie worden gelaten.","Excludes products such as Stress Relief and Eye Preparation variety packs and Sleeping/Stress Relieving Products variety packs obtained only by prescription or from a healthcare professional.","Exclusief producten zoals assortimenten voor anti-stress middelen en oogpreparaten, en assortimenten voor slaapmiddelen of stressverminderende middelen die alleen op doktersvoorschrift worden verkregen of afkomstig zijn van een zorgverlener.",51000000,"Healthcare","Gezondheidszorg",51100000,"Health Treatments/Aids","Gezondheidsbehandelingen/-hulpmiddelen",51102800,"Sleeping/Stress Relieving Products","Slaap-/Stressverminderende Middelen"]
[10000919,"Yes","Sleeping/Stress Relieving Products Other","Slaap/Stressverminderende Middelen – Overig","Includes any products that can be described/observed as Sleeping/Stress Relieving Products, where the user of the schema is not able to classify the product in existing bricks within the schema.","Omvat alle producten die kunnen worden waargenomen/omschreven als slaap- of stressverminderend middel, waarvan de gebruiker van het schema niet in staat is om het product in een van de bestaande bricks binnen het schema te classificeren.","Excludes any Sleeping/Stress Relieving Products obtained only by prescription or from a healthcare professional and Sleeping/Stress Relieving products that are classified within Vitamins, Minerals and Nutritional Supplements or Flower/Homeopathic Remedies.","Exclusief alle producten die op dit moment zijn geclassificeerd in het schema, en slaap- of stressverminderende middelen die alleen op doktersvoorschrift worden verkregen of afkomstig zijn van een zorgverlener.",51000000,"Healthcare","Gezondheidszorg",51100000,"Health Treatments/Aids","Gezondheidsbehandelingen/-hulpmiddelen",51102800,"Sleeping/Stress Relieving Products","Slaap-/Stressverminderende Middelen"]
[10000875,"Yes","Chest Rubs","Borstinwrijfmiddelen","Includes any products that can be described/observed as a preparation intended to be rubbed onto the chest and neck to provide temporary relief of congestion and other cold symptoms","Omvat alle producten die kunnen worden waargenomen/omschreven als een preparaat dat bedoeld is om op de borst en nek te wrijven om aldus tijdelijke verlichting van congestie en andere symptomen van verkoudheid te bieden.","Excludes products such as Chest Rubs obtained only by prescription or from a healthcare professional, and other products which are used as a decongestant but are not rubbed onto the chest or neck such as Decongestant Sprays or Tablets.","Exclusief producten zoals borstwrijfmiddelen die alleen op doktersvoorschrift worden verkregen of afkomstig zijn van een zorgverlener, en andere producten die als decongestant gebruikt worden maar niet op de borst of nek gewreven worden zoals sprays en pillen.",51000000,"Healthcare","Gezondheidszorg",51100000,"Health Treatments/Aids","Gezondheidsbehandelingen/-hulpmiddelen",51102900,"Respiratory/Allergy Products","Ademhalings-/Allergiemiddelen"]
[10000876,"Yes","Cold/Cough Remedies","Verkoudheid/Hoest Middelen","Includes any products that can be described/observed as remedies that prevent and/or relieve common respiratory infections such as coughs, colds and influenza. Includes products such as Liquid Remedies, Soluble Powder Remedies, Tablet Form Remedies and Sprays.","Omvat alle producten die kunnen worden waargenomen/omschreven als middelen die infecties van de luchtwegen, zoals hoesten, verkoudheid en griep, voorkomen en/of verlichten. Omvat producten zoals drankjes, oplosbare poeders, pillen en sprays.","Excludes products such as Cold/Cough Remedies obtained only by a prescription or from a healthcare professional, Confectionery that may provide additional prevention/relief to colds/coughs, Pain Relief Products such as Headache Tablets and products described/observed to reduce arthritic/rheumatic/muscular pain.","Exclusief producten zoals verkoudheid- en hoestmiddelen die alleen op doktersvoorschrift worden verkregen of afkomstig zijn van een zorgverlener, hoestbonbons, pijnstillers zoals hoofdpijntabletten en producten die beschreven/waargenomen worden om artritis, reumatische en spierpijn te bestrijden.",51000000,"Healthcare","Gezondheidszorg",51100000,"Health Treatments/Aids","Gezondheidsbehandelingen/-hulpmiddelen",51102900,"Respiratory/Allergy Products","Ademhalings-/Allergiemiddelen"]
[10000877,"Yes","Inhalers/Nebulisers/Respirators (Non Powered)","Inhaleertoestellen/Nevelapparaten/Ademhalingstoestellen (Niet-elektrisch)","Includes any products that can be described/observed as a non–powered device that delivers either clean air, gas or microscopic particles of medication directly to the upper respiratory tract, in order to prevent and relieve discomfort and congestion of the nasal and sinus passages. Typically, these products include hand–held pump dispensers used to relieve asthmatic conditions in the patient.Specifically","Omvat alle producten die kunnen worden waargenomen/omschreven als een niet-elektrisch apparaat dat ofwel schone lucht, gas of microscopische deeltjes van geneesmiddelen rechtstreeks aan de bovenste luchtwegen levert, om ongemak en verstopping van de neus te voorkomen en te verminderen. Kenmerkend voor deze producten zijn pompdispensers voor in de hand, gebruikt om astmatische aandoeningen bij de patiënt te verlichten.","excludes powered Inhalers, Nebulisers and Respirators.Excludes products such as non–powered Inhalers, Nebulisers and Respirators obtained only by prescription or from a healthcare professional, Humidifiers and Vaporisers and any preparations that help relieve allergies and respiratory problems such as Chest Rubs.","Sluit specifiek elektrische inhalatoren, vernevelaars en respiratoren uit. Exclusief producten zoals niet-elektrische inhalatoren, vernevelaars en respiratoren die alleen op doktersvoorschrift worden verkregen of afkomstig zijn van een zorgverlener, bevochtigers, vaporizers en alle preparaten die helpen om allergieën en ademhalingsproblemen te verlichten, zoals borstwrijfmiddelen.",51000000,"Healthcare","Gezondheidszorg",51100000,"Health Treatments/Aids","Gezondheidsbehandelingen/-hulpmiddelen",51102900,"Respiratory/Allergy Products","Ademhalings-/Allergiemiddelen"]
[10000878,"Yes","Inhalers/Nebulisers/Respirators (Powered)","Inhaleertoestellen/Nevelapparaten/Ademhalingstoestellen (Elektrisch)","Includes any products that can be described/observed as a powered device that delivers either clean air, gas or microscopic particles of medication directly to the upper respiratory tract, in order to prevent and relieve discomfort and congestion of the nasal and sinus passages. Typically, these products include ultrasonic nebulisers where sound vibrations create a drug aerosol application for asthmatic conditions.Specifically","Omvat alle producten die kunnen worden waargenomen/omschreven als een elektrisch apparaat dat ofwel schone lucht, gas of microscopische deeltjes van geneesmiddelen rechtstreeks aan de bovenste luchtwegen levert, om ongemak en verstopping van de neus te voorkomen en te verminderen. Kenmerkend voor deze producten zijn onder andere ultrasone vernevelaars waarbij de geluidstrillingen een inhalator creëren voor astmatische aandoeningen.","excludes non–powered Inhalers, Nebulisers and Respirators.Excludes products such as powered Inhalers, Nebulisers and Respirators obtained only by prescription or from a healthcare professional, Humidifiers and Vaporisers and any preparations that help relieve allergies and respiratory problems such as Chest Rubs.","Sluit specifiek niet-elektrische inhalatoren, vernevelaars en respiratoren uit. Exclusief producten zoals elektrische inhalatoren, vernevelaars en respiratoren die alleen op doktersvoorschrift worden verkregen of afkomstig zijn van een zorgverlener, bevochtigers, vaporizers en alle preparaten die helpen om allergieën en ademhalingsproblemen te verlichten, zoals borstwrijfmiddelen.",51000000,"Healthcare","Gezondheidszorg",51100000,"Health Treatments/Aids","Gezondheidsbehandelingen/-hulpmiddelen",51102900,"Respiratory/Allergy Products","Ademhalings-/Allergiemiddelen"]
[10000879,"Yes","Nasal Strips/Sprays","Neusstrips/Sprays","Includes any products that can be described/observed as remedies that provide relief to nasal congestion, restore moisture to dry nasal passages and/or reduce breathing problems.Includes products such as Liquid Remedies, Soluble Powder Remedies, Tablet Form Remedies, Strips, and Sprays.","Omvat alle producten die kunnen worden waargenomen/omschreven als middelen die verlichting bieden aan een verstopte neus, vochtherstellen bij een te droge neus en/of verminderen van ademhalingsproblemen. Omvat producten zoals drankjes, oplosbare poeders, pillen, strippen en sprays.","Excludes products such as Nasal Strips/Sprays obtained only by a prescription or from a healthcare professional and products used to treat snoring habits.","Exclusief producten zoals neusstrips en neussprays die alleen op doktersvoorschrift worden verkregen of afkomstig zijn van een zorgverlener, en producten die gebruikt worden om snurken te behandelen.",51000000,"Healthcare","Gezondheidszorg",51100000,"Health Treatments/Aids","Gezondheidsbehandelingen/-hulpmiddelen",51102900,"Respiratory/Allergy Products","Ademhalings-/Allergiemiddelen"]
[10000880,"Yes","Throat Remedies","Middelen voor de keel","Includes any products that can be described/observed as a preparation intended to soothe or provide relief from the symptoms of a sore or infected throat.Includes products such as Liquid Remedies, Soluble Powder Remedies, Tablet Remedies and Spray Remedies.","Omvat alle producten die kunnen worden waargenomen/omschreven als een preparaat dat bedoeld is om de symptomen van een pijnlijke of geïnfecteerde keel te kalmeren of te verlichten. Omvat producten zoals drankjes, oplosbare poeders, pillen en sprays.","Excludes products such as Throat Remedies obtained only by prescription or from a healthcare professional and any remedy not specifically intended for the throat.","Exclusief producten zoals middelen voor de keel die alleen op doktersvoorschrift worden verkregen of afkomstig zijn van een zorgverlener, en alle middelen die niet specifiek bedoeld zijn voor de keel.",51000000,"Healthcare","Gezondheidszorg",51100000,"Health Treatments/Aids","Gezondheidsbehandelingen/-hulpmiddelen",51102900,"Respiratory/Allergy Products","Ademhalings-/Allergiemiddelen"]
[10000881,"Yes","Allergy Prevention/Relief/Antihistamines","Allergiepreventie/Allergievermindering/Antihistamines","Includes any products that can be described/observed as remedies that prevent and/or relieve illness, skin problems and/or breathing problems, caused by allergies.Products may be targeted at specific allergies such as hay fever or asthma.Includes products such as Liquid Remedies, Soluble Powder Remedies, Tablet Form Remedies and Sprays.","Omvat alle producten die kunnen worden waargenomen/omschreven als middelen die bedoeld zijn om ziekte, huidproblemen en/of ademhalingsproblemen, veroorzaakt door allergieën, te voorkomen en/of te verlichten. Producten kunnen bedoeld zijn voor specifieke allergieën zoals hooikoorts of astma. Omvat producten zoals drankjes, oplosbare poeders, pillen en sprays.","Excludes products such as Allergy Prevention/Relief/Antihistamines obtained only by a prescription or from a healthcare professional.","Exclusief producten zoals allergiepreventie, allergievermindering en antihistamines die alleen op doktersvoorschrift worden verkregen of afkomstig zijn van een zorgverlener.",51000000,"Healthcare","Gezondheidszorg",51100000,"Health Treatments/Aids","Gezondheidsbehandelingen/-hulpmiddelen",51102900,"Respiratory/Allergy Products","Ademhalings-/Allergiemiddelen"]
[10000882,"Yes","Decongestants Other","Decongestiva – Overig","Includes any products that can be described/observed as decongestants, which are not classified within any other brick within the Respiratory/Allergy Products class","Omvat alle producten die kunnen worden waargenomen/omschreven als decongestivum, waarvan de gebruiker van het schema niet in staat is om het product in een van de bestaande bricks binnen het schema te classificeren.","Excludes any other decongestant products such as Allergy Prevention/Relief/Antihistamines, Cold/Cough Remedies and Nasal Strips/Sprays.","Exclusief alle producten die op dit moment zijn geclassificeerd in het schema, en decongestiva die alleen op doktersvoorschrift worden verkregen of afkomstig zijn van een zorgverlener.",51000000,"Healthcare","Gezondheidszorg",51100000,"Health Treatments/Aids","Gezondheidsbehandelingen/-hulpmiddelen",51102900,"Respiratory/Allergy Products","Ademhalings-/Allergiemiddelen"]
[10000883,"Yes","Humidifiers/Vaporisers (Non Powered)","Bevochtigingsapparaten/Verstuivers (Niet-elektrisch)","Includes any products that can be described/observed as a non–powered device that provides a moist, clean or treated air environment to avoid throat and nasal dryness and discomfort or relieve allergies and respiratory problems.Includes non–powered Humidifiers, which disperse tiny droplets of water to create a moist atmosphere, and non–powered Vaporisers, which turn liquid into vapour that is then dispersed into the atmosphere. Includes products that may be targeted at specific conditions such as Hay Fever.Includes refills for such products.Specifically","Omvat alle producten die kunnen worden waargenomen/omschreven als een niet-elektrisch apparaat dat voorziet in een vochtige, schone of behandelde luchtomgeving om een droge keel en neus te voorkomen en om allergieën en ademhalingsproblemen te voorkomen. Omvat niet-elektrische luchtbevochtigers, die kleine waterdruppeltjes verspreiden om een vochtige atmosfeer te creëren, en niet-elektrische vaporizers, die vloeistof omzetten in damp die vervolgens wordt verspreid in de lucht. Omvat producten die bedoeld kunnen zijn voor specifieke aandoeningen zoals hooikoorts. Inclusief vullingen voor dergelijke producten.","excludes powered Humidifiers and Vaporisers.Excludes products such as powered Humidifiers and Vaporisers, Vaporisers obtained only by prescription or from a healthcare professional and other preparations that may give off a vapour to help relieve allergies and respiratory problems such as Chest Rubs.","Sluit specifiek elektrische luchtbevochtigers en vaporizers uit. Exclusief producten zoals niet-elektrische luchtbevochtigers en vaporizers die alleen op doktersvoorschrift worden verkregen of afkomstig zijn van een zorgverlener, en andere preparaten die een damp kunnen afgeven om allergieën en ademhalingsproblemen te voorkomen zoals borstwrijfmiddelen.",51000000,"Healthcare","Gezondheidszorg",51100000,"Health Treatments/Aids","Gezondheidsbehandelingen/-hulpmiddelen",51102900,"Respiratory/Allergy Products","Ademhalings-/Allergiemiddelen"]
[10000884,"Yes","Respiratory/Allergy Products Variety Packs","Ademhalings-/Allergiemiddelen – Assortimenten","Includes any products that can be described/observed as two or more distinct Respiratory/Allergy Products sold together, which exist within the schema belonging to different bricks but to the same class, that is two or more products contained within the same pack which cross bricks within the Respiratory/Allergy Products class. Includes products such as Cough Remedies and Hay Fever Relief sold together.Items that are received free with purchases should be removed from the classification decision–making process.","Omvat alle producten die kunnen worden waargenomen/omschreven als twee of meer verschillende ademhalings- of allergiemiddelen die tezamen worden verkocht, die binnen het schema bestaan, maar bij verschillende bricks in dezelfde klasse behoren. Een voorbeeld is de gezamenlijke verkoop van hoestsiroop en een anti-hooikoorts middel. Producten die gratis zijn, moeten buiten het beslissingsproces voor classificatie worden gelaten.","Excludes products such as Cough Remedies and Vitamin variety packs and Respiratory/Allergy Products variety packs obtained only by prescription or from a healthcare professional.","Exclusief producten zoals assortimenten voor hoestdranken en vitaminen, en assortimenten voor ademhalings- of allergiemiddelen die alleen op doktersvoorschrift worden verkregen of afkomstig zijn van een zorgverlener.",51000000,"Healthcare","Gezondheidszorg",51100000,"Health Treatments/Aids","Gezondheidsbehandelingen/-hulpmiddelen",51102900,"Respiratory/Allergy Products","Ademhalings-/Allergiemiddelen"]
[10000916,"Yes","Humidifiers/Vaporisers (Powered)","Bevochtigingsapparaten/Verstuivers (Elektrisch)","Includes any products that can be described/observed as a powered device that provides a moist, clean or treated air environment to avoid throat and nasal dryness and discomfort or relieve allergies and respiratory problems.Includes powered Humidifiers, which disperse tiny droplets of water to create a moist atmosphere, and powered Vaporisers, which turn liquid into vapour that is then dispersed into the atmosphere. Includes products that may be targeted at specific conditions such as Hay Fever.Includes refills for such products.Specifically","Omvat alle producten die kunnen worden waargenomen/omschreven als een elektrisch apparaat dat voorziet in een vochtige, schone of behandelde luchtomgeving om een droge keel en neus te voorkomen en om allergieën en ademhalingsproblemen te voorkomen. Omvat elektrische luchtbevochtigers, die kleine waterdruppeltjes verspreiden om een vochtige atmosfeer te creëren, en elektrische vaporizers, die vloeistof omzetten in damp die vervolgens wordt verspreid in de lucht. Omvat producten die bedoeld kunnen zijn voor specifieke aandoeningen zoals hooikoorts. Inclusief vullingen voor dergelijke producten.","excludes non–powered Humidifiers and Vaporisers.Excludes products such as non–powered Humidifiers and Vaporisers, Vaporisers obtained only by prescription or from a healthcare professional and other preparations that may give off a vapour to help relieve allergies and respiratory problems such as Chest Rubs.","Sluit specifiek niet-elektrische luchtbevochtigers en vaporizers uit. Exclusief producten zoals elektrische luchtbevochtigers en vaporizers die alleen op doktersvoorschrift worden verkregen of afkomstig zijn van een zorgverlener, en andere preparaten die een damp kunnen afgeven om allergieën en ademhalingsproblemen te voorkomen zoals borstwrijfmiddelen.",51000000,"Healthcare","Gezondheidszorg",51100000,"Health Treatments/Aids","Gezondheidsbehandelingen/-hulpmiddelen",51102900,"Respiratory/Allergy Products","Ademhalings-/Allergiemiddelen"]
[10000920,"Yes","Respiratory/Allergy Products Other","Ademhalings-/Allergiemiddelen – Overig","Includes any products that can be described/observed as Respiratory/Allergy products, where the user of the schema is not able to classify the product in existing bricks within the schema.","Omvat alle producten die kunnen worden waargenomen/omschreven als ademhalings- of allergiemiddel, waarvan de gebruiker van het schema niet in staat is om het product in een van de bestaande bricks binnen het schema te classificeren.","Excludes all currently classified Respiratory/Allergy products, Flower/Homeopathic remedies for respiratory and allergy problems and Respiratory/Allergy Products obtained only by prescription or from a healthcare professional.","Exclusief alle producten die op dit moment zijn geclassificeerd in het schema, en ademhalings- of allergiemiddelen die alleen op doktersvoorschrift worden verkregen of afkomstig zijn van een zorgverlener.",51000000,"Healthcare","Gezondheidszorg",51100000,"Health Treatments/Aids","Gezondheidsbehandelingen/-hulpmiddelen",51102900,"Respiratory/Allergy Products","Ademhalings-/Allergiemiddelen"]
[10000885,"Yes","Hand Sanitizers / Antiseptics","Antiseptica","Includes any products that can be described/observed as preparations intended for sanitizing or disinfecting the skin and preparations for alleviating infections by killing bacteria in wounds, or to soothe/aid the healing of the broken/allergic skin.Includes alcohol–based Hand Sanitizer gels and foams as well as over–the–counter Antiseptic Creams, Liquid Remedies, Tablet Remedies, Lotions and Wipes.","Omvat alle producten die kunnen worden waargenomen/omschreven als preparaten die bestemd zijn voor het schoonmaken of desinfecteren van de huid en preparaten voor het verminderen van infecties door het doden van bacteriën in wonden, of door de genezing van de kapotte/allergische huid te verzachten/helpen. Omvat gel en schuim desinfecterende handzeep op alcoholbasis evenals antiseptische crèmes, drankjes, pillen, lotions en doekjes uit de vrije verkoop.","Excludes products such as Antiseptics obtained only by prescription or from a healthcare professional, General/Multi–purpose Aids that help alleviate a variety of ailments and Skin/Scalp products that have a secondary purpose as an antiseptic such as Aftersun Creams and Insect Spray Repellents. Also excludes Sterilisers and Surgical Spirits.","Exclusief producten zoals antiseptica die alleen op doktersvoorschrift worden verkregen of afkomstig zijn van een zorgverlener, algemene/veelzijdige hulpmiddelen die helpen om een verscheidenheid aan aandoeningen te verlichten, en huid/hoofdhuid producten die een secundair doel als ontsmettingsmiddel hebben zoals aftersun crèmes en insecten afweermiddelen. Ook exclusief sterilisatoren en chirurgische alcohol.",51000000,"Healthcare","Gezondheidszorg",51100000,"Health Treatments/Aids","Gezondheidsbehandelingen/-hulpmiddelen",51103000,"Skin/Scalp Aid Products","Huid/Hoofdhuid Behandelingenproducten"]
[10000886,"Yes","Parasite Infestation Treatments","Ongediertebestrijdingsmiddelen","Includes any products that can be described/observed as a preparation intended to treat infestations of parasites such as head lice or body lice.Includes products such as Lotion Remedies, Shampoos and Cream Remedies.Specifically","Omvat alle producten die kunnen worden waargenomen/omschreven als een preparaat bedoeld om gevallen van besmetting met parasieten zoals hoofdluizen of andere luizen te behandelen. Omvat producten zoals lotions, shampoos en crèmes.","excludes all Shampoos not intended to treat parasitic infestations.Excludes products such as Parasite Infestation Treatment only obtained by prescription or from a healthcare professional, powered and non–powered Parasite Equipment such as Head Lice Combs and Shampoos that are used for cleaning or washing the hair.","Exclusief producten zoals die voor de bestrijding van parasietenbesmetting die alleen op doktersvoorschrift worden verkregen of afkomstig zijn van een zorgverlener, elektrische en niet-elektrische parasieten apparatuur zoals een hoofdluiskam en shampoos die niet bedoeld zijn besmetting door parasieten te behandelen.",51000000,"Healthcare","Gezondheidszorg",51100000,"Health Treatments/Aids","Gezondheidsbehandelingen/-hulpmiddelen",51103000,"Skin/Scalp Aid Products","Huid/Hoofdhuid Behandelingenproducten"]
[10000887,"Yes","Psoriasis/Eczema/Dry Skin/Scalp Treatments","Psoriasis/Eczema/Droge Huid Behandelingen","Includes any products that can be described/observed as a preparation intended to treat and alleviate the conditions of psoriasis/eczema and excessively dry skin, which are characterised by cracked, chapped or chafed skin. Products included may treat skin that has dried but previously been exposed to excessive perspiration resulting in chapped/chafed skin.Includes products such as Lotion Remedies, Cream Remedies, Tablet Remedies.","Omvat alle producten die kunnen worden waargenomen/omschreven als een preparaat bedoeld om de omstandigheden van psoriasis/eczeem en een te droge huid, die worden gekenmerkt door een gebarsten, schrale of geïrriteerde huid te behandelen en te verzachten. De omvatte producten zouden de uitgedroogde huid kunnen verzorgen, die eerder blootgesteld was aan overmatige transpiratie resulterend in kloofjes en een ruwe huid. Omvat producten zoals lotions, crèmes en pillen.","Excludes products such as Psoriasis/Eczema/Dry Skin/Scalp Treatments only obtained by prescription or from a healthcare professional, Moisturisers that are not intended to be used to treat skin/scalp conditions such as Facial Moisturising Cream.","Exclusief producten zoals behandelingen voor psoriasis/eczeem/droge (hoofd)huid, die alleen op doktersvoorschrift worden verkregen of afkomstig zijn van een zorgverlener, en vochtinbrengende crèmes die niet bestemd zijn om te worden gebruikt om huid/hoofdhuid aandoeningen te behandelen, zoals vochtinbrengende crèmes voor het gezicht.",51000000,"Healthcare","Gezondheidszorg",51100000,"Health Treatments/Aids","Gezondheidsbehandelingen/-hulpmiddelen",51103000,"Skin/Scalp Aid Products","Huid/Hoofdhuid Behandelingenproducten"]
[10000888,"Yes","Hair Loss Treatments","Haaruitvalbehandelingen","Includes any products that can be described/observed as a preparation intended to treat and prevent the loss of hair.Includes products such as Cream Remedies, Lotion Remedies and sprays.","Omvat alle producten die kunnen worden waargenomen/omschreven als een preparaat bedoeld om haaruitval te behandelen en te voorkomen. Omvat producten zoals crèmes, lotions en sprays.","Excludes products such as Hair Loss Treatments only obtained by prescription or from a healthcare professional, Shampoos and other Hair Treatments used to clean and style the hair such as Hairspray, Hair Gels and Hair Shampoo.","Exclusief producten zoals haaruitval behandelingen die alleen op doktersvoorschrift worden verkregen of afkomstig zijn van een zorgverlener, shampoos en andere haarproducten die bedoeld zijn om het haar te verzorgen zoals haarlak en gel.",51000000,"Healthcare","Gezondheidszorg",51100000,"Health Treatments/Aids","Gezondheidsbehandelingen/-hulpmiddelen",51103000,"Skin/Scalp Aid Products","Huid/Hoofdhuid Behandelingenproducten"]
[10000889,"Yes","Insect Bite Relief","Kalmerend Middel bij Insectenbeten","Includes any products that can be described/observed as a preparation intended to treat and relieve the itching and stings that are caused by insect bites such as bee and wasp stings.Includes products such as Cream Remedies, Lotion Remedies and Sprays.","Omvat alle producten die kunnen worden waargenomen/omschreven als een preparaat bedoeld om jeuk en steken door insectenbeten, zoals bijen- en wespensteken, te behandelen en te verlichten. Omvat producten zoals crèmes, lotions en sprays.","Excludes products such as Insect Bite Relief Treatments only obtained by prescription or from a healthcare professional, products that incorporate an insect bite relief as a secondary additional function such as Aftersun products and Insect Repellents such as Sprays that are applied to the body to prevent the insects from biting/stinging.","Exclusief producten zoals kalmerende middelen bij insectenbeten die alleen op doktersvoorschrift worden verkregen of afkomstig zijn van een zorgverlener, en producten die insectenbeten verzachten die een secundair doel als ontsmettingsmiddel hebben zoals aftersun crèmes en insecten afweermiddelen zoals sprays die op het lichaam worden toegepast om insectenbeten te voorkomen.",51000000,"Healthcare","Gezondheidszorg",51100000,"Health Treatments/Aids","Gezondheidsbehandelingen/-hulpmiddelen",51103000,"Skin/Scalp Aid Products","Huid/Hoofdhuid Behandelingenproducten"]
[10000890,"Yes","Anti-fungal Products","Anti-schimmel Producten","Includes any products that can be described/observed as a treatment intended to alleviate fungal infections such as athlete’s foot, candida and tinea versicolor.Includes products such as Creams Remedies, Liquid Remedies and Tablet Remedies.","Omvat alle producten die kunnen worden waargenomen/omschreven als een behandeling bedoeld om schimmelinfecties zoals voetschimmel, candida en tinea versicolor te verlichten. Omvat producten zoals crèmes, drankjes en pillen.","Excludes products such as Anti–Fungal products obtained only by prescription or from a healthcare professional, Antiseptics that are used to treat open wounds to prevent septicaemia, treatments that are specifically targeted to treat warts/veruccas/corns/callous and Eczema/Dry Skin Scalp treatments.","Exclusief producten zoals anti-schimmel producten die alleen op doktersvoorschrift worden verkregen of afkomstig zijn van een zorgverlener, antiseptica die gebruikt worden om open wonden te behandelen om bloedvergiftiging te voorkomen, behandelingen die specifiek bedoeld zijn voor wratten/likdoorns/eelt en eczeem/droge (hoofd)huid behandelingen.",51000000,"Healthcare","Gezondheidszorg",51100000,"Health Treatments/Aids","Gezondheidsbehandelingen/-hulpmiddelen",51103000,"Skin/Scalp Aid Products","Huid/Hoofdhuid Behandelingenproducten"]
[10000891,"Yes","General/Multi Purpose Skin/Scalp Treatments","Algemene/Veelzijdige Huid/Hoofdhuidbehandelingen","Includes any products that can be described/observed as a preparation that treats and alleviates a variety of skin/scalp ailments, such as medicated powder that can treat chapped skin, itchy skin, skin rash, chafing and sunburn.Includes products such as Cream Remedies, Lotion Remedies, Sprays .","Omvat alle producten die kunnen worden waargenomen/omschreven als een preparaat dat een verscheidenheid aan (hoofd)huid aandoeningen behandelt en verlicht, zoals medicinaal poeder dat een schrale huid, jeukende huid, huiduitslag en zonnebrand kan behandelen. Omvat producten zoals crèmes, lotions en sprays.","Excludes products such as General/Multi–purpose Skin/Scalp Treatments only obtained by prescription or from a healthcare professional, Skin/Scalp Treatments that are used to treat one specific ailment such as Creams that are intended to treat acne.","Exclusief producten zoals algemene/veelzijdige (hoofd)huid behandelingen die alleen op doktersvoorschrift worden verkregen of afkomstig zijn van een zorgverlener, (hoofd)huid behandelingen die gebruikt worden om één specifieke aandoening te behandelen zoals crèmes bedoeld voor de behandeling van acne.",51000000,"Healthcare","Gezondheidszorg",51100000,"Health Treatments/Aids","Gezondheidsbehandelingen/-hulpmiddelen",51103000,"Skin/Scalp Aid Products","Huid/Hoofdhuid Behandelingenproducten"]
[10000892,"Yes","Parasite Infestation Equipment (Non Powered)","Apparatuur voor Ongediertebestrijding (Niet-elektrisch)","Includes any products that can be described/observed as a non–powered device intended to treat and/or prevent parasite infestations such as head lice or body lice.Includes products such as non–powered Head Lice Combs that have been designed to remove lice from wet hair following the application of head lice lotion treatments.Specifically","Omvat alle producten die kunnen worden waargenomen/omschreven als een niet-elektrisch apparaat bedoeld voor het behandelen en/of voorkomen van parasitaire infecties, zoals hoofdluis of kleerluis. Omvat producten zoals Niet-elektrische hoofdluiskammen die zijn ontworpen om hoofdluis te verwijderen uit nat haar na het behandelen met hoofdluis lotion.","excludes all powered Parasite Infestation equipment, and Parasite Infestation treatments.Excludes products such as non–powered Parasite Infestation Equipment obtained only by prescription or from a healthcare professional, Parasite Treatments such as Head Lice Lotion, powered Parasite Infestation Treatments such as Electronic Head Lice Combs and all other types of Combs used for styling the hair.","Exclusief producten zoals niet-elektrische apparaten bedoeld voor het behandelen van parasitaire infecties die alleen op doktersvoorschrift worden verkregen of afkomstig zijn van een zorgverlener, alle parasietbehandelingen zoals hoofdluis lotion, alle elektrische apparaten bedoeld voor het behandelen en/of voorkomen van parasitaire infecties zoals elektrische hoofdluiskammen en alle andere soorten kammen die bedoeld zijn om het haar in model te brengen.",51000000,"Healthcare","Gezondheidszorg",51100000,"Health Treatments/Aids","Gezondheidsbehandelingen/-hulpmiddelen",51103000,"Skin/Scalp Aid Products","Huid/Hoofdhuid Behandelingenproducten"]
[10000893,"Yes","Parasite Infestation Equipment (Powered)","Apparatuur voor Ongediertebestrijding (Elektrisch)","Includes any products that can be described/observed as a powered device intended to treat and/or prevent parasite infestations such as head lice or body lice.Includes products such as powered Head Lice Combs that have been designed to remove lice from wet hair following the application of head lice lotion treatments.Specifically","Omvat alle producten die kunnen worden waargenomen/omschreven als een elektrisch apparaat bedoeld voor het behandelen en/of voorkomen van parasitaire infecties, zoals hoofdluis of kleerluis. Omvat producten zoals elektrische hoofdluiskammen die zijn ontworpen om hoofdluis te verwijderen uit nat haar na het behandelen met hoofdluis lotion.","excludes all non–powered Parasite Infestation equipment, and Parasite Infestation treatments.Excludes products such as powered Parasite Infestation Equipment obtained only by prescription or from a healthcare professional, Parasite Treatments such as Head Lice Lotion, non–powered Parasite Infestation Treatments such as Head Lice Combs and all other types of Combs used for styling the hair.","Exclusief producten zoals elektrische apparaten bedoeld voor het behandelen van parasitaire infecties die alleen op doktersvoorschrift worden verkregen of afkomstig zijn van een zorgverlener, alle parasietbehandelingen zoals hoofdluis lotion, alle niet-elektrische apparaten bedoeld voor het behandelen en/of voorkomen van parasitaire infecties zoals elektrische hoofdluiskammen en alle andere soorten kammen die bedoeld zijn om het haar in model te brengen.",51000000,"Healthcare","Gezondheidszorg",51100000,"Health Treatments/Aids","Gezondheidsbehandelingen/-hulpmiddelen",51103000,"Skin/Scalp Aid Products","Huid/Hoofdhuid Behandelingenproducten"]
[10000903,"Yes","Acne/Rosacea Treatments","Acne/Gordelroos Behandelingen","Includes any products that can be described/observed as a preparation intended to treat and alleviate acne and rosacea skin diseases, which are characterised by pimples, redness of the face and flushing of the skin.Includes products such as Creams Remedies, Lotion Remedies and Sprays.","Omvat alle producten die kunnen worden waargenomen/omschreven als een preparaat dat bedoeld is ter behandeling en verlichting van acne en rosacea, huidziekten die worden gekenmerkt door puistjes, roodheid van het gezicht en rode plekken op de huid. Omvat producten zoals crèmes, lotions en sprays.","Excludes products such as Acne/Rosacea Treatments obtained only by prescription or from a healthcare professional, Aftersun products that are used to soothe and moisturise the skin after being in the sun, Anti–Spot Tools that are used remove spots and Cleansers/Washers that are used to clean the skin.","Exclusief producten zoals acne/rosacea behandelingen die alleen op doktersvoorschrift worden verkregen of afkomstig zijn van een zorgverlener, aftersun producten bedoeld om de huid te verzachten en te hydrateren na aan de zon te zijn blootgesteld, anti-spot middelen die gebruikt worden om pigmentvlekken te verwijderen en reinigingsmiddelen voor de huid.",51000000,"Healthcare","Gezondheidszorg",51100000,"Health Treatments/Aids","Gezondheidsbehandelingen/-hulpmiddelen",51103000,"Skin/Scalp Aid Products","Huid/Hoofdhuid Behandelingenproducten"]
[10000904,"Yes","Wart/Verruca/Corn/Callous Treatments","Wrat/Likdoorn/Eeltplek Behandelingen","Includes any products that can be described/observed as a preparation intended to treat skin growths caused by viral infections in the top layer of skin, such as those found on the hands or feet and to treat hard thickened skin found on the hands, feet and toes.Includes products such as Lotion Remedies, Cream Remedies and Tablet Remedies.Specifically","Omvat alle producten die kunnen worden waargenomen/omschreven als een preparaat dat bedoeld is ter behandeling van huidgezwellen veroorzaakt door virale infecties in de bovenste laag van de huid, zoals die gevonden op handen of voeten en ter behandeling van te harde, verdikte huid op handen, voeten en tenen. Omvat producten zoals crèmes, lotions en pillen.","excludes devices and implements designed to remove corns or calluses such as Pumice Stones.Excludes products such as Wart/Verruca/Corn/Callous Treatments obtained only by prescription or from a healthcare professional and Anti–Fungal products that are used to treat fungal skin infections such as athlete’s foot.","Sluit specifiek apparaten en werktuigen ontworpen om likdoorns of eelt te verwijderen uit zoals puimsteen. Exclusief producten zoals wrat/likdoorn/eeltplek behandelingen die alleen op doktersvoorschrift worden verkregen of afkomstig zijn van een zorgverlener, en anti-schimmel producten die worden gebruikt om schimmelinfecties van de huid te behandelen zoals voetschimmel.",51000000,"Healthcare","Gezondheidszorg",51100000,"Health Treatments/Aids","Gezondheidsbehandelingen/-hulpmiddelen",51103000,"Skin/Scalp Aid Products","Huid/Hoofdhuid Behandelingenproducten"]
[10000905,"Yes","Skin/Scalp Treatment Products Variety Packs","Huid/Hoofdhuid Behandelingsproducten – Assortimenten","Includes any products that can be described/observed as two or more distinct Skin/Scalp Treatment Products sold together, which exist within the schema belonging to different bricks but to the same class, that is two or more products contained within the same pack which cross bricks within the Skin/Scalp Treatment Products class. Includes products such as Rosacea Treatments and Insect Bite Relief sold together.Items that are received free with purchases should be removed from the classification decision–making process.","Omvat alle producten die kunnen worden waargenomen/omschreven als twee of meer verschillende producten voor huid- of hoofdhuidbehandeling die tezamen worden verkocht, die binnen het schema bestaan, maar bij verschillende bricks in dezelfde klasse behoren. Een voorbeeld is de gezamenlijke verkoop van anti-roos lotion en een anti-insectenbeetmiddel. Producten die gratis zijn, moeten buiten het beslissingsproces voor classificatie worden gelaten.","Excludes products such as Insect Bite Relief and Sunglasses variety packs and Skin/Scalp Treatment Products variety packs obtained only by prescription or from a healthcare professional.","Exclusief producten zoals assortimenten voor anti-insectenbeetmiddelen en zonnebrillen, en assortimenten voor huid- of hoofdhuidbehandeling die alleen op doktersvoorschrift worden verkregen of afkomstig zijn van een zorgverlener.",51000000,"Healthcare","Gezondheidszorg",51100000,"Health Treatments/Aids","Gezondheidsbehandelingen/-hulpmiddelen",51103000,"Skin/Scalp Aid Products","Huid/Hoofdhuid Behandelingenproducten"]
[10000906,"Yes","Skin/Scalp Treatment Products Other","Huid/Hoofdhuidbehandelingsproducten – Overig","Includes any products that can be described/observed as Skin/Scalp Treatments, where the user of the schema is not able to classify the product in existing bricks within the schema.","Omvat alle producten die kunnen worden waargenomen/omschreven als huid- of hoofdhuidbehandelingsmiddel, waarvan de gebruiker van het schema niet in staat is om het product in een van de bestaande bricks binnen het schema te classificeren.","Excludes any Skin/Scalp Treatments obtained only by prescription or from a healthcare professional and Skin/Scalp Treatments that are classified as Sunscreens, Aftersun Treatments, Acne Treatments and Insect Bite Relief Creams.","Exclusief alle producten die op dit moment zijn geclassificeerd in het schema, en huid- of hoofdhuidbehandelingsmiddelen die alleen op doktersvoorschrift worden verkregen of afkomstig zijn van een zorgverlener.",51000000,"Healthcare","Gezondheidszorg",51100000,"Health Treatments/Aids","Gezondheidsbehandelingen/-hulpmiddelen",51103000,"Skin/Scalp Aid Products","Huid/Hoofdhuid Behandelingenproducten"]
[10000894,"Yes","Travel Sickness Preventatives – Medicinal","Preventieve Middelen tegen Reisziekte – Geneeskundig","Includes any products that can be described/observed as medicinal remedies that prevent the feeling of illness, particularly nausea when travelling. Includes products such as Liquid Remedies, Soluble Powder Remedies, Tablet Form Remedies, and Sprays.","Omvat alle producten die kunnen worden waargenomen/omschreven als medicinale middelen die het gevoel van ziekte, met name misselijkheid, bij reizen voorkomen. Omvat producten zoals drankjes, oplosbare poeders, pillen en sprays.","Excludes products such as Travel Sickness Preventatives obtained only by a prescription or from a healthcare professional and non–medicinal Travel Sickness Preventatives such as Travel Sickness Wristbands.","Exclusief producten als medicinale preventieve middelen tegen reisziekte die alleen op doktersvoorschrift worden verkregen of afkomstig zijn van een zorgverlener, en niet-medicinale preventieve middelen tegen reisziekte zoals reisziekte polsbandjes.",51000000,"Healthcare","Gezondheidszorg",51100000,"Health Treatments/Aids","Gezondheidsbehandelingen/-hulpmiddelen",51103100,"Travel Sickness Products","Producten tegen Reisziekte"]
[10000895,"Yes","Travel Sickness Preventatives – Non Medicinal","Preventieve Middelen tegen Reisziekte – Niet-geneeskundig","Includes any products that can be described/observed as non–medicinal remedies that prevent the feeling of illness, particularly nausea when travelling. Includes products such as Wristbands.","Omvat alle producten die kunnen worden waargenomen/omschreven als niet-medicinale middelen die het gevoel van ziekte, met name misselijkheid, bij reizen voorkomen. Omvat producten zoals polsbandjes.","Excludes products such as Non–Medicinal Travel Sickness Preventatives obtained only by a prescription or from a healthcare professional, Medicinal Travel Sickness Preventatives such as Liquid Remedies, Soluble Remedies, Tablet Form Remedies, Sprays and Ear Plugs.","Exclusief producten als niet-medicinale preventieve middelen tegen reisziekte die alleen op doktersvoorschrift worden verkregen of afkomstig zijn van een zorgverlener, en medicinale preventieve middelen tegen reisziekte zoals drankjes, oplosbare poeders, pillen en sprays.",51000000,"Healthcare","Gezondheidszorg",51100000,"Health Treatments/Aids","Gezondheidsbehandelingen/-hulpmiddelen",51103100,"Travel Sickness Products","Producten tegen Reisziekte"]
[10000896,"Yes","Travel Sickness Products Variety Packs","Producten tegen Reisziekte – Assortimenten","Includes any products that can be described/observed as two or more distinct Travel Sickness Products sold together, which exist within the schema belonging to different bricks but to the same class, that is two or more products contained within the same pack which cross bricks within the Travel Sickness Products class. Includes products such as Travel Sickness Wristbands and Tablets sold together.Items that are received free with purchases should be removed from the classification decision–making process.","Omvat alle producten die kunnen worden waargenomen/omschreven als twee of meer verschillende producten tegen reisziekte die tezamen worden verkocht, die binnen het schema bestaan, maar bij verschillende bricks in dezelfde klasse behoren. Een voorbeeld is de gezamenlijke verkoop van polsbandjes tegen reisziekte en pillen. Producten die gratis zijn, moeten buiten het beslissingsproces voor classificatie worden gelaten.","Excludes products such as Travel Sickness Wristbands and Sunglasses variety packs and Travel Sickness Products variety packs obtained only by prescription or from a healthcare professional.","Exclusief producten zoals assortimenten voor anti-reisziekte polsbandjes en zonnebrillen, en assortimenten tegen reisziekte die alleen op doktersvoorschrift worden verkregen of afkomstig zijn van een zorgverlener.",51000000,"Healthcare","Gezondheidszorg",51100000,"Health Treatments/Aids","Gezondheidsbehandelingen/-hulpmiddelen",51103100,"Travel Sickness Products","Producten tegen Reisziekte"]
[10000897,"Yes","Travel Sickness Products Other","Producten tegen Reisziekte – Overig","Includes any products that can be described/observed as Travel Sickness Products, where the user of the schema is not able to classify the product in existing bricks within the schema.","Omvat alle producten die kunnen worden waargenomen/omschreven als middel tegen reisziekte, waarvan de gebruiker van het schema niet in staat is om het product in een van de bestaande bricks binnen het schema te classificeren.","Excludes any Travel Sickness products obtained only by prescription or from a healthcare professional and Travel Sickness products that are classified within Flower/Homeopathic Remedies.","Exclusief alle producten die op dit moment zijn geclassificeerd in het schema, en middelen tegen reisziekte die alleen op doktersvoorschrift worden verkregen of afkomstig zijn van een zorgverlener.",51000000,"Healthcare","Gezondheidszorg",51100000,"Health Treatments/Aids","Gezondheidsbehandelingen/-hulpmiddelen",51103100,"Travel Sickness Products","Producten tegen Reisziekte"]
[10000898,"Yes","Enteral Feeding Gastrostomy Kits","Enterale Voeding Gastrostomie Kits","Includes any products that can be described/observed as those which contain some or all of the products used to insert tubes into the gastric tract when enteral feeding is required.Includes products such as valves, fasteners, balloons, extension and connection parts. Products will typically include safety features making them difficult to remove once installed.","Omvat alle producten die kunnen worden waargenomen/omschreven als die producten die enkele of alle producten bevatten die gebruikt worden om buisjes in het maag-darmkanaal in te voegen wanneer enterale voeding benodigd is. Omvat producten zoals kleppen, bevestigingsmiddelen, ballonnen, uitbreidings- en verbindingsstukken. Deze producten omvatten doorgaans veiligheidsvoorzieningen waardoor ze moeilijk te verwijderen zijn nadat deze zijn geïnstalleerd.","Excludes products such as Enteral Feeding Gastrostomy Kits obtained only by prescription or from a healthcare professional, other sets and kits used in the process of enteral feeding such as Pump Kits, and other products used in the process of enteral feeding such as Tubes, Bags and Containers which are not provided as part of a set or kit.","Exclusief producten als enterale voeding gastronomie kits die alleen op doktersvoorschrift worden verkregen of afkomstig zijn van een zorgverlener, andere sets en kits als gebruikt in het proces van enterale voeding zoals pompsets, en andere producten als gebruikt in het proces van enterale voeding zoals slangen, zakken en dozen die niet geleverd worden als onderdeel van een set of kit.",51000000,"Healthcare","Gezondheidszorg",51100000,"Health Treatments/Aids","Gezondheidsbehandelingen/-hulpmiddelen",51103200,"Enteral Feeding Equipment","Enterale Voedingsuitrusting"]
[10000899,"Yes","Enteral Feeding Pumps/Feeding Sets","Enterale Voedingspompen/Voedingssets","Includes any products that can be described/observed as those used to pump the nutritional feed into the patient who requires enteral feeding.Includes products such as the pumps themselves, gravity sets and nutrition bags.","Omvat alle producten die kunnen worden waargenomen/omschreven als die producten die gebruikt worden om de voeding in de patiënt te pompen, die sondevoeding nodig heeft. Omvat producten zoals de pompen zelf, sondevoedingsets en voedingszakken","Excludes products such as Enteral Pumps/Feeding Sets obtained only by prescription or from a healthcare professional, other sets and kits used in the process of enteral feeding such as Gastronomy Kits, and other products used in the process of enteral feeding such as Nutrition Bags and Tubes which are not provided as part of a set or kit.","Exclusief producten als enterale pomp- en voedingsset die alleen op doktersvoorschrift worden verkregen of afkomstig zijn van een zorgverlener, andere sets en kits als gebruikt in het proces van enterale voeding zoals gastronomiesets, en andere producten als gebruikt in het proces van enterale voeding zoals voedingszakken en slangen die niet geleverd worden als onderdeel van een set of kit.",51000000,"Healthcare","Gezondheidszorg",51100000,"Health Treatments/Aids","Gezondheidsbehandelingen/-hulpmiddelen",51103200,"Enteral Feeding Equipment","Enterale Voedingsuitrusting"]
[10000900,"Yes","Enteral Feeding Nutrition Bags/Containers","Enterale Voeding Voedingszakken/-dozen","Includes any products that can be described/observed as being specifically intended to store food during the process of enteral feeding.Includes products such as feeding bags and feeding containers.","Omvat alle producten die kunnen worden waargenomen/omschreven als zijnde specifiek bedoeld om voedsel tijdens het proces van sondevoeding te bewaren. Omvat producten zoals voedingzakken en voedingsdozen.","Excludes products such as Enteral Feeding Nutrition Bags/Containers obtained only by prescription from a health professional and other products intended to be used in the process of enteral feeding such as Feeding Pumps and Tubes.","Exclusief producten als enterale voedingszakken/-dozen die alleen op doktersvoorschrift worden verkregen of afkomstig zijn van een zorgverlener, en andere producten als gebruikt in het proces van enterale voeding zoals voedingspompen en slangen.",51000000,"Healthcare","Gezondheidszorg",51100000,"Health Treatments/Aids","Gezondheidsbehandelingen/-hulpmiddelen",51103200,"Enteral Feeding Equipment","Enterale Voedingsuitrusting"]
[10000901,"Yes","Enteral Feeding Tubes","Enterale Voedingsbuisjes","Includes any products that can be described/observed as tubes, which are designed to be used in the process of enteral feeding.Includes products such as Feeding Tubes, Decompression Tubes, Extension Tubes and Gastrostomy Tubes.","Omvat alle producten die kunnen worden waargenomen/omschreven als slangen die zijn ontworpen voor gebruik in het proces van sondevoeding. Omvat producten zoals sondevoedingslangen, decompressieslangen, verlengslangen en gastrostomische slangen.","Excludes products such as Enteral Feeding Tubes obtained only by prescription or from a healthcare professional, also excludes other products which are used during the enteral feeding process such as Pumps, Bags and Containers.","Exclusief producten als enterale voedingsslangen die alleen op doktersvoorschrift worden verkregen of afkomstig zijn van een zorgverlener, en andere producten als gebruikt in het proces van enterale voeding zoals pompen, zakken en dozen.",51000000,"Healthcare","Gezondheidszorg",51100000,"Health Treatments/Aids","Gezondheidsbehandelingen/-hulpmiddelen",51103200,"Enteral Feeding Equipment","Enterale Voedingsuitrusting"]
[10000902,"Yes","Enteral Feeding Equipment Other","Enterale Voedingsuitrusting – Overig","Includes any products that can be described/observed as Enteral Feeding Equipment, where the user of the schema is not able to classify the product in existing bricks within the schema","Omvat alle producten die kunnen worden waargenomen/omschreven als enterale voedingsuitrusting, waarvan de gebruiker van het schema niet in staat is om het product in een van de bestaande bricks binnen het schema te classificeren.","Excludes all currently classified Enteral Feeding Equipment such as Feeding Tubes and Containers, Drug Administration Equipment and Enteral Feeding Equipment obtained only by prescription or from a healthcare professional.","Exclusief alle producten die op dit moment zijn geclassificeerd in het schema, en enterale voedingsuitrusting die alleen op doktersvoorschrift worden verkregen of afkomstig zijn van een zorgverlener.",51000000,"Healthcare","Gezondheidszorg",51100000,"Health Treatments/Aids","Gezondheidsbehandelingen/-hulpmiddelen",51103200,"Enteral Feeding Equipment","Enterale Voedingsuitrusting"]
[10000921,"Yes","Enteral Feeding Equipment Variety Packs","Enterale Voedingsuitrusting – Assortimenten","Includes any products that can be described/observed as two or more distinct Enteral Feeding Equipment products sold together, which exist within the schema belonging to different bricks but to the same class, that is two or more products contained within the same pack which cross bricks within the Enteral Feeding Equipment class. Includes products such as Enteral Feeding Bags and Pumps sold together.Items that are received free with purchases should be removed from the classification decision–making process.","Omvat alle producten die kunnen worden waargenomen/omschreven als twee of meer verschillende producten voor enterale voedingsuitrusting die tezamen worden verkocht, die binnen het schema bestaan, maar bij verschillende bricks in dezelfde klasse behoren. Een voorbeeld is de gezamenlijke verkoop van enterale . voedingszakken en -pompen. Producten die gratis zijn, moeten buiten het beslissingsproces voor classificatie worden gelaten.","Excludes products such as Enteral Feeding Bags and Blood Sugar Tests variety packs and Enteral Feeding Equipment variety packs obtained only by prescription or from a healthcare professional.","Exclusief producten zoals assortimenten voor enterale voedingszakken en een bloedsuikertest, en assortimenten voor enterale voedingsuitrusting die alleen op doktersvoorschrift worden verkregen of afkomstig zijn van een zorgverlener.",51000000,"Healthcare","Gezondheidszorg",51100000,"Health Treatments/Aids","Gezondheidsbehandelingen/-hulpmiddelen",51103200,"Enteral Feeding Equipment","Enterale Voedingsuitrusting"]
[10002423,"Yes","Oral/Mouth Treatments","Mondbehandelingen","Includes any products that can be described/observed as a preparation specifically deigned to prevent, treat or alleviate ailments or disorders involving the mouth.Includes products such as Halitosis and Ulcer Treatments.","Omvat alle producten die kunnen worden waargenomen/omschreven als een preparaat specifiek ontworpen om aandoeningen of kwalen aangaande de mond te voorkomen, te behandelen of te verlichten. Omvat producten zoals behandelingen voor slechte adem en zweren.","Excludes products such as Oral/Mouth Treatments obtained only by prescription or from a healthcare professional, Dental Hygiene Products and Breath Fresheners/Mouth Rinses.","Exclusief producten als mondbehandelingen die alleen op doktersvoorschrift worden verkregen of afkomstig zijn van een zorgverlener, producten voor gebithygiëne en ademverfrissers/mondspoelingen.",51000000,"Healthcare","Gezondheidszorg",51100000,"Health Treatments/Aids","Gezondheidsbehandelingen/-hulpmiddelen",51103300,"Oral/Mouth Treatments","Mondbehandelingen"]
[10000460,"Yes","Condoms","Condooms","Includes any products that can be described/observed as a thin latex sheath that is either worn by males or used by a female during sexual activity, to prevent conception and sexually transmitted diseases.These products are available with or without spermicide or lubricant and can be flavoured.","Omvat alle producten die kunnen worden waargenomen/omschreven als een dun latex omhulsel dat ofwel wordt gedragen door mannen, of wordt gebruikt door een vrouw, tijdens de seks om conceptie en seksueel overdraagbare ziekten te voorkomen. Deze producten zijn verkrijgbaar met of zonder zaaddodend middel of smeermiddel, en kunnen een smaakje hebben.","Excludes products such as Contraceptive Spermicides, Diaphragms, Sponges Cervical Caps and Condoms obtained only by perscription or from a healthcare professional..","Exclusief producten als spermiciden, pessaria, cervixkapjes en condooms die alleen op doktersvoorschrift worden verkregen of afkomstig zijn van een zorgverlener",51000000,"Healthcare","Gezondheidszorg",51110000,"Family Planning","Gezinsplanning",51111500,"Barrier Contraception","Mechanische Anticonceptiva"]
[10000461,"Yes","Diaphragms/Cervical Caps","Pessaria/Cervixkapjes","Includes any products that can be described/observed as a device, worn by a woman during sexual activity, that is specifically designed to be inserted into the vagina to prevent conception and sexually transmitted diseases. These products act as a barrier against sperm and are available with or without spermicides.","Omvat alle producten die kunnen worden waargenomen/omschreven als een apparaat, gedragen door een vrouw tijdens de seks, dat specifiek is ontworpen om te worden ingebracht in de vagina om conceptie en seksueel overdraagbare ziekten te voorkomen. Deze producten werken als een barrière tegen sperma en zijn leverbaar met of zonder zaaddodende middelen.","Excludes products such as Contraceptive Spermicides, IUD Condoms and Diaphragms/Cervical Caps obtained only by prescription or from a healthcare professional.","Exclusief producten als anticonceptie spermiciden, spiraaltjes, condooms en cervixkapjes die alleen op doktersvoorschrift worden verkregen of afkomstig zijn van een zorgverlener.",51000000,"Healthcare","Gezondheidszorg",51110000,"Family Planning","Gezinsplanning",51111500,"Barrier Contraception","Mechanische Anticonceptiva"]
[10000462,"Yes","Spermicides","Spermiciden","Includes any products that can be described/observed as a preparation specifically designed for use as a sperm–killing agent, and typically intended as an aid to birth control. Includes products in cream, gel, tablet, film or liquid form. These products are used before any sexual activity as additional protection against the risk of becoming pregnant and to prevent sexually transmitted diseases. Products are normally used with a Diaphragm, Cervical Cap or Condom, but can be inserted directly into the vagina.","Omvat alle producten die kunnen worden waargenomen/omschreven als een preparaat specifiek ontworpen voor gebruik als een spermadodend middel, en typisch bedoeld als hulpmiddel bij anticonceptie. Omvat producten in crème, gel, pil, folie of vloeibare vorm. Deze producten worden gebruikt vooraf aan elke vorm van seks als extra bescherming tegen het risico van zwanger te worden, en om seksueel overdraagbare ziekten te voorkomen. Producten worden gewoonlijk gebruikt met een pessarium of condoom, maar kunnen ook direct in de vagina worden ingebracht.","Excludes products such as Contraceptive Spermicides obtained only by prescription or from a healthcare professional, as well as Sponges and Hormonal Contraception.","Exclusief producten als anticonceptie spermiciden die alleen op doktersvoorschrift worden verkregen of afkomstig zijn van een zorgverlener, alsmede vaginale sponzen en hormonale anticonceptie.",51000000,"Healthcare","Gezondheidszorg",51110000,"Family Planning","Gezinsplanning",51111500,"Barrier Contraception","Mechanische Anticonceptiva"]
[10000674,"Yes","Barrier Contraception Variety Packs","Mechanische Anticonceptiva – Assortimenten","Includes any products that can be described/observed as two or more distinct Barrier Contraception products sold together, which exist within the schema belonging to different bricks but to the same class, that is two or more products contained within the same pack which cross bricks within the Barrier Contraception class. Includes products such as Diaphragms and Spermicides sold together.Items that are received free with purchases should be removed from the classification decision–making process.","Omvat alle producten die kunnen worden waargenomen/omschreven als twee of meer verschillende mechanische anticonceptiva producten die tezamen worden verkocht, die binnen het schema bestaan, maar bij verschillende bricks in dezelfde klasse behoren. Een voorbeeld is de gezamenlijke verkoop van een pessarium met spermiciden. Producten die gratis zijn, moeten buiten het beslissingsproces voor classificatie worden gelaten.","Excludes products such as Diaphragms and Ovulation Tests variety packs and Barrier Contraception variety packs obtained only by prescription or from a healthcare professional.","Exclusief producten zoals assortimenten voor een pessarium en een ovulatietest, en assortimenten voor mechanische anticonceptiva die alleen op doktersvoorschrift worden verkregen of afkomstig zijn van een zorgverlener.",51000000,"Healthcare","Gezondheidszorg",51110000,"Family Planning","Gezinsplanning",51111500,"Barrier Contraception","Mechanische Anticonceptiva"]
[10000838,"Yes","Barrier Contraception Other","Mechanische Anticonceptiva – Overig","Includes any products that can be described/observed as Barrier Contraception products, where the user of the schema is not able to classify the products in existing bricks within the schema.","Omvat alle producten die kunnen worden waargenomen/omschreven als mechanisch anticonceptiemiddel, waarvan de gebruiker van het schema niet in staat is om het product in een van de bestaande bricks binnen het schema te classificeren.","Excludes all currently classified Hormonal Contraception and Intra–Uterine Contraception products and Barrier Contraception obtained only by prescription or from a healthcare professional","Exclusief alle producten die op dit moment zijn geclassificeerd in het schema, en mechanische anticonceptiva die alleen op doktersvoorschrift worden verkregen of afkomstig zijn van een zorgverlener.",51000000,"Healthcare","Gezondheidszorg",51110000,"Family Planning","Gezinsplanning",51111500,"Barrier Contraception","Mechanische Anticonceptiva"]
[10000463,"Yes","Hormonal Contraception","Hormonale Anticonceptiva","Includes any products that can be described/observed as a hormone preparation in pill, patch, injection or implant form that prevents pregnancy by suppressing ovulation, causing the cervical mucus to thicken and/or preventing the thickening of the uterus lining, so as not to allow successful implantation of the embryo on the womb.","Omvat alle producten die kunnen worden waargenomen/omschreven als een hormoonpreparaat in pil, pleister, injectie of implantaat vorm die zwangerschap voorkomt door de ovulatie te onderdrukken, waardoor het baarmoederhalsslijmvlies dikker wordt en/of door het voorkomen van het dikker worden van de baarmoederwand, waardoor het embryo zich niet succesvol kan nestelen in de baarmoeder.","Excludes products such as Hormonal Contraception obtained only by prescription or from a healthcare professional, Hormonal IUD, Sponges and Spermicides.","Exclusief producten als hormonale anticonceptie die alleen op doktersvoorschrift worden verkregen of afkomstig zijn van een zorgverlener, alsmede hormonale spiraaltjes, vaginale sponzen en spermiciden.",51000000,"Healthcare","Gezondheidszorg",51110000,"Family Planning","Gezinsplanning",51111600,"Hormonal Contraception","Hormonale Anticonceptiva"]
[10000464,"Yes","Intra-uterine Contraception","Anticonceptiva – Spiraaltje","Includes any products that can be described/observed as a plastic device which is inserted into the womb to interfere with the migration of sperm from the vagina to the fallopian tube or to accelerate egg transport through the fallopian tube and thus impede fertilisation.Products include plastic Intra–Uterine Contraceptive Devices with or without copper and medicated Intra–Uterine Contraceptive Devices that are designed to release hormones over a period of time.","Omvat alle producten die kunnen worden waargenomen/omschreven als een plastic apparaat dat wordt ingebracht in de baarmoeder om het binnendringen van sperma van de vagina in de eileider te verhinderen, of om het transport van eitjes door de eileider te versnellen om aldus bevruchting te belemmeren. Producten omvatten plastic spiraaltjes met of zonder koper en medicinale spiraaltjes die zijn ontworpen om hormonen vrij te geven gedurende een bepaalde periode.","Excludes products such as Intra–Uterine Contraceptive devices obtained only by prescription or from a healthcare professional, as well as Hormonal Contraception, Diaphragms, Cervical Caps and Sponges.","Exclusief producten als spiraaltjes die alleen op doktersvoorschrift worden verkregen of afkomstig zijn van een zorgverlener, alsmede hormonale anticonceptie, pessaria, cervixkapjes en vaginale sponzen.",51000000,"Healthcare","Gezondheidszorg",51110000,"Family Planning","Gezinsplanning",51111700,"Intra-uterine Contraception","Spiraaltje – Anticonceptiva"]
[10000675,"Yes","Family Planning Variety Packs","Gezinsplanning – Assortimenten","Includes any products that can be described/observed as two or more distinct Family Planning products sold together which exist within the schema but belong to different classes, that is two or more products contained within the same pack which cross classes within the Family Planning Family. Includes products such as IUDs and Spermicides variety packs. Items that are received free with purchases should be removed from the classification decision–making process.","Omvat alle producten die kunnen worden waargenomen/omschreven als twee of meer verschillende producten voor gezinsplanning die tezamen worden verkocht, die binnen het schema bestaan, maar bij verschillende bricks in dezelfde klasse behoren. Een voorbeeld is de gezamenlijke verkoop van spiraaltjes en spermiciden. Producten die gratis zijn, moeten buiten het beslissingsproces voor classificatie worden gelaten.","Excludes products such as Diaphragms and Spermicides variety packs, Diaphragms and Ovulation Tests variety packs and Family Planning variety packs obtained only by prescription or from a healthcare professional.","Exclusief producten zoals assortimenten voor een pessarium en spermiciden, assortimenten voor een pessarium en een ovulatietest, en assortimenten voor gezinsplanning die alleen op doktersvoorschrift worden verkregen of afkomstig zijn van een zorgverlener.",51000000,"Healthcare","Gezondheidszorg",51110000,"Family Planning","Gezinsplanning",51111800,"Family Planning Variety Packs","Gezinsplanning – Assortimenten"]
[10000465,"Yes","Dietary Aid – Appetite/Fat Control","Dieetmiddel – Eetlust-/Vetcontrole","Includes any products that can be described/observed as a preparation containing specific ingredients designed to stimulate or suppress the appetite. These products are not designed to be a replacement for meals.Products also include Fat Burners and Fat Blockers designed to decrease the fat content of the body.Specifically","Omvat alle producten die kunnen worden waargenomen/omschreven als een preparaat dat specifieke ingrediënten bevat, bedoeld om de eetlust te stimuleren of te onderdrukken. Deze producten zijn niet bedoeld als vervanging van maaltijden. Producten omvatten ook vetverbranders en vetblokkers bedoeld om het vetgehalte van het lichaam te verminderen.","excludes all meal replacement products.Excludes products such as Dietary Aids – Appetite and Fat Control products obtained only by prescription or from a healthcare professional and Dietary Aids – Meal Replacements.","Exclusief producten als dieetmiddelen die eetlust en vet controleren die alleen op doktersvoorschrift worden verkregen of afkomstig zijn van een zorgverlener, en exclusief alle maaltijdvervangende producten.",51000000,"Healthcare","Gezondheidszorg",51120000,"Health Enhancement","Bevordering Gezondheid",51121500,"Dietary Aids","Dieetmiddelen"]
[10000466,"Yes","Dietary Aid – Meal Replacement","Dieetmiddel – Maaltijdvervanger","Includes any products that can be described/observed as a preparation that is consumed as a meal substitute in order to promote slimming, weight gain or weight control by increasing the metabolism or reducing the feeling of hunger.","Omvat alle producten die kunnen worden waargenomen/omschreven als een preparaat dat wordt gebruikt als een maaltijdvervanger met het oog op het bevorderen van afvallen, gewichtstoename of gewichtscontrole door het verhogen van de stofwisseling of het verminderen van het hongergevoel.","Excludes products such as Appetite Suppressants or Enhancers or Nutritional Supplements that are designed to be consumed in addition to normal meals rather than to replace them and Slimming Meals that are not marketed as meal replacements.","Exclusief producten als eetlust onderdrukkers of stimulanten of voedingssupplementen die ontworpen zijn om te consumeren als aanvulling op gewone maaltijden in plaats van deze te vervangen, en afvalmaaltijden die niet aangeduid worden als maaltijdvervangers.",51000000,"Healthcare","Gezondheidszorg",51120000,"Health Enhancement","Bevordering Gezondheid",51121500,"Dietary Aids","Dieetmiddelen"]
[10000650,"Yes","Dietary Aids Variety Packs","Dieetmiddelen – Assortimenten","Includes any products that can be described/observed as two or more distinct Dietary Aids sold together, which exist within the schema belonging to different bricks but to the same class, that is two or more products contained within the same pack which cross bricks within the Dietary Aids class. Includes products such as Fat Blockers and Meal Replacements sold together.Items that are received free with purchases should be removed from the classification decision–making process.","Omvat alle producten die kunnen worden waargenomen/omschreven als twee of meer verschillende dieetmiddelen die tezamen worden verkocht, die binnen het schema bestaan, maar bij verschillende bricks in dezelfde klasse behoren. Een voorbeeld is de gezamenlijke verkoop van vetblokkers en maaltijdvervangers. Producten die gratis zijn, moeten buiten het beslissingsproces voor classificatie worden gelaten.","Excludes products such as Fat Blockers with Glucose Tests variety packs and Dietary Aids variety packs obtained only by prescription or from a healthcare professional.","Exclusief producten zoals assortimenten voor vetblokkers en maaltijdvervangers, en assortimenten voor dieetmiddelen die alleen op doktersvoorschrift worden verkregen of afkomstig zijn van een zorgverlener.",51000000,"Healthcare","Gezondheidszorg",51120000,"Health Enhancement","Bevordering Gezondheid",51121500,"Dietary Aids","Dieetmiddelen"]
[10000841,"Yes","Dietary Aids Other","Dieetmiddelen – Overig","Includes any products that can be described/observed as Dietary Aids products, where the user of the schema is not able to classify the products in existing bricks within the schema.","Omvat alle producten die kunnen worden waargenomen/omschreven als dieetmiddel, waarvan de gebruiker van het schema niet in staat is om het product in een van de bestaande bricks binnen het schema te classificeren.","Excludes all products currently classified as Vitamins, Minerals and Nutritional Supplements and Dietary Aids obtained only by prescription or from a healthcare professional.","Exclusief alle producten die op dit moment zijn geclassificeerd in het schema, en dieetmiddelen die alleen op doktersvoorschrift worden verkregen of afkomstig zijn van een zorgverlener.",51000000,"Healthcare","Gezondheidszorg",51120000,"Health Enhancement","Bevordering Gezondheid",51121500,"Dietary Aids","Dieetmiddelen"]
[10000467,"Yes","Vitamins/Minerals","Vitaminen/Mineralen","Includes any products that can be described/observed as a preparation, composed of one or more minerals such as calcium, silica, zinc, or of one or more vitamins, such as A, C, B–complex, or a combination of vitamins and minerals, which is taken as a dietary supplement to help prevent and/or mitigate vitamin or mineral deficiency conditions of the human body.","Omvat alle producten die kunnen worden waargenomen/omschreven als een preparaat bestaande uit een of meer mineralen zoals calcium, silicium, zink, of een of meer vitaminen zoals A, C, B-complex, of een combinatie van vitaminen en mineralen, die wordt ingenomen als een voedingssupplement die helpen om een vitamine- of mineraaltekort van het menselijk lichaam te voorkomen en/of te verminderen .","Excludes products such as Vitamins and Minerals obtained only by prescription or from a healthcare professional, Nutritional Supplements, Appetite Suppressants and Fat Blockers.","Exclusief producten als vitaminen en mineralen die alleen op doktersvoorschrift worden verkregen of afkomstig zijn van een zorgverlener, voedingssupplementen, hongeronderdrukkers en vetblokkers.",51000000,"Healthcare","Gezondheidszorg",51120000,"Health Enhancement","Bevordering Gezondheid",51121600,"Vitamins/Minerals/Nutritional Supplements","Vitaminen/Mineralen/Voedingssupplementen"]
[10000468,"Yes","Nutritional Supplements","Voedingssupplementen","Includes any products that can be described/observed as a preparation containing specific ingredients designed to enhance and improve health, to prevent or mitigate various deficiency conditions in the human body or to increase energy levels. Includes products of botanical, animal or marine origin.","Omvat alle producten die kunnen worden waargenomen/omschreven als een preparaat dat specifieke ingrediënten bevat, bedoeld om de gezondheid te verhogen en te verbeteren, om verschillende tekorten in het menselijk lichaam te voorkomen of te beperken, of om energiegehaltes te verhogen. Omvat producten van botanische, dierlijke of maritieme oorsprong.","Excludes products such as Nutritional Supplements obtained only by prescription or from a healthcare professional, Vitamins, Minerals and Dietary Aids used to replace meals and Dietary Aids designed to stimulate or suppress the appetite or to control body fat levels.","Exclusief producten als voedingssupplementen die alleen op doktersvoorschrift worden verkregen of afkomstig zijn van een zorgverlener, vitaminen en mineralen, dieethulpmiddelen bedoeld om maaltijden te vervangen en dieethulpmiddelen bedoeld om de honger te stimuleren of te onderdrukken of om de lichaamsvetgehalte te controleren.",51000000,"Healthcare","Gezondheidszorg",51120000,"Health Enhancement","Bevordering Gezondheid",51121600,"Vitamins/Minerals/Nutritional Supplements","Vitaminen/Mineralen/Voedingssupplementen"]
[10000651,"Yes","Vitamins/Minerals/Nutritional Supplements Variety Packs","Vitaminen/Mineralen/Voedingssupplementen – Assortimenten","Includes any products that can be described/observed as two or more distinct Vitamins, Minerals and Nutritional Supplements sold together, which exist within the schema belonging to different bricks but to the same class, that is two or more products contained within the same pack which cross bricks within the Vitamins, Minerals and Nutritional Supplements class. Includes products such as Hormone Boosters and Minerals sold together.Items that are received free with purchases should be removed from the classification decision–making process.","Omvat alle producten die kunnen worden waargenomen/omschreven als twee of meer verschillende vitaminen, mineralen of voedingssupplementen die tezamen worden verkocht, die binnen het schema bestaan, maar bij verschillende bricks in dezelfde klasse behoren. Een voorbeeld is de gezamenlijke verkoop van mineralen en hormoonopwekkers. Producten die gratis zijn, moeten buiten het beslissingsproces voor classificatie worden gelaten.","Excludes products such as Vitamins and Glucose Tests variety packs and Vitamins, Minerals and Nutritional Supplements variety packs obtained only by prescription or from a healthcare professional.","Exclusief producten zoals assortimenten voor vitaminen en glucosetesten, en assortimenten voor vitaminen, mineralen en voedingssupplementen die alleen op doktersvoorschrift worden verkregen of afkomstig zijn van een zorgverlener.",51000000,"Healthcare","Gezondheidszorg",51120000,"Health Enhancement","Bevordering Gezondheid",51121600,"Vitamins/Minerals/Nutritional Supplements","Vitaminen/Mineralen/Voedingssupplementen"]
[10000649,"Yes","Health Enhancement Variety Packs","Bevordering Gezondheid – Assortimenten","Includes any products that can be described/observed as two or more distinct Health Enhancement products sold together which exist within the schema but belong to different classes, that is two or more products contained within the same pack which cross classes within the Health Enhancement Family. Includes products such as Minerals with Meal Replacement variety packs. Items that are received free with purchases should be removed from the classification decision–making process.","Omvat alle producten die kunnen worden waargenomen/omschreven als twee of meer verschillende gezondheidsbevorderende middelen die tezamen worden verkocht, die binnen het schema bestaan, maar bij verschillende bricks in dezelfde klasse behoren. Een voorbeeld is de gezamenlijke verkoop van mineralen met maaltijdvervangers. Producten die gratis zijn, moeten buiten het beslissingsproces voor classificatie worden gelaten.","Excludes products such as Fat Blockers and Meal Replacement variety packs, Vitamins and Glucose Tests variety packs and Health Enhancement variety packs obtained only by prescription or from a healthcare professional.","Exclusief producten zoals assortimenten voor vetblokkers en maaltijdvervangers, assortimenten voor vitaminen en glucosetesten, en assortimenten voor gezondheidsbevorderende middelen die alleen op doktersvoorschrift worden verkregen of afkomstig zijn van een zorgverlener.",51000000,"Healthcare","Gezondheidszorg",51120000,"Health Enhancement","Bevordering Gezondheid",51121800,"Health Enhancement Variety Packs","Bevordering Gezondheid – Assortimenten"]
[10000917,"Yes","Energy/Stimulant Products","Energieopwekkende/Stimulerende Middelen","Includes any products that can be described/observed as a substance intended to stimulate the body and/or mind. Includes products such as caffeine. Includes products such as tablet stimulants, powder stimulants and liquid stimulants delivered in a specific quantities intended to be consumed in measured doses. Specifically excludes all Ready to Drink and Not Ready to Drink Stimulant/Energy beverages. Excludes products such as Energy/Stimulant products obtained only by prescription or by a healthcare professional, all Vitamins that provide the body with natural substances and all Confectionery and non-alcoholic Beverages that claim to provide a specific health benefit.","Omvat alle producten die kunnen worden waargenomen/omschreven als een substantie die bedoeld is om lichaam en/of geest te stimuleren. Omvat stoffen zoals cafeïne. Omvat producten als stimulerende middelen in pilvorm, poedervorm en vloeibare vorm.","Includes any products that can be described/observed as a substance intended to stimulate the body and/or mind. Includes products such as caffeine. Includes products such as tablet stimulants, powder stimulants and liquid stimulants delivered in a specific quantities intended to be consumed in measured doses. Specifically excludes all Ready to Drink and Not Ready to Drink Stimulant/Energy beverages. Excludes products such as Energy/Stimulant products obtained only by prescription or by a healthcare professional, all Vitamins that provide the body with natural substances and all Confectionery and non-alcoholic Beverages that claim to provide a specific health benefit.","Sluit specifiek alle kant-en-klare en niet kant-en-klare stimulerende dranken en energiedranken uit. Exclusief producten als energieopwekkende/stimulerende middelen die alleen op doktersvoorschrift worden verkregen of afkomstig zijn van een zorgverlener, alle vitaminen die het lichaam voorzien van natuurlijke stoffen en alle zoetwaren en niet-alcoholische dranken die beweren een specifiek gezondheidsvoordeel te leveren.",51000000,"Healthcare","Gezondheidszorg",51120000,"Health Enhancement","Bevordering Gezondheid",51121900,"Energy/Stimulant Products","Energieopwekkende/Stimulerende Middelen"]
[10000918,"Yes","Energy/Stimulant Products Other","Energieopwekkende/Stimulerende Middelen – Overig","Includes any products that can be described/observed as Energy/Stimulant Products, where the user of the schema is not able to classify the product in existing bricks within the schema.","Omvat alle producten die kunnen worden waargenomen/omschreven als energieopwekkend of stimulerend middel, waarvan de gebruiker van het schema niet in staat is om het product in een van de bestaande bricks binnen het schema te classificeren.","Excludes all products currently classified as Energy/Stimulant Products, Dietary Aids and Vitamins, Minerals and Nutritional Supplements and Energy/Stimulant Products obtained only by prescription or from a healthcare professional.","Exclusief alle producten die op dit moment zijn geclassificeerd in het schema, en energieopwekkende of stimulerende middelen die alleen op doktersvoorschrift worden verkregen of afkomstig zijn van een zorgverlener.",51000000,"Healthcare","Gezondheidszorg",51120000,"Health Enhancement","Bevordering Gezondheid",51121900,"Energy/Stimulant Products","Energieopwekkende/Stimulerende Middelen"]
[10000455,"Yes","Home Diagnostic Monitors","Diagnosemonitoren voor Thuis","Includes any products that can be described/observed as a device, specifically designed for personal use to periodically monitor blood pressure, blood sugar, heartbeat, weight or body fat on an ongoing basis. Products include Diabetes Monitoring Kits, Chest Bands and Wrist, Finger Tip or Upper Arm Monitors and Personal Scales which monitor weight and/or body fat..Products can be operated manually or automatically and can be used in conjunction with Sports Equipment while exercising.","Omvat alle producten die kunnen worden waargenomen/omschreven als een apparaat, speciaal ontworpen voor persoonlijk gebruik om periodiek bloeddruk, bloedsuiker, hartslag, gewicht of lichaamsvet te controleren. Producten omvatten diabetes monitor kits, borst- en polsbanden, vingertop of bovenarm monitoren en personenweegschalen die gewicht en/of lichaamsvet controleren. Producten kunnen handmatig of automatisch worden bediend en kunnen worden gebruikt in combinatie met sportapparatuur tijdens het sporten.","Excludes products such as Home Diagnostic Monitors obtained only by prescription or from a healthcare professional, and Diagnostic Tests.","Exclusief producten als diagnosemonitoren voor thuis die alleen op doktersvoorschrift worden verkregen of afkomstig zijn van een zorgverlener, en diagnosetests.",51000000,"Healthcare","Gezondheidszorg",51130000,"Home Diagnostics","Thuisdiagnostica",51131500,"Diagnostic Monitors","Diagnosemonitors"]
[10000843,"Yes","Diagnostic Monitors Other","Diagnosemonitoren – Overig","Includes any products that can be described/observed as Diagnostic Monitors, where the user of the schema is not able to classify the product in existing bricks within the schema.","Omvat alle producten die kunnen worden waargenomen/omschreven als diagnosemonitor, waarvan de gebruiker van het schema niet in staat is om het product in een van de bestaande bricks binnen het schema te classificeren.","Excludes all products currently classified as Diagnostic Monitors or Diagnostic Tests and Diagnostic Monitors obtained only by prescription or from a healthcare professional.","Exclusief alle producten die op dit moment zijn geclassificeerd in het schema, en diagnosemonitors die alleen op doktersvoorschrift worden verkregen of afkomstig zijn van een zorgverlener.",51000000,"Healthcare","Gezondheidszorg",51130000,"Home Diagnostics","Thuisdiagnostica",51131500,"Diagnostic Monitors","Diagnosemonitors"]
[10000452,"Yes","Thermometers","Thermometers","Includes any products that can be described/observed as a device designed to measure a person's body temperature. Measurements can be taken orally, rectally, under the arm, in the ear or against the forehead.Includes products available in various sizes and shapes and both Digital and Mercury types.","Omvat alle producten die kunnen worden waargenomen/omschreven als een apparaat, ontworpen om de lichaamstemperatuur van een persoon te meten. Metingen kunnen oraal worden gedaan, rectaal, onder de arm, in het oor of tegen het voorhoofd. Omvat producten verkrijgbaar in verschillende maten en vormen en zowel digitale en lood types.","Specifically excludes Thermometers used to measure the temperature of a room.Excludes products such as Thermometers obtained only by prescription or from a healthcare professional, Household, Pet and Fish Tank Thermometers.","Exclusief thermometers die gebruikt worden om de temperatuur van een ruimte te meten. Exclusief producten als thermometers die alleen op doktersvoorschrift worden verkregen of afkomstig zijn van een zorgverlener, huishoud, huisdier en aquarium thermometers.",51000000,"Healthcare","Gezondheidszorg",51130000,"Home Diagnostics","Thuisdiagnostica",51131600,"Diagnostic Tests","Diagnosetesten"]
[10000453,"Yes","Home Diagnostic Tests","Diagnosetests voor Thuis","Includes any products that can be described/observed as a personal diagnostic test, which is designed for in–home use to test body functions or detect the presence or the level of various substances such as glucose, protein, hormones or alcohol in body fluids.These products usually work by analysing a sample of blood, saliva or urine. Two main types of test kit exist: one type provides results in several minutes, the other requires the test to be taken at home and the sample sent to a laboratory for detailed analysis and the results are provided within a few days.Specifically","Omvat alle producten die kunnen worden waargenomen/omschreven als een persoonlijk diagnostische test, die is ontworpen voor thuisgebruik om lichaamsfuncties te testen of om het niveau vast te stellen van verschillende stoffen zoals glucose, eiwitten, hormonen of alcohol in lichaamsvloeistoffen. Deze producten werken meestal door het analyseren van een monster van bloed, speeksel of urine. Er bestaan twee belangrijke soorten testkits: het ene type levert resultaten in enkele minuten, het andere vereist dat de test in huis wordt genomen waarna het monster naar een laboratorium wordt gestuurd voor een gedetailleerde analyse en de resultaten binnen een paar dagen worden verstrekt.","excludes all Diabetes Monitoring and Testing products.Excludes products such as Home Diagnostic Tests obtained only by prescription or from a healthcare professional, as well as Home Diagnostic Monitors, Thermometers, Electronic Blood Pressure and Heart Rate Monitors.","Sluit specifiek alle diabetes monitoring en test producten uit. Exclusief producten als thusidiagnostica die alleen op doktersvoorschrift worden verkregen of afkomstig zijn van een zorgverlener, evenals thuis diagnosemonitoren, thermometers, elektronische bloeddrukmeters en hartslagmonitoren.",51000000,"Healthcare","Gezondheidszorg",51130000,"Home Diagnostics","Thuisdiagnostica",51131600,"Diagnostic Tests","Diagnosetesten"]
[10000454,"Yes","Home Diagnostic Products – Accessories","Thuisdiagnostica – Accessoires","Includes any products that can be described/observed as an accessory that is designed for use in conjunction with diagnostic tests and kits. Products are typically intended to provide personal hygiene when using non–disposable diagnostic equipment.Includes products such as Pump Accessories, Control Solutions and Testing Strips, Covers or Disposable Needles (Lancets).","Omvat alle producten die kunnen worden waargenomen/omschreven als een accessoire dat is ontworpen voor gebruik in combinatie met diagnostische tests en kits. Producten zijn meestal bedoeld om persoonlijke hygiëne bij het gebruik van niet-wegwerp diagnostische apparatuur. Omvat producten zoals accessoires en besturingen voor pompen en teststrips, hoezen of wegwerpnaalden (lancetten).","Excludes products such as Home Diagnostic Accessories obtained only by prescription or from a healthcare professional, as well as Diagnostic Tests and Monitors.","Exclusief producten als accessoires voor thuisdiagnostica die alleen op doktersvoorschrift worden verkregen of afkomstig zijn van een zorgverlener, alsmede diagnosetesten en -monitoren.",51000000,"Healthcare","Gezondheidszorg",51130000,"Home Diagnostics","Thuisdiagnostica",51131600,"Diagnostic Tests","Diagnosetesten"]
[10000648,"Yes","Diagnostic Tests Variety Packs","Diagnosetesten – Assortimenten","Includes any products that can be described/observed as two or more distinct Diagnostic Tests sold together, which exist within the schema belonging to different bricks but to the same class, that is two or more products contained within the same pack which cross bricks within the Diagnostic Tests class. Includes products such as Thermometers and Thermometer Covers sold together.Items that are received free with purchases should be removed from the classification decision–making process.","Omvat alle producten die kunnen worden waargenomen/omschreven als twee of meer verschillende diagnosetests die tezamen worden verkocht, die binnen het schema bestaan, maar bij verschillende bricks in dezelfde klasse behoren. Een voorbeeld is de gezamenlijke verkoop van thermometers en thermometerhoes. Producten die gratis zijn, moeten buiten het beslissingsproces voor classificatie worden gelaten.","Excludes products such as Ovulation Tests and Diaphragm variety packs and Diagnostic Tests variety packs obtained only by prescription or from a healthcare professional.","Exclusief producten zoals assortimenten voor ovulatietesten en een pessarium, en assortimenten voor diagnosetesten die alleen op doktersvoorschrift worden verkregen of afkomstig zijn van een zorgverlener.",51000000,"Healthcare","Gezondheidszorg",51130000,"Home Diagnostics","Thuisdiagnostica",51131600,"Diagnostic Tests","Diagnosetesten"]
[10000844,"Yes","Diagnostic Tests Other","Diagnosetesten – Overig","Includes any products that can be described/observed as Diagnostic Tests, where the user of the schema is not able to classify the product in existing bricks within the schema.","Omvat alle producten die kunnen worden waargenomen/omschreven als diagnosetest, waarvan de gebruiker van het schema niet in staat is om het product in een van de bestaande bricks binnen het schema te classificeren.","Excludes all products currently classified as Diagnostic Tests or Diagnostic Monitors and Diagnostic Tests obtained only by prescription or from a healthcare professional.","Exclusief alle producten die op dit moment zijn geclassificeerd in het schema, en diagnosetests die alleen op doktersvoorschrift worden verkregen of afkomstig zijn van een zorgverlener.",51000000,"Healthcare","Gezondheidszorg",51130000,"Home Diagnostics","Thuisdiagnostica",51131600,"Diagnostic Tests","Diagnosetesten"]
[10000647,"Yes","Home Diagnostics Variety Packs","Thuisdiagnostica – Assortimenten","Includes any products that can be described/observed as two or more distinct Home Diagnostic products sold together which exist within the schema but belong to different classes, that is two or more products contained within the same pack which cross classes within the Home Diagnostics Family. Includes products such as Blood Pressure Monitors with Cholesterol Tests variety packs. Items that are received free with purchases should be removed from the classification decision–making process.","Omvat alle producten die kunnen worden waargenomen/omschreven als twee of meer verschillende thuisdiagnostica die tezamen worden verkocht, die binnen het schema bestaan, maar bij verschillende bricks in dezelfde klasse behoren. Een voorbeeld is de gezamenlijke verkoop van een bloeddrukmonitor en een cholesterol testmiddel. Producten die gratis zijn, moeten buiten het beslissingsproces voor classificatie worden gelaten.","Excludes products such as Thermometers and Thermometer Covers variety packs, Ovulation Tests and Diaphragm variety packs and Home Diagnostic variety packs obtained only by prescription or from a healthcare professional.","Exclusief producten zoals assortimenten voor thermometers en thermometerhoezen, assortimenten voor ovulatietesten en pessarium, en assortimenten voor thuisdiagnostica die alleen op doktersvoorschrift worden verkregen of afkomstig zijn van een zorgverlener.",51000000,"Healthcare","Gezondheidszorg",51130000,"Home Diagnostics","Thuisdiagnostica",51131700,"Home Diagnostics Variety Packs","Thuisdiagnostica – Assortimenten"]
[10000673,"Yes","Healthcare Variety Packs","Gezondheidszorg – Assortimenten","Includes any products that can be described/observed as two or more distinct Healthcare products sold together which exist within the schema but belong to different Families, that is two or more products contained within the same pack which cross Families within the Healthcare Segment. Includes products such as Vitamins and Glucose Tests variety packs.Items that are received free with purchases should be removed from the classification decision–making process.","Omvat alle producten die kunnen worden waargenomen/omschreven als twee of meer verschillende producten voor gezondheidszorg die tezamen worden verkocht, die binnen het schema bestaan, maar bij verschillende bricks in dezelfde klasse behoren. Een voorbeeld is de gezamenlijke verkoop van vitaminen en een glucose testmiddel. Producten die gratis zijn, moeten buiten het beslissingsproces voor classificatie worden gelaten.","Excludes products such as Needles and Needle Covers variety packs, Blood Pressure Monitors with Cholesterol Tests variety packs and Healthcare variety packs obtained only by prescription or from a healthcare professional.","Exclusief producten zoals assortimenten voor thuisdiagnostica, assortimenten voor geneesmiddelentoediening, en assortimenten voor gezondheidszorg die alleen op doktersvoorschrift worden verkregen of afkomstig zijn van een zorgverlener.",51000000,"Healthcare","Gezondheidszorg",51140000,"Healthcare Variety Packs","Gezondheidszorg – Assortimenten",51140100,"Healthcare Variety Packs","Gezondheidszorg – Assortimenten"]
[10005844,"Yes","Medical Devices","Medische Hulpmiddelen","Includes any products that can be described/observed as devices, other than drugs, intended to be used for the diagnosis, treatment or prevention of disease. Includes all medical equipment and supplies from cotton swabs to MRI machines to surgical implants, for human applications.","Omvat alle producten die kunnen worden beschreven/waargenomen als hulpmiddelen, anders dan geneesmiddelen, bestemd voor de diagnose, behandeling of preventie van ziekte. Inclusief alle medische apparatuur en accessoires van wattenstaafjes tot MRI-machines tot chirurgische implantaten, zowel voor mens als dier.","Excludes all healthcare, veterinary and dental products already classified in GPC, such as enteral feeding equipment, first aid equipment, orthopaedic footwear, therapeutic hosiery, contraception devices, enema/douche equipment, drug administration needles/syringes, disability aids, humidifiers/nebulisers, spectacles, contact lenses, hearing aids, parasite infestation equipment, therapeutic wristbands/necklets/anklets, diagnostic monitors for blood pressure/heart rate/body fat/blood sugar, weighing scales, thermometers, diagnostic test equipment for allergies/alcohol/pregnancy/cholesterol, microscopes, magnifying glasses, cotton wool products, and oral care aids such as toothbrushes, dental floss, descalers, whitening tape, gum protectors and gum stimulators.","Exclusief alle gezondheidszorg, diergeneeskundige en tandheelkundige producten reeds in GPC ingedeeld, zoals sondevoeding apparatuur, eerste hulp benodigdheden, orthopedisch schoeisel, therapeutische kousen, anticonceptie apparaten, klysma/doucheapparatuur, injectienaalden/-spuiten, hulpmiddelen voor gehandicapten, luchtbevochtigers/ vernevelaars, brillen, contactlenzen, gehoorapparaten, apparatuur tegen parasitaire besmetting, therapeutische polsbandjes/kettingen/enkelbanden, diagnostische monitoren voor bloeddruk/hartslag/lichaamsvet/bloedsuiker, weegschalen, thermometers, diagnostische testapparatuur voor allergieën/alcohol/zwangerschap/cholesterol, microscopen, vergrootglazen, watten, en mondverzorgingshulpmiddelen zoals tandenborstels, flosdraad, ragers, witmakende plakstrips en tandvleesbeschermers.",51000000,"Healthcare","Gezondheidszorg",51150000,"Medical Devices","Medische Hulpmiddelen",51150100,"Medical Devices","Medische Hulpmiddelen"]
[10005845,"Yes","Pharmaceutical Drugs","Geneesmiddelen","Includes any products that can be described/observed as a substance, used in the diagnosis, treatment or prevention of disease that achieves its primary intended purpose through pharmacological, immunological or metabolic means within or on the body. Includes all drugs, biologicals or therapeutic nutritionals for human applications.","Omvat alle producten die kunnen worden beschreven/waargenomen als een stof, die gebruikt wordt voor de diagnose, behandeling of preventie van ziekte en die het primaire beoogde doel bereikt door middel van farmacologische, immunologische of metabolische middelen in of op het lichaam. Inclusief alle medicijnen, biologische of therapeutische voedingssupplementen voor zowel mens als dier.","Excludes all healthcare, veterinary and dental products already classified in GPC, such as spermicides, hormonal drugs, dietary control drugs, dietary meal replacements, energy/stimulation treatments, nutritional supplements, vitamins/minerals, baby treatments for rash/colic/cradle cap, cystitis treatments, diuretic remedies, genital/rectal remedies, poison treatments, sterilisers/surgical spirits, homeopathic remedies, rehydration/electrolyte remedies, diarrhoea remedies, laxatives, nausea remedies, antacid/indigestion remedies, habit treatments, mouth treatments, pain relief drugs for headaches/arthritis, insect repellants, antihistamines, chest rubs, cold/cough remedies, nasal sprays, throat remedies, ear treatments, eye preparations, acne treatments, anti–fungal treatments, antiseptics, skin/scalp treatments, psoriasis remedies, wart/verucca treatments, sleeping drugs, stress relief/calmative drugs, travel sickness remedies, dental cleansing, mouth washes, pet pharmaceuticals, pet nutritional supplements and pet parasite treatments.","Exclusief alle gezondheidszorg, diergeneeskundige en tandheelkundige producten reeds in GPC ingedeeld zoals zaaddodende middelen, hormonale medicijnen, dieet controle medicijnen, maaltijdvervangers, energie / stimulatie behandelingen, voedingssupplementen, vitamines / mineralen, babybehandelingen voor uitslag / koliek / wieg cap, blaasontstekingbehandelingen, diureticum remedies, genitale / rectale remedies, gifbehandelingen, sterilisatoren / chirurgische alcohol, homeopathische middelen, rehydratatie / elektrolyt remedies, diarree remedies, laxeermiddelen, misselijkheid rechtsmiddelen, maagzuur- / indigestieremmer, gewoontebehandelingen, mond behandelingen, pijnbestrijding geneesmiddelen voor hoofdpijn / artritis, insectenwerende middelen, antihistaminica, borst wrijfmiddelen, verkoudheids- / hoestmiddelen, neussprays, keel remedies, oor behandelingen, oogpreparaten, acne behandelingen, anti-schimmel behandelingen, ontsmettingsmiddelen, huid / hoofdhuid behandelingen, psoriasis remedies, wratbehandelingen, slaapmiddelen, anti-stress / kalmerende medicijnen, reisziekte remedies, tandheelkundige reiniging, mondspoelingen, huisdier geneesmiddelen, huisdier voedingssupplementen en huisdier parasietenbehandelingen.",51000000,"Healthcare","Gezondheidszorg",51160000,"Pharmaceutical Drugs","Geneesmiddelen",51160100,"Pharmaceutical Drugs","Geneesmiddelen"]
[10000514,"Yes","Veterinary Pharmaceuticals","Veterinaire Geneesmiddelen","Includes any products that can be described/observed as drugs, biologicals or therapeutic nutritionals for veterinary applications, used in the diagnosis, treatment or prevention of disease of animals (veterinary practices). Excludes all medical equipment and supplies, and all drugs, biologicals or therapeutic nutritionals intended for both human applications.Excludes all healthcare, veterinary and dental products already classified in GPC, such as spermicides, hormonal drugs, dietary control drugs, dietary meal replacements, energy/stimulation treatments, nutritional supplements, vitamins/minerals, baby treatments for rash/colic/cradle cap, cystitis treatments, diuretic remedies, genital/rectal remedies, poison treatments, sterilisers/surgical spirits, homeopathic remedies, rehydration/electrolyte remedies, diarrhoea remedies, laxatives, nausea remedies, antacid/indigestion remedies, habit treatments, mouth treatments, pain relief drugs for headaches/arthritis, insect repellants, antihistamines, chest rubs, cold/cough remedies, nasal sprays, throat remedies, ear treatments, eye preparations, acne treatments, anti–fungal treatments, antiseptics, skin/scalp treatments, psoriasis remedies, wart/verucca treatments, sleeping drugs, stress relief/calmative drugs, travel sickness remedies, dental cleansing, mouth washes, pet pharmaceuticals, pet nutritional supplements and pet parasite treatments. Includes any products that can be described/observed as a substance, used in the diagnosis, treatment or prevention of disease that achieves its primary intended purpose through pharmacological, immunological or metabolic means within or on the body.","Omvat alle producten die kunnen worden beschreven/waargenomen als medicijnen, biologicals of therapeutische voedingssupplementen voor veterinaire toepassingen, gebruikt bij de diagnose, behandeling of preventie van ziektes van dieren (veterinaire praktijken).","Includes any products that can be described/observed as drugs, biologicals or therapeutic nutritionals for veterinary applications, used in the diagnosis, treatment or prevention of disease of animals (veterinary practices). Excludes all medical equipment and supplies, and all drugs, biologicals or therapeutic nutritionals intended for both human applications.Excludes all healthcare, veterinary and dental products already classified in GPC, such as spermicides, hormonal drugs, dietary control drugs, dietary meal replacements, energy/stimulation treatments, nutritional supplements, vitamins/minerals, baby treatments for rash/colic/cradle cap, cystitis treatments, diuretic remedies, genital/rectal remedies, poison treatments, sterilisers/surgical spirits, homeopathic remedies, rehydration/electrolyte remedies, diarrhoea remedies, laxatives, nausea remedies, antacid/indigestion remedies, habit treatments, mouth treatments, pain relief drugs for headaches/arthritis, insect repellants, antihistamines, chest rubs, cold/cough remedies, nasal sprays, throat remedies, ear treatments, eye preparations, acne treatments, anti–fungal treatments, antiseptics, skin/scalp treatments, psoriasis remedies, wart/verucca treatments, sleeping drugs, stress relief/calmative drugs, travel sickness remedies, dental cleansing, mouth washes, pet pharmaceuticals, pet nutritional supplements and pet parasite treatments. Includes any products that can be described/observed as a substance, used in the diagnosis, treatment or prevention of disease that achieves its primary intended purpose through pharmacological, immunological or metabolic means within or on the body.","Exclusief alle producten die kunnen worden beschreven/waargenomen als medische hulpmiddelen of stoffen, gebruikt bij de diagnose, behandeling of preventie van ziektes van dieren (veterinaire praktijken), behalve medicijnen.",51000000,"Healthcare","Gezondheidszorg",51170000,"Veterinary Healthcare","Veterinaire Gezondheidszorg",51170100,"Veterinary Pharmaceuticals","Veterinaire Geneesmiddelen"]
[10006412,"Yes","Veterinary Medical Devices","Veterinaire Medische Hulpmiddelen","Includes any products that can be described/observed as devices or substances, used in the diagnosis, treatment or prevention of disease of animals (veterinary practices), other than drugs. Includes all medical equipment and supplies from cotton swabs to MRI machines to surgical implants used in the diagnosis, treatment or prevention of disease of animals (veterinary practices).Excludes all medical equipment and supplies, and all drugs, biologicals or therapeutic nutritionals intended for both human applications.Excludes all healthcare, veterinary and dental products already classified in GPC, such as spermicides, hormonal drugs, dietary control drugs, dietary meal replacements, energy/stimulation treatments, nutritional supplements, vitamins/minerals, baby treatments for rash/colic/cradle cap, cystitis treatments, diuretic remedies, genital/rectal remedies, poison treatments, sterilisers/surgical spirits, homeopathic remedies, rehydration/electrolyte remedies, diarrhoea remedies, laxatives, nausea remedies, antacid/indigestion remedies, habit treatments, mouth treatments, pain relief drugs for headaches/arthritis, insect repellants, antihistamines, chest rubs, cold/cough remedies, nasal sprays, throat remedies, ear treatments, eye preparations, acne treatments, anti–fungal treatments, antiseptics, skin/scalp treatments, psoriasis remedies, wart/verucca treatments, sleeping drugs, stress relief/calmative drugs, travel sickness remedies, dental cleansing, mouth washes, pet pharmaceuticals, pet nutritional supplements and pet parasite treatments. Includes any products that can be described/observed as devices, other than drugs, intended to be used for the diagnosis, treatment or prevention of disease. Includes all medical equipment and supplies from cotton swabs to MRI machines to surgical implants, for veterinary applications.","Omvat alle producten die kunnen worden omschreven/waargenomen als apparaten of stoffen, gebruikt bij de diagnose, behandeling of preventie van ziekten van dieren (veterinaire praktijken), uitgezonderd medicijnen. Inclusief alle medische apparatuur en benodigdheden van wattenstaafjes tot MRI machines tot chirurgische implantaten, gebruikt bij de diagnose, behandeling of preventie van ziektes van dieren (veterinaire praktijken).","Includes any products that can be described/observed as devices or substances, used in the diagnosis, treatment or prevention of disease of animals (veterinary practices), other than drugs. Includes all medical equipment and supplies from cotton swabs to MRI machines to surgical implants used in the diagnosis, treatment or prevention of disease of animals (veterinary practices).Excludes all medical equipment and supplies, and all drugs, biologicals or therapeutic nutritionals intended for both human applications.Excludes all healthcare, veterinary and dental products already classified in GPC, such as spermicides, hormonal drugs, dietary control drugs, dietary meal replacements, energy/stimulation treatments, nutritional supplements, vitamins/minerals, baby treatments for rash/colic/cradle cap, cystitis treatments, diuretic remedies, genital/rectal remedies, poison treatments, sterilisers/surgical spirits, homeopathic remedies, rehydration/electrolyte remedies, diarrhoea remedies, laxatives, nausea remedies, antacid/indigestion remedies, habit treatments, mouth treatments, pain relief drugs for headaches/arthritis, insect repellants, antihistamines, chest rubs, cold/cough remedies, nasal sprays, throat remedies, ear treatments, eye preparations, acne treatments, anti–fungal treatments, antiseptics, skin/scalp treatments, psoriasis remedies, wart/verucca treatments, sleeping drugs, stress relief/calmative drugs, travel sickness remedies, dental cleansing, mouth washes, pet pharmaceuticals, pet nutritional supplements and pet parasite treatments. Includes any products that can be described/observed as devices, other than drugs, intended to be used for the diagnosis, treatment or prevention of disease. Includes all medical equipment and supplies from cotton swabs to MRI machines to surgical implants, for veterinary applications.","Exclusief alle producten die kunnen worden beschreven/waargenomen als medicijnen, biologicals of therapeutische voedingssupplementen voor veterinaire toepassingen, gebruikt bij de diagnose, behandeling of preventie van ziektes van dieren (veterinaire praktijken).",51000000,"Healthcare","Gezondheidszorg",51170000,"Veterinary Healthcare","Veterinaire Gezondheidszorg",51170200,"Veterinary Medical Devices","Veterinaire Medische Hulpmiddelen"]

{"sheet":"Bricks added in version","index":4,"n_rows":144,"n_cols":3,"rows_kept":144,"cut":false,"hidden":true,"merged":[]}
[null,"GS1 Data Source - Data attributes healthcare"]
[null,"Bricks added in version"]
[]
["Brick_code","Brick Description NL","Added in version:"]
[10000458,{"$f":"+VLOOKUP(A5,Bricks!A:D,4,FALSE)","v":"Hulpmiddelen Invaliditeit"},"1.0"]
[10000570,{"$f":"+VLOOKUP(A6,Bricks!A:D,4,FALSE)","v":"Persoonlijke Insectenwerende middelen"},"1.0"]
[10000686,{"$f":"+VLOOKUP(A7,Bricks!A:D,4,FALSE)","v":"Persoonlijke Hulpmiddelen – Assortimenten"},"1.0"]
[10000915,{"$f":"+VLOOKUP(A8,Bricks!A:D,4,FALSE)","v":"Persoonlijke Hulpmiddelen – Overig"},"1.0"]
[10000456,{"$f":"+VLOOKUP(A9,Bricks!A:D,4,FALSE)","v":"Geneesmiddelentoediening"},"1.0"]
[10000457,{"$f":"+VLOOKUP(A10,Bricks!A:D,4,FALSE)","v":"Geneesmiddelentoediening – Accessoires"},"1.0"]
[10000681,{"$f":"+VLOOKUP(A11,Bricks!A:D,4,FALSE)","v":"Geneesmiddelentoediening – Assortimenten"},"1.0"]
[10000912,{"$f":"+VLOOKUP(A12,Bricks!A:D,4,FALSE)","v":"Geneesmiddelentoediening – Onderdelen"},"1.0"]
[10000922,{"$f":"+VLOOKUP(A13,Bricks!A:D,4,FALSE)","v":"Geneesmiddelentoediening – Overig"},"1.0"]
[10000448,{"$f":"+VLOOKUP(A14,Bricks!A:D,4,FALSE)","v":"Eerste Hulp – Verbandmateriaal/Verbanden/Gips"},"1.0"]
[10000449,{"$f":"+VLOOKUP(A15,Bricks!A:D,4,FALSE)","v":"Eerste Hulp – Accessoires"},"1.0"]
[10000450,{"$f":"+VLOOKUP(A16,Bricks!A:D,4,FALSE)","v":"Eerste Hulp – Mitella/Hulpmiddel"},"1.0"]
[10000451,{"$f":"+VLOOKUP(A17,Bricks!A:D,4,FALSE)","v":"IJs-/Verwarmingszak"},"1.0"]
[10000684,{"$f":"+VLOOKUP(A18,Bricks!A:D,4,FALSE)","v":"Eerste Hulp – Assortimenten"},"1.0"]
[10000908,{"$f":"+VLOOKUP(A19,Bricks!A:D,4,FALSE)","v":"Eerste Hulp – Overig"},"1.0"]
[10000909,{"$f":"+VLOOKUP(A20,Bricks!A:D,4,FALSE)","v":"Producten voor het Verwijderen/Behandelen van Gif"},"1.0"]
[10000910,{"$f":"+VLOOKUP(A21,Bricks!A:D,4,FALSE)","v":"Sterilisatoren/Heelkundige Alcohol"},"1.0"]
[10000474,{"$f":"+VLOOKUP(A22,Bricks!A:D,4,FALSE)","v":"Therapeutische Kousen"},"1.0"]
[10000488,{"$f":"+VLOOKUP(A23,Bricks!A:D,4,FALSE)","v":"Geneeskundig/Orthopedisch Schoeisel"},"1.0"]
[10000489,{"$f":"+VLOOKUP(A24,Bricks!A:D,4,FALSE)","v":"Hulpmiddelen voor Voetverzorging/Hygiëne"},"1.0"]
[10000685,{"$f":"+VLOOKUP(A25,Bricks!A:D,4,FALSE)","v":"Voet/Been Verzorging/Behandeling – Assortimenten"},"1.0"]
[10000907,{"$f":"+VLOOKUP(A26,Bricks!A:D,4,FALSE)","v":"Voet/Been Verzorging/Behandeling – Overig"},"1.0"]
[10000459,{"$f":"+VLOOKUP(A27,Bricks!A:D,4,FALSE)","v":"Behandeling tegen Verslavingen"},"1.0"]
[10000682,{"$f":"+VLOOKUP(A28,Bricks!A:D,4,FALSE)","v":"Anti-rook Hulpmiddelen"},"1.0"]
[10000690,{"$f":"+VLOOKUP(A29,Bricks!A:D,4,FALSE)","v":"Behandeling tegen Verslaving – Assortimenten"},"1.0"]
[10000487,{"$f":"+VLOOKUP(A30,Bricks!A:D,4,FALSE)","v":"Gehoorhulpmiddelen"},"1.0"]
[10000525,{"$f":"+VLOOKUP(A31,Bricks!A:D,4,FALSE)","v":"Oorpreparaten"},"1.0"]
[10000526,{"$f":"+VLOOKUP(A32,Bricks!A:D,4,FALSE)","v":"Oogpreparaten"},"1.0"]
[10000527,{"$f":"+VLOOKUP(A33,Bricks!A:D,4,FALSE)","v":"Verzorgingsproductenvoor Contactlenzen"},"1.0"]
[10000528,{"$f":"+VLOOKUP(A34,Bricks!A:D,4,FALSE)","v":"Brillen – Klaar voor Gebruik"},"1.0"]
[10000529,{"$f":"+VLOOKUP(A35,Bricks!A:D,4,FALSE)","v":"Contactlenzen"},"1.0"]
[10000637,{"$f":"+VLOOKUP(A36,Bricks!A:D,4,FALSE)","v":"Zonnebrillen – Klaar voor Gebruik"},"1.0"]
[10000638,{"$f":"+VLOOKUP(A37,Bricks!A:D,4,FALSE)","v":"Brillenglazen"},"1.0"]
[10000639,{"$f":"+VLOOKUP(A38,Bricks!A:D,4,FALSE)","v":"Brilmonturen"},"1.0"]
[10000687,{"$f":"+VLOOKUP(A39,Bricks!A:D,4,FALSE)","v":"Verzorging/Behandeling van Zintuigen – Assortimenten"},"1.0"]
[10000688,{"$f":"+VLOOKUP(A40,Bricks!A:D,4,FALSE)","v":"Verzorgingsproducten voor Brillen"},"1.0"]
[10000689,{"$f":"+VLOOKUP(A41,Bricks!A:D,4,FALSE)","v":"Verzorgingsproducten voor Brillen – Accessoires"},"1.0"]
[10000911,{"$f":"+VLOOKUP(A42,Bricks!A:D,4,FALSE)","v":"Verzorging/Behandeling van Zintuigen – Overig"},"1.0"]
[10000500,{"$f":"+VLOOKUP(A43,Bricks!A:D,4,FALSE)","v":"Baby-/Kinderbehandelingen"},"1.0"]
[10000504,{"$f":"+VLOOKUP(A44,Bricks!A:D,4,FALSE)","v":"Fopspenen/Bijtringen"},"1.0"]
[10000683,{"$f":"+VLOOKUP(A45,Bricks!A:D,4,FALSE)","v":"Gezondheidsbehandelingen/-hulpmiddelen – Assortimenten"},"1.0"]
[10000846,{"$f":"+VLOOKUP(A46,Bricks!A:D,4,FALSE)","v":"Producten tegen Genitale Irritatie"},"1.0"]
[10000847,{"$f":"+VLOOKUP(A47,Bricks!A:D,4,FALSE)","v":"Blaasontstekingsproducten"},"1.0"]
[10000848,{"$f":"+VLOOKUP(A48,Bricks!A:D,4,FALSE)","v":"Rectale Medicijnen"},"1.0"]
[10000849,{"$f":"+VLOOKUP(A49,Bricks!A:D,4,FALSE)","v":"Blaas/Genitale/Rectale Producten – Overig"},"1.0"]
[10000850,{"$f":"+VLOOKUP(A50,Bricks!A:D,4,FALSE)","v":"Diuretica"},"1.0"]
[10000851,{"$f":"+VLOOKUP(A51,Bricks!A:D,4,FALSE)","v":"Klysma's/Spoelingen"},"1.0"]
[10000852,{"$f":"+VLOOKUP(A52,Bricks!A:D,4,FALSE)","v":"Blaas/Genitale/Rectale Producten – Assortimenten"},"1.0"]
[10000923,{"$f":"+VLOOKUP(A53,Bricks!A:D,4,FALSE)","v":"Lubricatie van de intieme delen"},"1.0"]
[10000853,{"$f":"+VLOOKUP(A54,Bricks!A:D,4,FALSE)","v":"Pijnstiller (Elektrisch)"},"1.0"]
[10000854,{"$f":"+VLOOKUP(A55,Bricks!A:D,4,FALSE)","v":"Pijnstiller – Overig"},"1.0"]
[10000855,{"$f":"+VLOOKUP(A56,Bricks!A:D,4,FALSE)","v":"Pijnstiller voor Artritis/Reuma/Spierpijn"},"1.0"]
[10000856,{"$f":"+VLOOKUP(A57,Bricks!A:D,4,FALSE)","v":"Algemene/Veelzijdige Pijnstiller"},"1.0"]
[10000857,{"$f":"+VLOOKUP(A58,Bricks!A:D,4,FALSE)","v":"Pijnstiller voor Hoofdpijn/Migraine"},"1.0"]
[10000858,{"$f":"+VLOOKUP(A59,Bricks!A:D,4,FALSE)","v":"Pijnstiller – Assortimenten"},"1.0"]
[10000859,{"$f":"+VLOOKUP(A60,Bricks!A:D,4,FALSE)","v":"Homeopathische Middelen – Individuele Ingrediënten"},"1.0"]
[10000860,{"$f":"+VLOOKUP(A61,Bricks!A:D,4,FALSE)","v":"Homeopathische Middelen – Combinatie Ingrediënten"},"1.0"]
[10000861,{"$f":"+VLOOKUP(A62,Bricks!A:D,4,FALSE)","v":"Plantaardige Middelen"},"1.0"]
[10000862,{"$f":"+VLOOKUP(A63,Bricks!A:D,4,FALSE)","v":"Plantaardige/Homeopathische Middelen – Assortimenten"},"1.0"]
[10000914,{"$f":"+VLOOKUP(A64,Bricks!A:D,4,FALSE)","v":"Plantaardige/Homeopathische Middelen – Overig"},"1.0"]
[10000863,{"$f":"+VLOOKUP(A65,Bricks!A:D,4,FALSE)","v":"Middelen tegen Maagzuur/Indigestie/winderigheid"},"1.0"]
[10000864,{"$f":"+VLOOKUP(A66,Bricks!A:D,4,FALSE)","v":"Middelen tegen Diarree"},"1.0"]
[10000865,{"$f":"+VLOOKUP(A67,Bricks!A:D,4,FALSE)","v":"Gastro-intestinale Middelen – Overig"},"1.0"]
[10000866,{"$f":"+VLOOKUP(A68,Bricks!A:D,4,FALSE)","v":"Laxeermiddelen"},"1.0"]
[10000867,{"$f":"+VLOOKUP(A69,Bricks!A:D,4,FALSE)","v":"Ontwormingspreparaten"},"1.0"]
[10000868,{"$f":"+VLOOKUP(A70,Bricks!A:D,4,FALSE)","v":"Middelen tegen Misselijkheid"},"1.0"]
[10000869,{"$f":"+VLOOKUP(A71,Bricks!A:D,4,FALSE)","v":"Orale toediening van glucose en zoutoplossingen/Elektrolytbalans"},"1.0"]
[10000870,{"$f":"+VLOOKUP(A72,Bricks!A:D,4,FALSE)","v":"Algemene/Veelzijdige Gastro-intestinale Middelen"},"1.0"]
[10000871,{"$f":"+VLOOKUP(A73,Bricks!A:D,4,FALSE)","v":"Gastro-intestinale Middelen – Assortimenten"},"1.0"]
[10000872,{"$f":"+VLOOKUP(A74,Bricks!A:D,4,FALSE)","v":"Slaapmiddelen"},"1.0"]
[10000873,{"$f":"+VLOOKUP(A75,Bricks!A:D,4,FALSE)","v":"Stressverminderende/Kalmerende Middelen"},"1.0"]
[10000874,{"$f":"+VLOOKUP(A76,Bricks!A:D,4,FALSE)","v":"Slaap/Stressverminderende Middelen – Assortimenten"},"1.0"]
[10000919,{"$f":"+VLOOKUP(A77,Bricks!A:D,4,FALSE)","v":"Slaap/Stressverminderende Middelen – Overig"},"1.0"]
[10000875,{"$f":"+VLOOKUP(A78,Bricks!A:D,4,FALSE)","v":"Borstinwrijfmiddelen"},"1.0"]
[10000876,{"$f":"+VLOOKUP(A79,Bricks!A:D,4,FALSE)","v":"Verkoudheid/Hoest Middelen"},"1.0"]
[10000877,{"$f":"+VLOOKUP(A80,Bricks!A:D,4,FALSE)","v":"Inhaleertoestellen/Nevelapparaten/Ademhalingstoestellen (Niet-elektrisch)"},"1.0"]
[10000878,{"$f":"+VLOOKUP(A81,Bricks!A:D,4,FALSE)","v":"Inhaleertoestellen/Nevelapparaten/Ademhalingstoestellen (Elektrisch)"},"1.0"]
[10000879,{"$f":"+VLOOKUP(A82,Bricks!A:D,4,FALSE)","v":"Neusstrips/Sprays"},"1.0"]
[10000880,{"$f":"+VLOOKUP(A83,Bricks!A:D,4,FALSE)","v":"Middelen voor de keel"},"1.0"]
[10000881,{"$f":"+VLOOKUP(A84,Bricks!A:D,4,FALSE)","v":"Allergiepreventie/Allergievermindering/Antihistamines"},"1.0"]
[10000882,{"$f":"+VLOOKUP(A85,Bricks!A:D,4,FALSE)","v":"Decongestiva – Overig"},"1.0"]
[10000883,{"$f":"+VLOOKUP(A86,Bricks!A:D,4,FALSE)","v":"Bevochtigingsapparaten/Verstuivers (Niet-elektrisch)"},"1.0"]
[10000884,{"$f":"+VLOOKUP(A87,Bricks!A:D,4,FALSE)","v":"Ademhalings-/Allergiemiddelen – Assortimenten"},"1.0"]
[10000916,{"$f":"+VLOOKUP(A88,Bricks!A:D,4,FALSE)","v":"Bevochtigingsapparaten/Verstuivers (Elektrisch)"},"1.0"]
[10000920,{"$f":"+VLOOKUP(A89,Bricks!A:D,4,FALSE)","v":"Ademhalings-/Allergiemiddelen – Overig"},"1.0"]
[10000885,{"$f":"+VLOOKUP(A90,Bricks!A:D,4,FALSE)","v":"Antiseptica"},"1.0"]
[10000886,{"$f":"+VLOOKUP(A91,Bricks!A:D,4,FALSE)","v":"Ongediertebestrijdingsmiddelen"},"1.0"]
[10000887,{"$f":"+VLOOKUP(A92,Bricks!A:D,4,FALSE)","v":"Psoriasis/Eczema/Droge Huid Behandelingen"},"1.0"]
[10000888,{"$f":"+VLOOKUP(A93,Bricks!A:D,4,FALSE)","v":"Haaruitvalbehandelingen"},"1.0"]
[10000889,{"$f":"+VLOOKUP(A94,Bricks!A:D,4,FALSE)","v":"Kalmerend Middel bij Insectenbeten"},"1.0"]
[10000890,{"$f":"+VLOOKUP(A95,Bricks!A:D,4,FALSE)","v":"Anti-schimmel Producten"},"1.0"]
[10000891,{"$f":"+VLOOKUP(A96,Bricks!A:D,4,FALSE)","v":"Algemene/Veelzijdige Huid/Hoofdhuidbehandelingen"},"1.0"]
[10000892,{"$f":"+VLOOKUP(A97,Bricks!A:D,4,FALSE)","v":"Apparatuur voor Ongediertebestrijding (Niet-elektrisch)"},"1.0"]
[10000893,{"$f":"+VLOOKUP(A98,Bricks!A:D,4,FALSE)","v":"Apparatuur voor Ongediertebestrijding (Elektrisch)"},"1.0"]
[10000903,{"$f":"+VLOOKUP(A99,Bricks!A:D,4,FALSE)","v":"Acne/Gordelroos Behandelingen"},"1.0"]
[10000904,{"$f":"+VLOOKUP(A100,Bricks!A:D,4,FALSE)","v":"Wrat/Likdoorn/Eeltplek Behandelingen"},"1.0"]
[10000905,{"$f":"+VLOOKUP(A101,Bricks!A:D,4,FALSE)","v":"Huid/Hoofdhuid Behandelingsproducten – Assortimenten"},"1.0"]
[10000906,{"$f":"+VLOOKUP(A102,Bricks!A:D,4,FALSE)","v":"Huid/Hoofdhuidbehandelingsproducten – Overig"},"1.0"]
[10000894,{"$f":"+VLOOKUP(A103,Bricks!A:D,4,FALSE)","v":"Preventieve Middelen tegen Reisziekte – Geneeskundig"},"1.0"]
[10000895,{"$f":"+VLOOKUP(A104,Bricks!A:D,4,FALSE)","v":"Preventieve Middelen tegen Reisziekte – Niet-geneeskundig"},"1.0"]
[10000896,{"$f":"+VLOOKUP(A105,Bricks!A:D,4,FALSE)","v":"Producten tegen Reisziekte – Assortimenten"},"1.0"]
[10000897,{"$f":"+VLOOKUP(A106,Bricks!A:D,4,FALSE)","v":"Producten tegen Reisziekte – Overig"},"1.0"]
[10000898,{"$f":"+VLOOKUP(A107,Bricks!A:D,4,FALSE)","v":"Enterale Voeding Gastrostomie Kits"},"1.0"]
[10000899,{"$f":"+VLOOKUP(A108,Bricks!A:D,4,FALSE)","v":"Enterale Voedingspompen/Voedingssets"},"1.0"]
[10000900,{"$f":"+VLOOKUP(A109,Bricks!A:D,4,FALSE)","v":"Enterale Voeding Voedingszakken/-dozen"},"1.0"]
[10000901,{"$f":"+VLOOKUP(A110,Bricks!A:D,4,FALSE)","v":"Enterale Voedingsbuisjes"},"1.0"]
[10000902,{"$f":"+VLOOKUP(A111,Bricks!A:D,4,FALSE)","v":"Enterale Voedingsuitrusting – Overig"},"1.0"]
[10000921,{"$f":"+VLOOKUP(A112,Bricks!A:D,4,FALSE)","v":"Enterale Voedingsuitrusting – Assortimenten"},"1.0"]
[10002423,{"$f":"+VLOOKUP(A113,Bricks!A:D,4,FALSE)","v":"Mondbehandelingen"},"1.0"]
[10000460,{"$f":"+VLOOKUP(A114,Bricks!A:D,4,FALSE)","v":"Condooms"},"1.0"]
[10000461,{"$f":"+VLOOKUP(A115,Bricks!A:D,4,FALSE)","v":"Pessaria/Cervixkapjes"},"1.0"]
[10000462,{"$f":"+VLOOKUP(A116,Bricks!A:D,4,FALSE)","v":"Spermiciden"},"1.0"]
[10000674,{"$f":"+VLOOKUP(A117,Bricks!A:D,4,FALSE)","v":"Mechanische Anticonceptiva – Assortimenten"},"1.0"]
[10000838,{"$f":"+VLOOKUP(A118,Bricks!A:D,4,FALSE)","v":"Mechanische Anticonceptiva – Overig"},"1.0"]
[10000463,{"$f":"+VLOOKUP(A119,Bricks!A:D,4,FALSE)","v":"Hormonale Anticonceptiva"},"1.0"]
[10000464,{"$f":"+VLOOKUP(A120,Bricks!A:D,4,FALSE)","v":"Anticonceptiva – Spiraaltje"},"1.0"]
[10000675,{"$f":"+VLOOKUP(A121,Bricks!A:D,4,FALSE)","v":"Gezinsplanning – Assortimenten"},"1.0"]
[10000465,{"$f":"+VLOOKUP(A122,Bricks!A:D,4,FALSE)","v":"Dieetmiddel – Eetlust-/Vetcontrole"},"1.0"]
[10000466,{"$f":"+VLOOKUP(A123,Bricks!A:D,4,FALSE)","v":"Dieetmiddel – Maaltijdvervanger"},"1.0"]
[10000650,{"$f":"+VLOOKUP(A124,Bricks!A:D,4,FALSE)","v":"Dieetmiddelen – Assortimenten"},"1.0"]
[10000841,{"$f":"+VLOOKUP(A125,Bricks!A:D,4,FALSE)","v":"Dieetmiddelen – Overig"},"1.0"]
[10000467,{"$f":"+VLOOKUP(A126,Bricks!A:D,4,FALSE)","v":"Vitaminen/Mineralen"},"1.0"]
[10000468,{"$f":"+VLOOKUP(A127,Bricks!A:D,4,FALSE)","v":"Voedingssupplementen"},"1.0"]
[10000651,{"$f":"+VLOOKUP(A128,Bricks!A:D,4,FALSE)","v":"Vitaminen/Mineralen/Voedingssupplementen – Assortimenten"},"1.0"]
[10000649,{"$f":"+VLOOKUP(A129,Bricks!A:D,4,FALSE)","v":"Bevordering Gezondheid – Assortimenten"},"1.0"]
[10000917,{"$f":"+VLOOKUP(A130,Bricks!A:D,4,FALSE)","v":"Energieopwekkende/Stimulerende Middelen"},"1.0"]
[10000918,{"$f":"+VLOOKUP(A131,Bricks!A:D,4,FALSE)","v":"Energieopwekkende/Stimulerende Middelen – Overig"},"1.0"]
[10000455,{"$f":"+VLOOKUP(A132,Bricks!A:D,4,FALSE)","v":"Diagnosemonitoren voor Thuis"},"1.0"]
[10000843,{"$f":"+VLOOKUP(A133,Bricks!A:D,4,FALSE)","v":"Diagnosemonitoren – Overig"},"1.0"]
[10000452,{"$f":"+VLOOKUP(A134,Bricks!A:D,4,FALSE)","v":"Thermometers"},"1.0"]
[10000453,{"$f":"+VLOOKUP(A135,Bricks!A:D,4,FALSE)","v":"Diagnosetests voor Thuis"},"1.0"]
[10000454,{"$f":"+VLOOKUP(A136,Bricks!A:D,4,FALSE)","v":"Thuisdiagnostica – Accessoires"},"1.0"]
[10000648,{"$f":"+VLOOKUP(A137,Bricks!A:D,4,FALSE)","v":"Diagnosetesten – Assortimenten"},"1.0"]
[10000844,{"$f":"+VLOOKUP(A138,Bricks!A:D,4,FALSE)","v":"Diagnosetesten – Overig"},"1.0"]
[10000647,{"$f":"+VLOOKUP(A139,Bricks!A:D,4,FALSE)","v":"Thuisdiagnostica – Assortimenten"},"1.0"]
[10000673,{"$f":"+VLOOKUP(A140,Bricks!A:D,4,FALSE)","v":"Gezondheidszorg – Assortimenten"},"1.0"]
[10005844,{"$f":"+VLOOKUP(A141,Bricks!A:D,4,FALSE)","v":"Medische Hulpmiddelen"},"1.0"]
[10005845,{"$f":"+VLOOKUP(A142,Bricks!A:D,4,FALSE)","v":"Geneesmiddelen"},"1.0"]
[10000514,{"$f":"+VLOOKUP(A143,Bricks!A:D,4,FALSE)","v":"Veterinaire Geneesmiddelen"},"1.0"]
[10006412,{"$f":"+VLOOKUP(A144,Bricks!A:D,4,FALSE)","v":"Veterinaire Medische Hulpmiddelen"},"1.0"]

{"sheet":"Foutmeldingen","index":5,"n_rows":0,"n_cols":0,"rows_kept":0,"cut":false,"hidden":true,"merged":[]}